Body,Body Name,Date,TransNo,Amount � (Excl VAT),Supplier name,Supplier ID,Expense Area,Expense Type,Expense Code
http://opendatacommunities.org/id/london-borough-council/sutton,London Borough of Sutton,04/04/2018,6928816,660,A Froley & B Ghoorbin,25732,Chief Executive's Directorate,Provider Contract Payments,F470
http://opendatacommunities.org/id/london-borough-council/sutton,London Borough of Sutton,05/04/2018,6928714,868,AA Guesthouses Ltd,29292,Peoples Services Directorate,C.C.A Rent & Utilities,H211
http://opendatacommunities.org/id/london-borough-council/sutton,London Borough of Sutton,01/04/2018,1252569,"6,833.17",Abbey Primary School,10011,Peoples Services Directorate,Top-up Funding,G064
http://opendatacommunities.org/id/london-borough-council/sutton,London Borough of Sutton,28/02/2018,6928386,"1,151.95",Abbey Primary School,10011,Peoples Services Directorate,Equipment It,Y523
http://opendatacommunities.org/id/london-borough-council/sutton,London Borough of Sutton,28/02/2018,6928386,"7,799.97",Abbey Primary School,10011,Peoples Services Directorate,Building Works -Main Contractor,Y350
http://opendatacommunities.org/id/london-borough-council/sutton,London Borough of Sutton,20/04/2018,40186334,"2,280.00",Abbeyfield Kent Society,28532,Peoples Services Directorate,Residential Care - Ext Provider,G310
http://opendatacommunities.org/id/london-borough-council/sutton,London Borough of Sutton,30/04/2018,1253753,"2,605.50",ABC Pre-School Beddington LLP,28675,Peoples Services Directorate,Non-Maintained Childrens' Nurseries - 2 Year Olds,G404
http://opendatacommunities.org/id/london-borough-council/sutton,London Borough of Sutton,30/04/2018,1253853,"6,168.35",ABC Pre-School Beddington LLP,28675,Peoples Services Directorate,Non-Maintained Childrens' Nurseries - 3 & 4 yr olds,G405
http://opendatacommunities.org/id/london-borough-council/sutton,London Borough of Sutton,30/03/2018,1252095,472.5,Abc-Ot Ltd,26668,Peoples Services Directorate,Special Educational Needs,G331
http://opendatacommunities.org/id/london-borough-council/sutton,London Borough of Sutton,23/03/2018,6929431,"1,258.00",Abslett Properties Ltd,26401,"Environment, Housing & Regeneration Directorate",Bed and Breakfast Accommodation,G400
http://opendatacommunities.org/id/london-borough-council/sutton,London Borough of Sutton,31/03/2018,6929432,"1,054.00",Abslett Properties Ltd,26401,"Environment, Housing & Regeneration Directorate",Bed and Breakfast Accommodation,G400
http://opendatacommunities.org/id/london-borough-council/sutton,London Borough of Sutton,23/03/2018,6929433,"3,842.00",Abslett Properties Ltd,26401,"Environment, Housing & Regeneration Directorate",Bed and Breakfast Accommodation,G400
http://opendatacommunities.org/id/london-borough-council/sutton,London Borough of Sutton,23/03/2018,6929434,680,Abslett Properties Ltd,26401,"Environment, Housing & Regeneration Directorate",Bed and Breakfast Accommodation,G400
http://opendatacommunities.org/id/london-borough-council/sutton,London Borough of Sutton,31/03/2018,6929435,918,Abslett Properties Ltd,26401,"Environment, Housing & Regeneration Directorate",Bed and Breakfast Accommodation,G400
http://opendatacommunities.org/id/london-borough-council/sutton,London Borough of Sutton,02/04/2018,6928553,"5,766.81",Absolute Care Services Ltd,10021,Peoples Services Directorate,Homecare Core Services,G336
http://opendatacommunities.org/id/london-borough-council/sutton,London Borough of Sutton,02/04/2018,6928554,"5,070.19",Absolute Care Services Ltd,10021,Peoples Services Directorate,Homecare Core Services,G336
http://opendatacommunities.org/id/london-borough-council/sutton,London Borough of Sutton,02/04/2018,6928555,921.69,Absolute Care Services Ltd,10021,Peoples Services Directorate,Homecare Core Services,G336
http://opendatacommunities.org/id/london-borough-council/sutton,London Borough of Sutton,02/04/2018,6928556,"4,851.00",Absolute Care Services Ltd,10021,Peoples Services Directorate,Homecare Core Services,G336
http://opendatacommunities.org/id/london-borough-council/sutton,London Borough of Sutton,09/04/2018,6928853,"5,766.81",Absolute Care Services Ltd,10021,Peoples Services Directorate,Homecare Core Services,G336
http://opendatacommunities.org/id/london-borough-council/sutton,London Borough of Sutton,09/04/2018,6928855,921.69,Absolute Care Services Ltd,10021,Peoples Services Directorate,Homecare Core Services,G336
http://opendatacommunities.org/id/london-borough-council/sutton,London Borough of Sutton,16/04/2018,6929258,"5,070.19",Absolute Care Services Ltd,10021,Peoples Services Directorate,Homecare Core Services,G336
http://opendatacommunities.org/id/london-borough-council/sutton,London Borough of Sutton,16/04/2018,6929260,"5,766.81",Absolute Care Services Ltd,10021,Peoples Services Directorate,Homecare Core Services,G336
http://opendatacommunities.org/id/london-borough-council/sutton,London Borough of Sutton,16/04/2018,6929262,921.69,Absolute Care Services Ltd,10021,Peoples Services Directorate,Homecare Core Services,G336
http://opendatacommunities.org/id/london-borough-council/sutton,London Borough of Sutton,23/04/2018,6929684,"5,766.81",Absolute Care Services Ltd,10021,Peoples Services Directorate,Homecare Core Services,G336
http://opendatacommunities.org/id/london-borough-council/sutton,London Borough of Sutton,30/04/2018,6930010,"5,766.81",Absolute Care Services Ltd,10021,Peoples Services Directorate,Homecare Core Services,G336
http://opendatacommunities.org/id/london-borough-council/sutton,London Borough of Sutton,25/03/2018,40180099,601.27,Absolute Care Services Ltd,10021,Peoples Services Directorate,Home Care,G334
http://opendatacommunities.org/id/london-borough-council/sutton,London Borough of Sutton,25/03/2018,40180116,500.84,Absolute Care Services Ltd,10021,Peoples Services Directorate,Home Care,G334
http://opendatacommunities.org/id/london-borough-council/sutton,London Borough of Sutton,25/03/2018,40180697,589.72,Absolute Care Services Ltd,10021,Peoples Services Directorate,Home Care,G334
http://opendatacommunities.org/id/london-borough-council/sutton,London Borough of Sutton,25/03/2018,40180698,596.82,Absolute Care Services Ltd,10021,Peoples Services Directorate,Home Care,G334
http://opendatacommunities.org/id/london-borough-council/sutton,London Borough of Sutton,25/03/2018,40180715,426.3,Absolute Care Services Ltd,10021,Peoples Services Directorate,Home Care,G334
http://opendatacommunities.org/id/london-borough-council/sutton,London Borough of Sutton,25/03/2018,40180722,447.62,Absolute Care Services Ltd,10021,Peoples Services Directorate,Home Care,G334
http://opendatacommunities.org/id/london-borough-council/sutton,London Borough of Sutton,25/03/2018,40180765,596.82,Absolute Care Services Ltd,10021,Peoples Services Directorate,Home Care,G334
http://opendatacommunities.org/id/london-borough-council/sutton,London Borough of Sutton,25/03/2018,40180826,483.15,Absolute Care Services Ltd,10021,Peoples Services Directorate,Home Care,G334
http://opendatacommunities.org/id/london-borough-council/sutton,London Borough of Sutton,25/03/2018,40180839,447.62,Absolute Care Services Ltd,10021,Peoples Services Directorate,Home Care,G334
http://opendatacommunities.org/id/london-borough-council/sutton,London Borough of Sutton,25/03/2018,40180841,497.35,Absolute Care Services Ltd,10021,Peoples Services Directorate,Home Care,G334
http://opendatacommunities.org/id/london-borough-council/sutton,London Borough of Sutton,25/03/2018,40180861,547.09,Absolute Care Services Ltd,10021,Peoples Services Directorate,Home Care,G334
http://opendatacommunities.org/id/london-borough-council/sutton,London Borough of Sutton,25/03/2018,40180889,447.62,Absolute Care Services Ltd,10021,Peoples Services Directorate,Home Care,G334
http://opendatacommunities.org/id/london-borough-council/sutton,London Borough of Sutton,25/03/2018,40180892,497.35,Absolute Care Services Ltd,10021,Peoples Services Directorate,Home Care,G334
http://opendatacommunities.org/id/london-borough-council/sutton,London Borough of Sutton,25/03/2018,40180927,447.62,Absolute Care Services Ltd,10021,Peoples Services Directorate,Home Care,G334
http://opendatacommunities.org/id/london-borough-council/sutton,London Borough of Sutton,01/04/2018,40182069,601.27,Absolute Care Services Ltd,10021,Peoples Services Directorate,Home Care,G334
http://opendatacommunities.org/id/london-borough-council/sutton,London Borough of Sutton,01/04/2018,40182086,500.84,Absolute Care Services Ltd,10021,Peoples Services Directorate,Home Care,G334
http://opendatacommunities.org/id/london-borough-council/sutton,London Borough of Sutton,01/04/2018,40182112,589.72,Absolute Care Services Ltd,10021,Peoples Services Directorate,Home Care,G334
http://opendatacommunities.org/id/london-borough-council/sutton,London Borough of Sutton,01/04/2018,40182113,596.82,Absolute Care Services Ltd,10021,Peoples Services Directorate,Home Care,G334
http://opendatacommunities.org/id/london-borough-council/sutton,London Borough of Sutton,25/03/2018,40182427,426.56,Absolute Care Services Ltd,10021,Peoples Services Directorate,Home Care,G334
http://opendatacommunities.org/id/london-borough-council/sutton,London Borough of Sutton,01/04/2018,40182428,426.56,Absolute Care Services Ltd,10021,Peoples Services Directorate,Home Care,G334
http://opendatacommunities.org/id/london-borough-council/sutton,London Borough of Sutton,25/03/2018,40182429,433.44,Absolute Care Services Ltd,10021,Peoples Services Directorate,Home Care,G334
http://opendatacommunities.org/id/london-borough-council/sutton,London Borough of Sutton,01/04/2018,40182430,433.44,Absolute Care Services Ltd,10021,Peoples Services Directorate,Home Care,G334
http://opendatacommunities.org/id/london-borough-council/sutton,London Borough of Sutton,25/03/2018,40182558,471.28,Absolute Care Services Ltd,10021,Peoples Services Directorate,Home Care,G334
http://opendatacommunities.org/id/london-borough-council/sutton,London Borough of Sutton,01/04/2018,40182559,484.2,Absolute Care Services Ltd,10021,Peoples Services Directorate,Home Care,G334
http://opendatacommunities.org/id/london-borough-council/sutton,London Borough of Sutton,08/04/2018,40185042,471.28,Absolute Care Services Ltd,10021,Peoples Services Directorate,Home Care,G334
http://opendatacommunities.org/id/london-borough-council/sutton,London Borough of Sutton,08/04/2018,40185111,426.56,Absolute Care Services Ltd,10021,Peoples Services Directorate,Home Care,G334
http://opendatacommunities.org/id/london-borough-council/sutton,London Borough of Sutton,08/04/2018,40185112,433.44,Absolute Care Services Ltd,10021,Peoples Services Directorate,Home Care,G334
http://opendatacommunities.org/id/london-borough-council/sutton,London Borough of Sutton,08/04/2018,40185903,601.27,Absolute Care Services Ltd,10021,Peoples Services Directorate,Home Care,G334
http://opendatacommunities.org/id/london-borough-council/sutton,London Borough of Sutton,08/04/2018,40185912,500.84,Absolute Care Services Ltd,10021,Peoples Services Directorate,Home Care,G334
http://opendatacommunities.org/id/london-borough-council/sutton,London Borough of Sutton,15/04/2018,40187767,589.72,Absolute Care Services Ltd,10021,Peoples Services Directorate,Home Care,G334
http://opendatacommunities.org/id/london-borough-council/sutton,London Borough of Sutton,15/04/2018,40187768,596.82,Absolute Care Services Ltd,10021,Peoples Services Directorate,Home Care,G334
http://opendatacommunities.org/id/london-borough-council/sutton,London Borough of Sutton,15/04/2018,40187790,447.62,Absolute Care Services Ltd,10021,Peoples Services Directorate,Home Care,G334
http://opendatacommunities.org/id/london-borough-council/sutton,London Borough of Sutton,15/04/2018,40187800,596.82,Absolute Care Services Ltd,10021,Peoples Services Directorate,Home Care,G334
http://opendatacommunities.org/id/london-borough-council/sutton,London Borough of Sutton,15/04/2018,40187811,471.28,Absolute Care Services Ltd,10021,Peoples Services Directorate,Home Care,G334
http://opendatacommunities.org/id/london-borough-council/sutton,London Borough of Sutton,15/04/2018,40187835,486.7,Absolute Care Services Ltd,10021,Peoples Services Directorate,Home Care,G334
http://opendatacommunities.org/id/london-borough-council/sutton,London Borough of Sutton,15/04/2018,40187840,447.62,Absolute Care Services Ltd,10021,Peoples Services Directorate,Home Care,G334
http://opendatacommunities.org/id/london-borough-council/sutton,London Borough of Sutton,15/04/2018,40187842,497.35,Absolute Care Services Ltd,10021,Peoples Services Directorate,Home Care,G334
http://opendatacommunities.org/id/london-borough-council/sutton,London Borough of Sutton,15/04/2018,40187854,547.09,Absolute Care Services Ltd,10021,Peoples Services Directorate,Home Care,G334
http://opendatacommunities.org/id/london-borough-council/sutton,London Borough of Sutton,15/04/2018,40187865,447.62,Absolute Care Services Ltd,10021,Peoples Services Directorate,Home Care,G334
http://opendatacommunities.org/id/london-borough-council/sutton,London Borough of Sutton,15/04/2018,40187868,497.35,Absolute Care Services Ltd,10021,Peoples Services Directorate,Home Care,G334
http://opendatacommunities.org/id/london-borough-council/sutton,London Borough of Sutton,15/04/2018,40187871,426.56,Absolute Care Services Ltd,10021,Peoples Services Directorate,Home Care,G334
http://opendatacommunities.org/id/london-borough-council/sutton,London Borough of Sutton,15/04/2018,40187872,433.44,Absolute Care Services Ltd,10021,Peoples Services Directorate,Home Care,G334
http://opendatacommunities.org/id/london-borough-council/sutton,London Borough of Sutton,15/04/2018,40187878,601.27,Absolute Care Services Ltd,10021,Peoples Services Directorate,Home Care,G334
http://opendatacommunities.org/id/london-borough-council/sutton,London Borough of Sutton,15/04/2018,40187886,500.84,Absolute Care Services Ltd,10021,Peoples Services Directorate,Home Care,G334
http://opendatacommunities.org/id/london-borough-council/sutton,London Borough of Sutton,15/04/2018,40187890,447.62,Absolute Care Services Ltd,10021,Peoples Services Directorate,Home Care,G334
http://opendatacommunities.org/id/london-borough-council/sutton,London Borough of Sutton,28/03/2018,40187959,447.62,Absolute Care Services Ltd,10021,Peoples Services Directorate,Home Care,G334
http://opendatacommunities.org/id/london-borough-council/sutton,London Borough of Sutton,30/03/2018,1252746,"1,444.00",Access Mobility Transport Ltd,27456,Peoples Services Directorate,Hired Peoples Transport (Children),E072
http://opendatacommunities.org/id/london-borough-council/sutton,London Borough of Sutton,30/03/2018,1252747,"3,108.00",Access Mobility Transport Ltd,27456,Peoples Services Directorate,Hired Peoples Transport (Children),E072
http://opendatacommunities.org/id/london-borough-council/sutton,London Borough of Sutton,29/03/2018,1252907,"4,797.00",Achieving For Children Limited,28009,Peoples Services Directorate,Top-up Funding,G064
http://opendatacommunities.org/id/london-borough-council/sutton,London Borough of Sutton,29/03/2018,1252908,"2,216.93",Achieving For Children Limited,28009,Peoples Services Directorate,Top-up Funding,G064
http://opendatacommunities.org/id/london-borough-council/sutton,London Borough of Sutton,29/03/2018,1252908,"34,123.67",Achieving For Children Limited,28009,Peoples Services Directorate,Top-up Funding,G064
http://opendatacommunities.org/id/london-borough-council/sutton,London Borough of Sutton,29/03/2018,1252908,"44,893.40",Achieving For Children Limited,28009,Peoples Services Directorate,Top-up Funding,G064
http://opendatacommunities.org/id/london-borough-council/sutton,London Borough of Sutton,29/03/2018,1252909,"90,791.44",Achieving For Children Limited,28009,Peoples Services Directorate,Place Funding,G063
http://opendatacommunities.org/id/london-borough-council/sutton,London Borough of Sutton,01/03/2018,6929485,"1,000.00",Achieving For Children Limited,28009,Peoples Services Directorate,Training - Course Fees,A520
http://opendatacommunities.org/id/london-borough-council/sutton,London Borough of Sutton,01/03/2018,6929485,"1,000.00",Achieving For Children Limited,28009,Peoples Services Directorate,Training - Course Fees,A520
http://opendatacommunities.org/id/london-borough-council/sutton,London Borough of Sutton,20/04/2018,40185425,"2,903.20",Acorn Lodge,15804,Peoples Services Directorate,Residential Care - Ext Provider,G310
http://opendatacommunities.org/id/london-borough-council/sutton,London Borough of Sutton,20/04/2018,40186089,"3,042.36",Acorn Residential Home,15828,Peoples Services Directorate,Residential Care - Ext Provider,G310
http://opendatacommunities.org/id/london-borough-council/sutton,London Borough of Sutton,04/04/2018,1252800,"122,844.08",Adecco Uk Ltd,10059,Resources Directorate,Suspense/Holding Accounts,X550
http://opendatacommunities.org/id/london-borough-council/sutton,London Borough of Sutton,11/04/2018,1252964,"128,724.37",Adecco Uk Ltd,10059,Resources Directorate,Suspense/Holding Accounts,X550
http://opendatacommunities.org/id/london-borough-council/sutton,London Borough of Sutton,19/04/2018,1253507,"176,862.08",Adecco Uk Ltd,10059,Resources Directorate,Suspense/Holding Accounts,X550
http://opendatacommunities.org/id/london-borough-council/sutton,London Borough of Sutton,25/04/2018,1253659,"101,685.18",Adecco Uk Ltd,10059,Resources Directorate,Suspense/Holding Accounts,X550
http://opendatacommunities.org/id/london-borough-council/sutton,London Borough of Sutton,20/04/2018,40185416,"2,520.00",Addiction Recovery Centres Ltd,23357,Peoples Services Directorate,Interim Placements - Ext Provider,G317
http://opendatacommunities.org/id/london-borough-council/sutton,London Borough of Sutton,31/03/2018,6928605,"1,762.77",Advanced Demand Side Management Ltd,26989,Resources Directorate,Water - Metered,D690
http://opendatacommunities.org/id/london-borough-council/sutton,London Borough of Sutton,18/04/2018,6929952,"5,985.37",Advanced Demand Side Management Ltd,26989,Resources Directorate,Water - Metered,D690
http://opendatacommunities.org/id/london-borough-council/sutton,London Borough of Sutton,18/04/2018,6929953,"10,216.54",Advanced Demand Side Management Ltd,26989,Resources Directorate,Water - Metered,D690
http://opendatacommunities.org/id/london-borough-council/sutton,London Borough of Sutton,31/08/2017,6928688,"1,000.00",Advanced Health & Care,23939,Peoples Services Directorate,Purchase of IT Equipment,F380
http://opendatacommunities.org/id/london-borough-council/sutton,London Borough of Sutton,16/01/2018,6929374,796.11,Advanced Health & Care,23939,Peoples Services Directorate,Purchase of IT Equipment,F380
http://opendatacommunities.org/id/london-borough-council/sutton,London Borough of Sutton,28/02/2018,6928507,450,Adventure Lifesigns,99863,Peoples Services Directorate,Fostering Vacancy/Holiday Payments,H349
http://opendatacommunities.org/id/london-borough-council/sutton,London Borough of Sutton,09/04/2018,6928859,"4,166.66",Advocacy For All,24795,Peoples Services Directorate,Provider Contract Payments,F470
http://opendatacommunities.org/id/london-borough-council/sutton,London Borough of Sutton,09/04/2018,6928860,"15,833.33",Advocacy For All,24795,Peoples Services Directorate,Provider Contract Payments,F470
http://opendatacommunities.org/id/london-borough-council/sutton,London Borough of Sutton,28/03/2018,40181985,"3,538.34",Affinity Fostering Services Ltd,26535,Peoples Services Directorate,Foster Parents,G326
http://opendatacommunities.org/id/london-borough-council/sutton,London Borough of Sutton,26/03/2018,6928629,"5,330.00",Age UK Sutton,10092,Chief Executive's Directorate,Fees - Consultants (Ad Hoc),F283
http://opendatacommunities.org/id/london-borough-council/sutton,London Borough of Sutton,20/04/2018,40186093,"7,511.00",Aims Care Partnership (Leighton House Ltd),12628,Peoples Services Directorate,Residential Care - Ext Provider,G310
http://opendatacommunities.org/id/london-borough-council/sutton,London Borough of Sutton,20/04/2018,40186074,"5,278.00",Aitch Care Homes,20446,Peoples Services Directorate,Residential Care - Ext Provider,G310
http://opendatacommunities.org/id/london-borough-council/sutton,London Borough of Sutton,20/04/2018,40186110,"8,400.16",Aitch Care Homes,20446,Peoples Services Directorate,Residential Care - Ext Provider,G310
http://opendatacommunities.org/id/london-borough-council/sutton,London Borough of Sutton,01/04/2018,1252570,"25,154.67",All Saints Benhilton C Of E,10115,Peoples Services Directorate,Top-up Funding,G064
http://opendatacommunities.org/id/london-borough-council/sutton,London Borough of Sutton,01/04/2018,1253915,"1,132.50",All Saints Benhilton C Of E,10115,Peoples Services Directorate,Payments to Schools,G065
http://opendatacommunities.org/id/london-borough-council/sutton,London Borough of Sutton,01/04/2018,1253916,480,All Saints Benhilton C Of E,10115,Peoples Services Directorate,Payments to Schools,G065
http://opendatacommunities.org/id/london-borough-council/sutton,London Borough of Sutton,01/04/2018,1252571,"22,458.67",All Saints Carshalton Primary School,16772,Peoples Services Directorate,Top-up Funding,G064
http://opendatacommunities.org/id/london-borough-council/sutton,London Borough of Sutton,01/04/2018,1253904,"1,277.33",All Saints Carshalton Primary School,16772,Peoples Services Directorate,Payments to Schools,G065
http://opendatacommunities.org/id/london-borough-council/sutton,London Borough of Sutton,01/04/2018,1253905,"1,555.00",All Saints Carshalton Primary School,16772,Peoples Services Directorate,Payments to Schools,G065
http://opendatacommunities.org/id/london-borough-council/sutton,London Borough of Sutton,01/04/2018,6928585,"1,378.95",All Security Ltd,97190,"Environment, Housing & Regeneration Directorate",Agency Services,G431
http://opendatacommunities.org/id/london-borough-council/sutton,London Borough of Sutton,01/02/2018,6929774,"1,378.95",All Security Ltd,97190,"Environment, Housing & Regeneration Directorate",Agency Services,G431
http://opendatacommunities.org/id/london-borough-council/sutton,London Borough of Sutton,01/01/2018,6929775,"1,172.90",All Security Ltd,97190,"Environment, Housing & Regeneration Directorate",Agency Services,G431
http://opendatacommunities.org/id/london-borough-council/sutton,London Borough of Sutton,26/03/2018,6928621,"1,740.00",Allen Lane Ltd,18334,Resources Directorate,Agency Staff - Other,A301
http://opendatacommunities.org/id/london-borough-council/sutton,London Borough of Sutton,26/03/2018,6928622,"1,294.12",Allen Lane Ltd,18334,Resources Directorate,Agency Staff - Other,A301
http://opendatacommunities.org/id/london-borough-council/sutton,London Borough of Sutton,23/03/2018,6928623,"1,247.00",Allen Lane Ltd,18334,Resources Directorate,Agency Staff - Other,A301
http://opendatacommunities.org/id/london-borough-council/sutton,London Borough of Sutton,04/04/2018,6928624,"1,044.00",Allen Lane Ltd,18334,Resources Directorate,Agency Staff - Other,A301
http://opendatacommunities.org/id/london-borough-council/sutton,London Borough of Sutton,04/04/2018,6928640,"1,294.12",Allen Lane Ltd,18334,Resources Directorate,Agency Staff - Other,A301
http://opendatacommunities.org/id/london-borough-council/sutton,London Borough of Sutton,04/04/2018,6928641,"1,392.00",Allen Lane Ltd,18334,Resources Directorate,Agency Staff - Other,A301
http://opendatacommunities.org/id/london-borough-council/sutton,London Borough of Sutton,10/04/2018,6929007,696,Allen Lane Ltd,18334,Resources Directorate,Agency Staff - Other,A301
http://opendatacommunities.org/id/london-borough-council/sutton,London Borough of Sutton,10/04/2018,6929053,970.59,Allen Lane Ltd,18334,Resources Directorate,Agency Staff - Other,A301
http://opendatacommunities.org/id/london-borough-council/sutton,London Borough of Sutton,10/04/2018,6929054,"1,392.00",Allen Lane Ltd,18334,Resources Directorate,Agency Staff - Other,A301
http://opendatacommunities.org/id/london-borough-council/sutton,London Borough of Sutton,17/04/2018,6929397,"1,740.00",Allen Lane Ltd,18334,Resources Directorate,Agency Staff - Other,A301
http://opendatacommunities.org/id/london-borough-council/sutton,London Borough of Sutton,17/04/2018,6929449,748.2,Allen Lane Ltd,18334,Resources Directorate,Agency Staff - Other,A301
http://opendatacommunities.org/id/london-borough-council/sutton,London Borough of Sutton,17/04/2018,6929451,"1,740.00",Allen Lane Ltd,18334,Resources Directorate,Agency Staff - Other,A301
http://opendatacommunities.org/id/london-borough-council/sutton,London Borough of Sutton,24/04/2018,6929771,"1,740.00",Allen Lane Ltd,18334,Resources Directorate,Agency Staff - Other,A301
http://opendatacommunities.org/id/london-borough-council/sutton,London Borough of Sutton,24/04/2018,6930038,"1,617.65",Allen Lane Ltd,18334,Resources Directorate,Agency Staff - Other,A301
http://opendatacommunities.org/id/london-borough-council/sutton,London Borough of Sutton,25/04/2018,6930039,"1,566.00",Allen Lane Ltd,18334,Resources Directorate,Agency Staff - Other,A301
http://opendatacommunities.org/id/london-borough-council/sutton,London Borough of Sutton,20/04/2018,40186187,"3,625.00",Alliance Care (Dale Homes) Ltd T/A Uplands Care Home,26835,Peoples Services Directorate,Nursing Care - Ext Provider,G311
http://opendatacommunities.org/id/london-borough-council/sutton,London Borough of Sutton,20/04/2018,40186038,"4,454.16",Allied Care (Mhs) Ltd,10145,Peoples Services Directorate,Residential Care - Ext Provider,G310
http://opendatacommunities.org/id/london-borough-council/sutton,London Borough of Sutton,12/02/2017,6928887,460,Alljos Services Ltd,28300,Peoples Services Directorate,Building Cleaning Contract,G015
http://opendatacommunities.org/id/london-borough-council/sutton,London Borough of Sutton,16/04/2018,6929363,615,Alljos Services Ltd,99815,"Environment, Housing & Regeneration Directorate",Grants -Made,Y610
http://opendatacommunities.org/id/london-borough-council/sutton,London Borough of Sutton,01/04/2018,6929226,"1,219.95",Allstar Business Solutions,24482,"Environment, Housing & Regeneration Directorate",Fuel Etc,E030
http://opendatacommunities.org/id/london-borough-council/sutton,London Borough of Sutton,20/04/2018,40186100,"6,370.00",Allswell Care Services Ltd,20761,Peoples Services Directorate,Residential Care - Ext Provider,G310
http://opendatacommunities.org/id/london-borough-council/sutton,London Borough of Sutton,20/04/2018,40186300,"3,480.00",Allswell Care Services Ltd,20761,Peoples Services Directorate,Residential Care - Ext Provider,G310
http://opendatacommunities.org/id/london-borough-council/sutton,London Borough of Sutton,20/04/2018,40186380,"4,400.00",Allswell Care Services Ltd,20761,Peoples Services Directorate,Residential Care - Ext Provider,G310
http://opendatacommunities.org/id/london-borough-council/sutton,London Borough of Sutton,30/04/2018,1253835,"4,656.00",Amanda Harris,27152,Peoples Services Directorate,Non-Maintained Childrens' Nurseries - 3 & 4 yr olds,G405
http://opendatacommunities.org/id/london-borough-council/sutton,London Borough of Sutton,30/04/2018,1253863,"1,377.00",Amanda Marvell,29724,Peoples Services Directorate,Non-Maintained Childrens' Nurseries - 3 & 4 yr olds,G405
http://opendatacommunities.org/id/london-borough-council/sutton,London Borough of Sutton,07/03/2018,40181962,"13,285.67",Amegreen Childrens Services,27145,Peoples Services Directorate,Residential Care-Children,G330
http://opendatacommunities.org/id/london-borough-council/sutton,London Borough of Sutton,30/03/2018,6928811,"16,089.50",Ameo Professional Services Ltd,27868,Chief Executive's Directorate,Fees - Consultants (Ad Hoc),F283
http://opendatacommunities.org/id/london-borough-council/sutton,London Borough of Sutton,30/03/2018,6928812,"23,639.10",Ameo Professional Services Ltd,27868,Resources Directorate,Internal Fees - Project Management,Y180
http://opendatacommunities.org/id/london-borough-council/sutton,London Borough of Sutton,01/04/2018,6928470,"2,360.00",Angel Lettings,18658,"Environment, Housing & Regeneration Directorate",Bed and Breakfast Accommodation,G400
http://opendatacommunities.org/id/london-borough-council/sutton,London Borough of Sutton,30/04/2018,1253860,873,Angela Ives,29706,Peoples Services Directorate,Non-Maintained Childrens' Nurseries - 3 & 4 yr olds,G405
http://opendatacommunities.org/id/london-borough-council/sutton,London Borough of Sutton,09/04/2018,6929236,"2,225.60",REDACTED - PERSONAL DATA,32174,Peoples Services Directorate,C.C.A Travel & Subsistance,H212
http://opendatacommunities.org/id/london-borough-council/sutton,London Borough of Sutton,31/03/2018,6928665,"6,961.22",Apetito Ltd,10206,Chief Executive's Directorate,Provisions - General,F150
http://opendatacommunities.org/id/london-borough-council/sutton,London Borough of Sutton,31/03/2018,6928986,"10,389.65",Apex Housing Solutions Ltd,29950,"Environment, Housing & Regeneration Directorate",Bed and Breakfast Accommodation,G400
http://opendatacommunities.org/id/london-borough-council/sutton,London Borough of Sutton,01/04/2018,6928835,"7,500.00",Architype Ltd,25419,Peoples Services Directorate,External Fees  - Architects,Y100
http://opendatacommunities.org/id/london-borough-council/sutton,London Borough of Sutton,06/04/2018,6929799,"4,473.00",Architype Ltd,25419,Peoples Services Directorate,External Fees  - Architects,Y100
http://opendatacommunities.org/id/london-borough-council/sutton,London Borough of Sutton,03/11/2017,6926729,798,Ardleigh Improvements Ltd,97701,Peoples Services Directorate,Building Works -Main Contractor,Y350
http://opendatacommunities.org/id/london-borough-council/sutton,London Borough of Sutton,03/11/2017,6926729,798,Ardleigh Improvements Ltd,97701,Peoples Services Directorate,Building Works -Main Contractor,Y350
http://opendatacommunities.org/id/london-borough-council/sutton,London Borough of Sutton,04/04/2018,6929002,"7,539.48",Arnold & Self,16110,"Environment, Housing & Regeneration Directorate",Bed and Breakfast Accommodation,G400
http://opendatacommunities.org/id/london-borough-council/sutton,London Borough of Sutton,01/03/2018,40184993,850.33,Ashbrook House Ltd,23499,Peoples Services Directorate,Supported Living - Ext Provider,G306
http://opendatacommunities.org/id/london-borough-council/sutton,London Borough of Sutton,01/03/2018,40184977,884.48,Ashlong House Ltd,23101,Peoples Services Directorate,Supported Living - Ext Provider,G306
http://opendatacommunities.org/id/london-borough-council/sutton,London Borough of Sutton,01/03/2018,40184991,"1,808.54",Ashlong House Ltd,23101,Peoples Services Directorate,Supported Living - Ext Provider,G306
http://opendatacommunities.org/id/london-borough-council/sutton,London Borough of Sutton,01/03/2018,40184992,"2,058.40",Ashlong House Ltd,23101,Peoples Services Directorate,Supported Living - Ext Provider,G306
http://opendatacommunities.org/id/london-borough-council/sutton,London Borough of Sutton,01/03/2018,40185027,"1,264.80",Ashlong House Ltd,23101,Peoples Services Directorate,Supported Living - Ext Provider,G306
http://opendatacommunities.org/id/london-borough-council/sutton,London Borough of Sutton,20/04/2018,40186247,"5,492.48",Aspens Charities,30002,Peoples Services Directorate,Residential Care - Ext Provider,G310
http://opendatacommunities.org/id/london-borough-council/sutton,London Borough of Sutton,22/03/2018,6928509,961,Assetgrove Lettings Ltd,28820,"Environment, Housing & Regeneration Directorate",Bed and Breakfast Accommodation,G400
http://opendatacommunities.org/id/london-borough-council/sutton,London Borough of Sutton,22/03/2018,6928510,961,Assetgrove Lettings Ltd,28820,"Environment, Housing & Regeneration Directorate",Bed and Breakfast Accommodation,G400
http://opendatacommunities.org/id/london-borough-council/sutton,London Borough of Sutton,22/03/2018,6928512,961,Assetgrove Lettings Ltd,28820,"Environment, Housing & Regeneration Directorate",Bed and Breakfast Accommodation,G400
http://opendatacommunities.org/id/london-borough-council/sutton,London Borough of Sutton,22/03/2018,6928513,961,Assetgrove Lettings Ltd,28820,"Environment, Housing & Regeneration Directorate",Bed and Breakfast Accommodation,G400
http://opendatacommunities.org/id/london-borough-council/sutton,London Borough of Sutton,22/03/2018,6928514,598.5,Assetgrove Lettings Ltd,28820,"Environment, Housing & Regeneration Directorate",Bed and Breakfast Accommodation,G400
http://opendatacommunities.org/id/london-borough-council/sutton,London Borough of Sutton,22/03/2018,6928515,961,Assetgrove Lettings Ltd,28820,"Environment, Housing & Regeneration Directorate",Bed and Breakfast Accommodation,G400
http://opendatacommunities.org/id/london-borough-council/sutton,London Borough of Sutton,22/03/2018,6928516,"1,236.90",Assetgrove Lettings Ltd,28820,"Environment, Housing & Regeneration Directorate",Bed and Breakfast Accommodation,G400
http://opendatacommunities.org/id/london-borough-council/sutton,London Borough of Sutton,22/03/2018,6928517,"1,236.90",Assetgrove Lettings Ltd,28820,"Environment, Housing & Regeneration Directorate",Bed and Breakfast Accommodation,G400
http://opendatacommunities.org/id/london-borough-council/sutton,London Borough of Sutton,22/03/2018,6928518,"1,236.90",Assetgrove Lettings Ltd,28820,"Environment, Housing & Regeneration Directorate",Bed and Breakfast Accommodation,G400
http://opendatacommunities.org/id/london-borough-council/sutton,London Borough of Sutton,22/03/2018,6928587,992,Assetgrove Lettings Ltd,28820,"Environment, Housing & Regeneration Directorate",Bed and Breakfast Accommodation,G400
http://opendatacommunities.org/id/london-borough-council/sutton,London Borough of Sutton,22/03/2018,6928588,"1,271.00",Assetgrove Lettings Ltd,28820,"Environment, Housing & Regeneration Directorate",Bed and Breakfast Accommodation,G400
http://opendatacommunities.org/id/london-borough-council/sutton,London Borough of Sutton,22/03/2018,6928590,"1,236.90",Assetgrove Lettings Ltd,28820,"Environment, Housing & Regeneration Directorate",Bed and Breakfast Accommodation,G400
http://opendatacommunities.org/id/london-borough-council/sutton,London Borough of Sutton,22/03/2018,6928591,961,Assetgrove Lettings Ltd,28820,"Environment, Housing & Regeneration Directorate",Bed and Breakfast Accommodation,G400
http://opendatacommunities.org/id/london-borough-council/sutton,London Borough of Sutton,22/03/2018,6928592,"1,054.00",Assetgrove Lettings Ltd,28820,"Environment, Housing & Regeneration Directorate",Bed and Breakfast Accommodation,G400
http://opendatacommunities.org/id/london-borough-council/sutton,London Borough of Sutton,22/03/2018,6928593,558,Assetgrove Lettings Ltd,28820,"Environment, Housing & Regeneration Directorate",Bed and Breakfast Accommodation,G400
http://opendatacommunities.org/id/london-borough-council/sutton,London Borough of Sutton,22/03/2018,6928594,638.4,Assetgrove Lettings Ltd,28820,"Environment, Housing & Regeneration Directorate",Bed and Breakfast Accommodation,G400
http://opendatacommunities.org/id/london-borough-council/sutton,London Borough of Sutton,22/03/2018,6928595,496,Assetgrove Lettings Ltd,28820,"Environment, Housing & Regeneration Directorate",Bed and Breakfast Accommodation,G400
http://opendatacommunities.org/id/london-borough-council/sutton,London Borough of Sutton,22/03/2018,6928596,438.9,Assetgrove Lettings Ltd,28820,"Environment, Housing & Regeneration Directorate",Bed and Breakfast Accommodation,G400
http://opendatacommunities.org/id/london-borough-council/sutton,London Borough of Sutton,01/04/2018,6928466,"1,500.00",Association of Independent LSCB Chairs,26097,Peoples Services Directorate,Training - Course Fees,A520
http://opendatacommunities.org/id/london-borough-council/sutton,London Borough of Sutton,20/04/2018,40186079,"3,639.72",Assurance Care Services Ltd T/A Christ the King Residential Care Homes,27458,Peoples Services Directorate,Residential Care - Ext Provider,G310
http://opendatacommunities.org/id/london-borough-council/sutton,London Borough of Sutton,01/04/2018,1253921,600,Astor College,28821,Peoples Services Directorate,Payments to Schools,G065
http://opendatacommunities.org/id/london-borough-council/sutton,London Borough of Sutton,20/04/2018,40185408,"4,580.72",Autism & Aspergers Care Services,10327,Peoples Services Directorate,Residential Care - Ext Provider,G310
http://opendatacommunities.org/id/london-borough-council/sutton,London Borough of Sutton,20/04/2018,40186332,"2,805.00",Avante Ltd (Weybourne),24009,Peoples Services Directorate,Residential Care - Ext Provider,G310
http://opendatacommunities.org/id/london-borough-council/sutton,London Borough of Sutton,01/04/2018,1252574,"50,539.58",Avenue Primary Acadamy,26025,Peoples Services Directorate,Place Funding,G063
http://opendatacommunities.org/id/london-borough-council/sutton,London Borough of Sutton,01/04/2018,1252575,"15,933.33",Avenue Primary Acadamy,26025,Peoples Services Directorate,Top-up Funding,G064
http://opendatacommunities.org/id/london-borough-council/sutton,London Borough of Sutton,17/04/2018,1253298,"50,000.00",Avenue Primary Acadamy,26025,Peoples Services Directorate,Payments to Schools,G065
http://opendatacommunities.org/id/london-borough-council/sutton,London Borough of Sutton,18/12/2017,6929179,"6,119.40",Axiell ALM Ltd,24854,Chief Executive's Directorate,IT Equipment - Repair and Maintenance,F382
http://opendatacommunities.org/id/london-borough-council/sutton,London Borough of Sutton,10/04/2018,6928889,"2,575.00",Axiom Traffic Ltd,23141,"Environment, Housing & Regeneration Directorate",External Fees  - Other,Y130
http://opendatacommunities.org/id/london-borough-council/sutton,London Borough of Sutton,30/04/2018,1253758,"25,564.05",B Mallen T/A The Adventure Pre-School,10072,Peoples Services Directorate,Non-Maintained Childrens' Nurseries - 3 & 4 yr olds,G405
http://opendatacommunities.org/id/london-borough-council/sutton,London Borough of Sutton,21/02/2018,6928376,"10,333.68",Baily Garner LLP,21501,Peoples Services Directorate,External Fees  - Other,Y130
http://opendatacommunities.org/id/london-borough-council/sutton,London Borough of Sutton,20/04/2018,40185419,"3,200.00",Balcombe Care Homes Ltd,10367,Peoples Services Directorate,Nursing Care - Ext Provider,G311
http://opendatacommunities.org/id/london-borough-council/sutton,London Borough of Sutton,30/04/2018,1253704,"3,387.15",Bandon Hill Pre-School,10357,Peoples Services Directorate,Non-Maintained Childrens' Nurseries - 2 Year Olds,G404
http://opendatacommunities.org/id/london-borough-council/sutton,London Borough of Sutton,30/04/2018,1253759,"11,075.96",Bandon Hill Pre-School,10357,Peoples Services Directorate,Non-Maintained Childrens' Nurseries - 3 & 4 yr olds,G405
http://opendatacommunities.org/id/london-borough-council/sutton,London Borough of Sutton,01/04/2018,1252576,"29,458.00",Bandon Hill Primary,10372,Peoples Services Directorate,Top-up Funding,G064
http://opendatacommunities.org/id/london-borough-council/sutton,London Borough of Sutton,01/04/2018,1252577,"257,409.17",Bandon Hill Primary,10372,Peoples Services Directorate,Place Funding,G063
http://opendatacommunities.org/id/london-borough-council/sutton,London Borough of Sutton,01/04/2018,1252578,"8,971.00",Bandon Hill Primary,10372,Peoples Services Directorate,Top-up Funding,G064
http://opendatacommunities.org/id/london-borough-council/sutton,London Borough of Sutton,01/04/2018,1252578,"7,854.16",Bandon Hill Primary,10372,Peoples Services Directorate,Top-up Funding,G064
http://opendatacommunities.org/id/london-borough-council/sutton,London Borough of Sutton,01/04/2018,1252579,"4,167.00",Bandon Hill Primary,10372,Peoples Services Directorate,Payments to Schools,G065
http://opendatacommunities.org/id/london-borough-council/sutton,London Borough of Sutton,24/03/2018,40181945,"3,607.47",Banya,10375,Peoples Services Directorate,Foster Parents,G326
http://opendatacommunities.org/id/london-borough-council/sutton,London Borough of Sutton,24/03/2018,40181966,"3,607.47",Banya,10375,Peoples Services Directorate,Foster Parents,G326
http://opendatacommunities.org/id/london-borough-council/sutton,London Borough of Sutton,17/04/2018,40188437,"1,052.25",Barnardo's,10370,Peoples Services Directorate,Provider Contract Payments,F470
http://opendatacommunities.org/id/london-borough-council/sutton,London Borough of Sutton,17/04/2018,40188440,546,Barnardo's,10370,Peoples Services Directorate,Provider Contract Payments,F470
http://opendatacommunities.org/id/london-borough-council/sutton,London Borough of Sutton,17/04/2018,40188441,588,Barnardo's,10370,Peoples Services Directorate,Provider Contract Payments,F470
http://opendatacommunities.org/id/london-borough-council/sutton,London Borough of Sutton,17/04/2018,40188442,567,Barnardo's,10370,Peoples Services Directorate,Provider Contract Payments,F470
http://opendatacommunities.org/id/london-borough-council/sutton,London Borough of Sutton,17/04/2018,40188443,462,Barnardo's,10370,Peoples Services Directorate,Provider Contract Payments,F470
http://opendatacommunities.org/id/london-borough-council/sutton,London Borough of Sutton,17/04/2018,40188444,552,Barnardo's,10370,Peoples Services Directorate,Provider Contract Payments,F470
http://opendatacommunities.org/id/london-borough-council/sutton,London Borough of Sutton,17/04/2018,40188446,598,Barnardo's,10370,Peoples Services Directorate,Provider Contract Payments,F470
http://opendatacommunities.org/id/london-borough-council/sutton,London Borough of Sutton,17/04/2018,40188447,714,Barnardo's,10370,Peoples Services Directorate,Provider Contract Payments,F470
http://opendatacommunities.org/id/london-borough-council/sutton,London Borough of Sutton,25/04/2018,6929814,420,Barnett Waddingham LLP,28449,Unknown Directorate,Investment Expenses,A931
http://opendatacommunities.org/id/london-borough-council/sutton,London Borough of Sutton,01/04/2018,1252580,"23,100.00",Barrow Hedges Primary School,10383,Peoples Services Directorate,Top-up Funding,G064
http://opendatacommunities.org/id/london-borough-council/sutton,London Borough of Sutton,30/04/2018,6929970,500,Beddington Charity May Fayre,32183,"Environment, Housing & Regeneration Directorate",Other Equipment - Purchase,F015
http://opendatacommunities.org/id/london-borough-council/sutton,London Borough of Sutton,01/04/2018,1252581,"11,146.33",Beddington Infants School,10445,Peoples Services Directorate,Top-up Funding,G064
http://opendatacommunities.org/id/london-borough-council/sutton,London Borough of Sutton,01/04/2018,1252582,"5,271.17",Beddington Park Primary (Academy),25879,Peoples Services Directorate,Top-up Funding,G064
http://opendatacommunities.org/id/london-borough-council/sutton,London Borough of Sutton,30/04/2018,1253724,521.1,Belmont Village Playgroup,17807,Peoples Services Directorate,Non-Maintained Childrens' Nurseries - 2 Year Olds,G404
http://opendatacommunities.org/id/london-borough-council/sutton,London Borough of Sutton,30/04/2018,1253788,"13,198.63",Belmont Village Playgroup,17807,Peoples Services Directorate,Non-Maintained Childrens' Nurseries - 3 & 4 yr olds,G405
http://opendatacommunities.org/id/london-borough-council/sutton,London Borough of Sutton,20/04/2018,6929693,"1,080.00",Benhill & Belmont GP Centre,15665,Chief Executive's Directorate,Provider Contract Payments,F470
http://opendatacommunities.org/id/london-borough-council/sutton,London Borough of Sutton,27/04/2018,6929824,"3,685.00",Benhill & Belmont GP Centre,15665,Chief Executive's Directorate,Provider Contract Payments,F470
http://opendatacommunities.org/id/london-borough-council/sutton,London Borough of Sutton,20/01/2018,40181942,"13,819.96",Benjamin UK Ltd,23244,Peoples Services Directorate,Residential Care-Children,G330
http://opendatacommunities.org/id/london-borough-council/sutton,London Borough of Sutton,20/11/2017,40181943,"15,300.67",Benjamin UK Ltd,23244,Peoples Services Directorate,Residential Care-Children,G330
http://opendatacommunities.org/id/london-borough-council/sutton,London Borough of Sutton,20/12/2017,40181944,"15,300.67",Benjamin UK Ltd,23244,Peoples Services Directorate,Residential Care-Children,G330
http://opendatacommunities.org/id/london-borough-council/sutton,London Borough of Sutton,20/02/2018,40181949,"15,300.67",Benjamin UK Ltd,23244,Peoples Services Directorate,Residential Care-Children,G330
http://opendatacommunities.org/id/london-borough-council/sutton,London Borough of Sutton,30/04/2018,1253805,"2,754.00",Bernadine Willis,24139,Peoples Services Directorate,Non-Maintained Childrens' Nurseries - 3 & 4 yr olds,G405
http://opendatacommunities.org/id/london-borough-council/sutton,London Borough of Sutton,20/04/2018,40186199,"2,332.00",Bertinaley Care Ltd T/A Angel Lodge,27109,Peoples Services Directorate,Interim Placements - Ext Provider,G317
http://opendatacommunities.org/id/london-borough-council/sutton,London Borough of Sutton,23/04/2018,40188108,484,Best at Home Domiciliary Care Services Ltd,30159,Peoples Services Directorate,Home Care,G334
http://opendatacommunities.org/id/london-borough-council/sutton,London Borough of Sutton,23/04/2018,40188111,484,Best at Home Domiciliary Care Services Ltd,30159,Peoples Services Directorate,Home Care,G334
http://opendatacommunities.org/id/london-borough-council/sutton,London Borough of Sutton,23/04/2018,40188115,516,Best at Home Domiciliary Care Services Ltd,30159,Peoples Services Directorate,Home Care,G334
http://opendatacommunities.org/id/london-borough-council/sutton,London Borough of Sutton,06/02/2018,6929833,"4,588.50",Bevan Brittan LLP,28285,"Environment, Housing & Regeneration Directorate",Fees - Other,F299
http://opendatacommunities.org/id/london-borough-council/sutton,London Borough of Sutton,20/04/2018,40185998,"2,226.40",Beverley Lodge Nursing Home,10434,Peoples Services Directorate,Nursing Care - Ext Provider,G311
http://opendatacommunities.org/id/london-borough-council/sutton,London Borough of Sutton,20/04/2018,40186276,"3,380.00",Beverley Lodge Nursing Home,10434,Peoples Services Directorate,Nursing Care - Ext Provider,G311
http://opendatacommunities.org/id/london-borough-council/sutton,London Borough of Sutton,20/04/2018,40186295,"3,400.00",Beverley Lodge Nursing Home,10434,Peoples Services Directorate,Nursing Care - Ext Provider,G311
http://opendatacommunities.org/id/london-borough-council/sutton,London Borough of Sutton,20/04/2018,40186374,"2,800.00",Beverley Lodge Nursing Home,10434,Peoples Services Directorate,Nursing Care - Ext Provider,G311
http://opendatacommunities.org/id/london-borough-council/sutton,London Borough of Sutton,04/04/2018,1252899,"17,465.00",Beyond Autism,17692,Peoples Services Directorate,Independent Schools,G325
http://opendatacommunities.org/id/london-borough-council/sutton,London Borough of Sutton,04/04/2018,1252900,"30,116.66",Beyond Autism,17692,Peoples Services Directorate,Independent Schools,G325
http://opendatacommunities.org/id/london-borough-council/sutton,London Borough of Sutton,04/04/2018,1252901,"22,003.33",Beyond Autism,17692,Peoples Services Directorate,Independent Schools,G325
http://opendatacommunities.org/id/london-borough-council/sutton,London Borough of Sutton,04/04/2018,1252902,"21,783.33",Beyond Autism,17692,Peoples Services Directorate,Independent Schools,G325
http://opendatacommunities.org/id/london-borough-council/sutton,London Borough of Sutton,12/03/2018,40180132,420,Beyond Community Care Services Ltd,29933,Peoples Services Directorate,Home Care,G334
http://opendatacommunities.org/id/london-borough-council/sutton,London Borough of Sutton,19/03/2018,40180133,490,Beyond Community Care Services Ltd,29933,Peoples Services Directorate,Home Care,G334
http://opendatacommunities.org/id/london-borough-council/sutton,London Borough of Sutton,19/03/2018,40180134,490,Beyond Community Care Services Ltd,29933,Peoples Services Directorate,Home Care,G334
http://opendatacommunities.org/id/london-borough-council/sutton,London Borough of Sutton,19/03/2018,40180135,637,Beyond Community Care Services Ltd,29933,Peoples Services Directorate,Home Care,G334
http://opendatacommunities.org/id/london-borough-council/sutton,London Borough of Sutton,19/03/2018,40180136,637,Beyond Community Care Services Ltd,29933,Peoples Services Directorate,Home Care,G334
http://opendatacommunities.org/id/london-borough-council/sutton,London Borough of Sutton,01/04/2018,40182029,759.5,Beyond Community Care Services Ltd,29933,Peoples Services Directorate,Home Care,G334
http://opendatacommunities.org/id/london-borough-council/sutton,London Borough of Sutton,08/04/2018,40182030,637,Beyond Community Care Services Ltd,29933,Peoples Services Directorate,Home Care,G334
http://opendatacommunities.org/id/london-borough-council/sutton,London Borough of Sutton,08/04/2018,40182031,637,Beyond Community Care Services Ltd,29933,Peoples Services Directorate,Home Care,G334
http://opendatacommunities.org/id/london-borough-council/sutton,London Borough of Sutton,08/04/2018,40182032,490,Beyond Community Care Services Ltd,29933,Peoples Services Directorate,Home Care,G334
http://opendatacommunities.org/id/london-borough-council/sutton,London Borough of Sutton,08/04/2018,40182033,490,Beyond Community Care Services Ltd,29933,Peoples Services Directorate,Home Care,G334
http://opendatacommunities.org/id/london-borough-council/sutton,London Borough of Sutton,08/04/2018,40182297,455,Beyond Community Care Services Ltd,29933,Peoples Services Directorate,Home Care,G334
http://opendatacommunities.org/id/london-borough-council/sutton,London Borough of Sutton,08/04/2018,40182299,490,Beyond Community Care Services Ltd,29933,Peoples Services Directorate,Home Care,G334
http://opendatacommunities.org/id/london-borough-council/sutton,London Borough of Sutton,08/04/2018,40182302,476,Beyond Community Care Services Ltd,29933,Peoples Services Directorate,Home Care,G334
http://opendatacommunities.org/id/london-borough-council/sutton,London Borough of Sutton,12/04/2018,40182308,756,Beyond Community Care Services Ltd,29933,Peoples Services Directorate,Home Care,G334
http://opendatacommunities.org/id/london-borough-council/sutton,London Borough of Sutton,12/03/2018,40182309,437.5,Beyond Community Care Services Ltd,29933,Peoples Services Directorate,Home Care,G334
http://opendatacommunities.org/id/london-borough-council/sutton,London Borough of Sutton,15/04/2018,40185065,637,Beyond Community Care Services Ltd,29933,Peoples Services Directorate,Home Care,G334
http://opendatacommunities.org/id/london-borough-council/sutton,London Borough of Sutton,15/04/2018,40185067,490,Beyond Community Care Services Ltd,29933,Peoples Services Directorate,Home Care,G334
http://opendatacommunities.org/id/london-borough-council/sutton,London Borough of Sutton,15/04/2018,40185135,490,Beyond Community Care Services Ltd,29933,Peoples Services Directorate,Home Care,G334
http://opendatacommunities.org/id/london-borough-council/sutton,London Borough of Sutton,22/04/2018,40187915,490,Beyond Community Care Services Ltd,29933,Peoples Services Directorate,Home Care,G334
http://opendatacommunities.org/id/london-borough-council/sutton,London Borough of Sutton,22/04/2018,40187917,490,Beyond Community Care Services Ltd,29933,Peoples Services Directorate,Home Care,G334
http://opendatacommunities.org/id/london-borough-council/sutton,London Borough of Sutton,22/04/2018,40187918,637,Beyond Community Care Services Ltd,29933,Peoples Services Directorate,Home Care,G334
http://opendatacommunities.org/id/london-borough-council/sutton,London Borough of Sutton,30/04/2018,1253705,521.1,Bizzy Bees Day Nursery,10483,Peoples Services Directorate,Non-Maintained Childrens' Nurseries - 2 Year Olds,G404
http://opendatacommunities.org/id/london-borough-council/sutton,London Borough of Sutton,30/04/2018,1253760,"17,023.83",Bizzy Bees Day Nursery,10483,Peoples Services Directorate,Non-Maintained Childrens' Nurseries - 3 & 4 yr olds,G405
http://opendatacommunities.org/id/london-borough-council/sutton,London Borough of Sutton,02/04/2018,6928729,"7,726.57",Bloom Procurement Services Ltd,29692,Chief Executive's Directorate,Contractual Consultant Fees,G430
http://opendatacommunities.org/id/london-borough-council/sutton,London Borough of Sutton,30/04/2018,1253827,459,Boadicea Rose (Billy Bears Playdays),26969,Peoples Services Directorate,Non-Maintained Childrens' Nurseries - 3 & 4 yr olds,G405
http://opendatacommunities.org/id/london-borough-council/sutton,London Borough of Sutton,03/04/2018,6928531,"1,925.00",Brennan & Scott,25733,Chief Executive's Directorate,Provider Contract Payments,F470
http://opendatacommunities.org/id/london-borough-council/sutton,London Borough of Sutton,20/04/2018,40186028,"3,360.00",Bridge House Care Centre,10620,Peoples Services Directorate,Nursing Care - Ext Provider,G311
http://opendatacommunities.org/id/london-borough-council/sutton,London Borough of Sutton,20/04/2018,40186035,971.43,Bridge House Care Centre,10620,Peoples Services Directorate,Nursing Care - Short Term Placements,G328
http://opendatacommunities.org/id/london-borough-council/sutton,London Borough of Sutton,20/04/2018,40186040,"3,600.00",Bridge House Care Centre,10620,Peoples Services Directorate,Nursing Care - Ext Provider,G311
http://opendatacommunities.org/id/london-borough-council/sutton,London Borough of Sutton,20/04/2018,40186045,"2,428.57",Bridge House Care Centre,10620,Peoples Services Directorate,Nursing Care - Short Term Placements,G328
http://opendatacommunities.org/id/london-borough-council/sutton,London Borough of Sutton,20/04/2018,40186092,"1,996.00",Bridge House Care Centre,10620,Peoples Services Directorate,Nursing Care - Ext Provider,G311
http://opendatacommunities.org/id/london-borough-council/sutton,London Borough of Sutton,20/04/2018,40186098,"3,380.00",Bridge House Care Centre,10620,Peoples Services Directorate,Nursing Care - Ext Provider,G311
http://opendatacommunities.org/id/london-borough-council/sutton,London Borough of Sutton,20/04/2018,40186169,"1,942.48",Bridge House Care Centre,10620,Peoples Services Directorate,Nursing Care - Ext Provider,G311
http://opendatacommunities.org/id/london-borough-council/sutton,London Borough of Sutton,20/04/2018,40186217,"3,000.00",Bridge House Care Centre,10620,Peoples Services Directorate,Nursing Care - Ext Provider,G311
http://opendatacommunities.org/id/london-borough-council/sutton,London Borough of Sutton,20/04/2018,40186296,"3,200.00",Bridge House Care Centre,10620,Peoples Services Directorate,Nursing Care - Ext Provider,G311
http://opendatacommunities.org/id/london-borough-council/sutton,London Borough of Sutton,20/04/2018,40186323,"2,034.96",Bridge House Care Centre,10620,Peoples Services Directorate,Nursing Care - Ext Provider,G311
http://opendatacommunities.org/id/london-borough-council/sutton,London Borough of Sutton,20/04/2018,40186368,"2,033.92",Bridge House Care Centre,10620,Peoples Services Directorate,Nursing Care - Ext Provider,G311
http://opendatacommunities.org/id/london-borough-council/sutton,London Borough of Sutton,11/04/2018,1253290,533.2,Brit School,10597,Peoples Services Directorate,Independent Schools,G325
http://opendatacommunities.org/id/london-borough-council/sutton,London Borough of Sutton,11/04/2018,1253291,849.27,Brit School,10597,Peoples Services Directorate,Independent Schools,G325
http://opendatacommunities.org/id/london-borough-council/sutton,London Borough of Sutton,20/04/2018,40185997,"2,439.36",British Home & Hospital For Incurables,10589,Peoples Services Directorate,Nursing Care - Ext Provider,G311
http://opendatacommunities.org/id/london-borough-council/sutton,London Borough of Sutton,20/04/2018,40186366,"2,710.40",British Home & Hospital For Incurables,10589,Peoples Services Directorate,Nursing Care - Ext Provider,G311
http://opendatacommunities.org/id/london-borough-council/sutton,London Borough of Sutton,09/04/2018,6928876,888,British Parking Association,10607,"Environment, Housing & Regeneration Directorate",Subscriptions - General,F450
http://opendatacommunities.org/id/london-borough-council/sutton,London Borough of Sutton,20/04/2018,40186026,"3,380.00",Broadlands Nursing Home,10586,Peoples Services Directorate,Nursing Care - Ext Provider,G311
http://opendatacommunities.org/id/london-borough-council/sutton,London Borough of Sutton,20/04/2018,40186034,"3,380.00",Broadlands Nursing Home,10586,Peoples Services Directorate,Nursing Care - Ext Provider,G311
http://opendatacommunities.org/id/london-borough-council/sutton,London Borough of Sutton,20/04/2018,40186214,"3,277.16",Broadlands Nursing Home,10586,Peoples Services Directorate,Nursing Care - Ext Provider,G311
http://opendatacommunities.org/id/london-borough-council/sutton,London Borough of Sutton,20/04/2018,40186252,"1,835.60",Broadlands Nursing Home,10586,Peoples Services Directorate,Nursing Care - Ext Provider,G311
http://opendatacommunities.org/id/london-borough-council/sutton,London Borough of Sutton,20/04/2018,40186264,"2,945.00",Broadlands Nursing Home,10586,Peoples Services Directorate,Nursing Care - Ext Provider,G311
http://opendatacommunities.org/id/london-borough-council/sutton,London Borough of Sutton,20/04/2018,40186200,"3,180.00",Broadreach House Charity,28699,Peoples Services Directorate,Interim Placements - Ext Provider,G317
http://opendatacommunities.org/id/london-borough-council/sutton,London Borough of Sutton,16/04/2018,6929277,"1,680.00",Bromley & Croydon Women's Aid,26394,Peoples Services Directorate,C.C.A Rent & Utilities,H211
http://opendatacommunities.org/id/london-borough-council/sutton,London Borough of Sutton,29/03/2018,1253112,"3,423.00",Brunswick Cars 9761/1961276/Loc09,10611,Peoples Services Directorate,Hired Peoples Transport (Children),E072
http://opendatacommunities.org/id/london-borough-council/sutton,London Borough of Sutton,29/03/2018,1253113,"10,200.00",Brunswick Cars 9761/1961276/Loc09,10611,Peoples Services Directorate,Hired Peoples Transport (Children),E072
http://opendatacommunities.org/id/london-borough-council/sutton,London Borough of Sutton,29/03/2018,1253114,"5,650.00",Brunswick Cars 9761/1961276/Loc09,10611,Peoples Services Directorate,Hired Peoples Transport (Children),E072
http://opendatacommunities.org/id/london-borough-council/sutton,London Borough of Sutton,29/03/2018,1253115,"3,675.00",Brunswick Cars 9761/1961276/Loc09,10611,Peoples Services Directorate,Hired Peoples Transport (Children),E072
http://opendatacommunities.org/id/london-borough-council/sutton,London Borough of Sutton,29/03/2018,1253116,"7,077.00",Brunswick Cars 9761/1961276/Loc09,10611,Peoples Services Directorate,Hired Peoples Transport (Children),E072
http://opendatacommunities.org/id/london-borough-council/sutton,London Borough of Sutton,29/03/2018,1253118,"6,195.00",Brunswick Cars 9761/1961276/Loc09,10611,Peoples Services Directorate,Hired Peoples Transport (Children),E072
http://opendatacommunities.org/id/london-borough-council/sutton,London Borough of Sutton,29/03/2018,1253119,"5,607.00",Brunswick Cars 9761/1961276/Loc09,10611,Peoples Services Directorate,Hired Peoples Transport (Children),E072
http://opendatacommunities.org/id/london-borough-council/sutton,London Borough of Sutton,29/03/2018,1253120,"4,794.00",Brunswick Cars 9761/1961276/Loc09,10611,Peoples Services Directorate,Hired Peoples Transport (Children),E072
http://opendatacommunities.org/id/london-borough-council/sutton,London Borough of Sutton,29/03/2018,1253121,"4,578.00",Brunswick Cars 9761/1961276/Loc09,10611,Peoples Services Directorate,Hired Peoples Transport (Children),E072
http://opendatacommunities.org/id/london-borough-council/sutton,London Borough of Sutton,29/03/2018,1253122,"7,161.00",Brunswick Cars 9761/1961276/Loc09,10611,Peoples Services Directorate,Hired Peoples Transport (Children),E072
http://opendatacommunities.org/id/london-borough-council/sutton,London Borough of Sutton,29/03/2018,1253123,"8,568.00",Brunswick Cars 9761/1961276/Loc09,10611,Peoples Services Directorate,Hired Peoples Transport (Children),E072
http://opendatacommunities.org/id/london-borough-council/sutton,London Borough of Sutton,29/03/2018,1253124,"2,536.00",Brunswick Cars 9761/1961276/Loc09,10611,Peoples Services Directorate,Hired Peoples Transport (Children),E072
http://opendatacommunities.org/id/london-borough-council/sutton,London Borough of Sutton,29/03/2018,1253125,"2,184.00",Brunswick Cars 9761/1961276/Loc09,10611,Peoples Services Directorate,Hired Peoples Transport (Children),E072
http://opendatacommunities.org/id/london-borough-council/sutton,London Borough of Sutton,29/03/2018,1253126,"4,137.00",Brunswick Cars 9761/1961276/Loc09,10611,Peoples Services Directorate,Hired Peoples Transport (Children),E072
http://opendatacommunities.org/id/london-borough-council/sutton,London Borough of Sutton,29/03/2018,1253127,"3,286.50",Brunswick Cars 9761/1961276/Loc09,10611,Peoples Services Directorate,Hired Peoples Transport (Children),E072
http://opendatacommunities.org/id/london-borough-council/sutton,London Borough of Sutton,29/03/2018,1253128,"5,187.00",Brunswick Cars 9761/1961276/Loc09,10611,Peoples Services Directorate,Hired Peoples Transport (Children),E072
http://opendatacommunities.org/id/london-borough-council/sutton,London Borough of Sutton,29/03/2018,1253129,"3,640.00",Brunswick Cars 9761/1961276/Loc09,10611,Peoples Services Directorate,Hired Peoples Transport (Children),E072
http://opendatacommunities.org/id/london-borough-council/sutton,London Borough of Sutton,29/03/2018,1253130,"1,938.00",Brunswick Cars 9761/1961276/Loc09,10611,Peoples Services Directorate,Hired Peoples Transport (Children),E072
http://opendatacommunities.org/id/london-borough-council/sutton,London Borough of Sutton,29/03/2018,1253131,"5,178.00",Brunswick Cars 9761/1961276/Loc09,10611,Peoples Services Directorate,Hired Peoples Transport (Children),E072
http://opendatacommunities.org/id/london-borough-council/sutton,London Borough of Sutton,29/03/2018,1253132,"4,245.00",Brunswick Cars 9761/1961276/Loc09,10611,Peoples Services Directorate,Hired Peoples Transport (Children),E072
http://opendatacommunities.org/id/london-borough-council/sutton,London Borough of Sutton,29/03/2018,1253133,"2,667.00",Brunswick Cars 9761/1961276/Loc09,10611,Peoples Services Directorate,Hired Peoples Transport (Children),E072
http://opendatacommunities.org/id/london-borough-council/sutton,London Borough of Sutton,29/03/2018,1253134,"2,373.00",Brunswick Cars 9761/1961276/Loc09,10611,Peoples Services Directorate,Hired Peoples Transport (Children),E072
http://opendatacommunities.org/id/london-borough-council/sutton,London Borough of Sutton,29/03/2018,1253135,"3,740.00",Brunswick Cars 9761/1961276/Loc09,10611,Peoples Services Directorate,Hired Peoples Transport (Children),E072
http://opendatacommunities.org/id/london-borough-council/sutton,London Borough of Sutton,29/03/2018,1253136,"4,480.00",Brunswick Cars 9761/1961276/Loc09,10611,Peoples Services Directorate,Hired Peoples Transport (Children),E072
http://opendatacommunities.org/id/london-borough-council/sutton,London Borough of Sutton,29/03/2018,1253137,"4,392.00",Brunswick Cars 9761/1961276/Loc09,10611,Peoples Services Directorate,Hired Peoples Transport (Children),E072
http://opendatacommunities.org/id/london-borough-council/sutton,London Borough of Sutton,29/03/2018,1253138,"7,110.00",Brunswick Cars 9761/1961276/Loc09,10611,Peoples Services Directorate,Hired Peoples Transport (Children),E072
http://opendatacommunities.org/id/london-borough-council/sutton,London Borough of Sutton,29/03/2018,1253139,"2,980.00",Brunswick Cars 9761/1961276/Loc09,10611,Peoples Services Directorate,Hired Peoples Transport (Children),E072
http://opendatacommunities.org/id/london-borough-council/sutton,London Borough of Sutton,29/03/2018,1253140,"1,768.00",Brunswick Cars 9761/1961276/Loc09,10611,Peoples Services Directorate,Hired Peoples Transport (Children),E072
http://opendatacommunities.org/id/london-borough-council/sutton,London Borough of Sutton,29/03/2018,1253141,"4,740.00",Brunswick Cars 9761/1961276/Loc09,10611,Peoples Services Directorate,Hired Peoples Transport (Children),E072
http://opendatacommunities.org/id/london-borough-council/sutton,London Borough of Sutton,29/03/2018,1253142,"4,410.00",Brunswick Cars 9761/1961276/Loc09,10611,Peoples Services Directorate,Hired Peoples Transport (Children),E072
http://opendatacommunities.org/id/london-borough-council/sutton,London Borough of Sutton,29/03/2018,1253358,"4,410.00",Brunswick Cars 9761/1961276/Loc09,10611,Peoples Services Directorate,Hired Peoples Transport (Children),E072
http://opendatacommunities.org/id/london-borough-council/sutton,London Borough of Sutton,29/03/2018,1253359,"2,499.00",Brunswick Cars 9761/1961276/Loc09,10611,Peoples Services Directorate,Hired Peoples Transport (Children),E072
http://opendatacommunities.org/id/london-borough-council/sutton,London Borough of Sutton,29/03/2018,1253360,"5,840.00",Brunswick Cars 9761/1961276/Loc09,10611,Peoples Services Directorate,Hired Peoples Transport (Children),E072
http://opendatacommunities.org/id/london-borough-council/sutton,London Borough of Sutton,29/03/2018,1253361,"3,813.00",Brunswick Cars 9761/1961276/Loc09,10611,Peoples Services Directorate,Hired Peoples Transport (Children),E072
http://opendatacommunities.org/id/london-borough-council/sutton,London Borough of Sutton,29/03/2018,1253362,"4,130.00",Brunswick Cars 9761/1961276/Loc09,10611,Peoples Services Directorate,Hired Peoples Transport (Children),E072
http://opendatacommunities.org/id/london-borough-council/sutton,London Borough of Sutton,29/03/2018,1253363,"4,095.00",Brunswick Cars 9761/1961276/Loc09,10611,Peoples Services Directorate,Hired Peoples Transport (Children),E072
http://opendatacommunities.org/id/london-borough-council/sutton,London Borough of Sutton,29/03/2018,1253364,"1,978.00",Brunswick Cars 9761/1961276/Loc09,10611,Peoples Services Directorate,Hired Peoples Transport (Children),E072
http://opendatacommunities.org/id/london-borough-council/sutton,London Borough of Sutton,29/03/2018,1253365,"4,710.00",Brunswick Cars 9761/1961276/Loc09,10611,Peoples Services Directorate,Hired Peoples Transport (Children),E072
http://opendatacommunities.org/id/london-borough-council/sutton,London Borough of Sutton,29/03/2018,1253366,"5,160.00",Brunswick Cars 9761/1961276/Loc09,10611,Peoples Services Directorate,Hired Peoples Transport (Children),E072
http://opendatacommunities.org/id/london-borough-council/sutton,London Borough of Sutton,29/03/2018,1253367,"1,806.00",Brunswick Cars 9761/1961276/Loc09,10611,Peoples Services Directorate,Hired Peoples Transport (Children),E072
http://opendatacommunities.org/id/london-borough-council/sutton,London Borough of Sutton,29/03/2018,1253368,"1,880.00",Brunswick Cars 9761/1961276/Loc09,10611,Peoples Services Directorate,Hired Peoples Transport (Children),E072
http://opendatacommunities.org/id/london-borough-council/sutton,London Borough of Sutton,29/03/2018,1253369,"1,960.00",Brunswick Cars 9761/1961276/Loc09,10611,Peoples Services Directorate,Hired Peoples Transport (Children),E072
http://opendatacommunities.org/id/london-borough-council/sutton,London Borough of Sutton,29/03/2018,1253370,"3,192.00",Brunswick Cars 9761/1961276/Loc09,10611,Peoples Services Directorate,Hired Peoples Transport (Children),E072
http://opendatacommunities.org/id/london-borough-council/sutton,London Borough of Sutton,29/03/2018,1253371,"4,154.00",Brunswick Cars 9761/1961276/Loc09,10611,Peoples Services Directorate,Hired Peoples Transport (Children),E072
http://opendatacommunities.org/id/london-borough-council/sutton,London Borough of Sutton,29/03/2018,1253372,"3,885.00",Brunswick Cars 9761/1961276/Loc09,10611,Peoples Services Directorate,Hired Peoples Transport (Children),E072
http://opendatacommunities.org/id/london-borough-council/sutton,London Borough of Sutton,29/03/2018,1253373,"2,360.00",Brunswick Cars 9761/1961276/Loc09,10611,Peoples Services Directorate,Hired Peoples Transport (Children),E072
http://opendatacommunities.org/id/london-borough-council/sutton,London Borough of Sutton,29/03/2018,1253374,"2,520.00",Brunswick Cars 9761/1961276/Loc09,10611,Peoples Services Directorate,Hired Peoples Transport (Children),E072
http://opendatacommunities.org/id/london-borough-council/sutton,London Borough of Sutton,29/03/2018,1253375,"2,247.00",Brunswick Cars 9761/1961276/Loc09,10611,Peoples Services Directorate,Hired Peoples Transport (Children),E072
http://opendatacommunities.org/id/london-borough-council/sutton,London Borough of Sutton,29/03/2018,1253376,"1,701.00",Brunswick Cars 9761/1961276/Loc09,10611,Peoples Services Directorate,Hired Peoples Transport (Children),E072
http://opendatacommunities.org/id/london-borough-council/sutton,London Borough of Sutton,29/03/2018,1253377,"2,499.00",Brunswick Cars 9761/1961276/Loc09,10611,Peoples Services Directorate,Hired Peoples Transport (Children),E072
http://opendatacommunities.org/id/london-borough-council/sutton,London Borough of Sutton,29/03/2018,1253378,"2,583.00",Brunswick Cars 9761/1961276/Loc09,10611,Peoples Services Directorate,Hired Peoples Transport (Children),E072
http://opendatacommunities.org/id/london-borough-council/sutton,London Borough of Sutton,29/03/2018,1253379,"2,331.00",Brunswick Cars 9761/1961276/Loc09,10611,Peoples Services Directorate,Hired Peoples Transport (Children),E072
http://opendatacommunities.org/id/london-borough-council/sutton,London Borough of Sutton,29/03/2018,1253380,"4,725.00",Brunswick Cars 9761/1961276/Loc09,10611,Peoples Services Directorate,Hired Peoples Transport (Children),E072
http://opendatacommunities.org/id/london-borough-council/sutton,London Borough of Sutton,29/03/2018,1253381,"6,880.00",Brunswick Cars 9761/1961276/Loc09,10611,Peoples Services Directorate,Hired Peoples Transport (Children),E072
http://opendatacommunities.org/id/london-borough-council/sutton,London Borough of Sutton,29/03/2018,1253382,592,Brunswick Cars 9761/1961276/Loc09,10611,Peoples Services Directorate,Hired Peoples Transport (Children),E072
http://opendatacommunities.org/id/london-borough-council/sutton,London Borough of Sutton,29/03/2018,1253383,990,Brunswick Cars 9761/1961276/Loc09,10611,Peoples Services Directorate,Hired Peoples Transport (Children),E072
http://opendatacommunities.org/id/london-borough-council/sutton,London Borough of Sutton,29/03/2018,1253384,"2,108.00",Brunswick Cars 9761/1961276/Loc09,10611,Peoples Services Directorate,Hired Peoples Transport (Children),E072
http://opendatacommunities.org/id/london-borough-council/sutton,London Borough of Sutton,29/03/2018,1253385,"2,688.00",Brunswick Cars 9761/1961276/Loc09,10611,Peoples Services Directorate,Hired Peoples Transport (Children),E072
http://opendatacommunities.org/id/london-borough-council/sutton,London Borough of Sutton,29/03/2018,1253386,"3,150.00",Brunswick Cars 9761/1961276/Loc09,10611,Peoples Services Directorate,Hired Peoples Transport (Children),E072
http://opendatacommunities.org/id/london-borough-council/sutton,London Borough of Sutton,29/03/2018,1253387,444,Brunswick Cars 9761/1961276/Loc09,10611,Peoples Services Directorate,Hired Peoples Transport (Children),E072
http://opendatacommunities.org/id/london-borough-council/sutton,London Borough of Sutton,29/03/2018,1253388,"5,166.00",Brunswick Cars 9761/1961276/Loc09,10611,Peoples Services Directorate,Hired Peoples Transport (Children),E072
http://opendatacommunities.org/id/london-borough-council/sutton,London Borough of Sutton,29/03/2018,1253389,969,Brunswick Cars 9761/1961276/Loc09,10611,Peoples Services Directorate,Hired Peoples Transport (Children),E072
http://opendatacommunities.org/id/london-borough-council/sutton,London Borough of Sutton,29/03/2018,1253390,"1,995.00",Brunswick Cars 9761/1961276/Loc09,10611,Peoples Services Directorate,Hired Peoples Transport (Children),E072
http://opendatacommunities.org/id/london-borough-council/sutton,London Borough of Sutton,29/03/2018,1253391,"2,478.00",Brunswick Cars 9761/1961276/Loc09,10611,Peoples Services Directorate,Hired Peoples Transport (Children),E072
http://opendatacommunities.org/id/london-borough-council/sutton,London Borough of Sutton,20/03/2018,6928564,"1,085.00",Buller Hotel,23493,"Environment, Housing & Regeneration Directorate",Bed and Breakfast Accommodation,G400
http://opendatacommunities.org/id/london-borough-council/sutton,London Borough of Sutton,20/03/2018,6928565,"1,085.00",Buller Hotel,23493,"Environment, Housing & Regeneration Directorate",Bed and Breakfast Accommodation,G400
http://opendatacommunities.org/id/london-borough-council/sutton,London Borough of Sutton,20/03/2018,6928566,"1,085.00",Buller Hotel,23493,"Environment, Housing & Regeneration Directorate",Bed and Breakfast Accommodation,G400
http://opendatacommunities.org/id/london-borough-council/sutton,London Borough of Sutton,20/03/2018,6928567,992,Buller Hotel,23493,"Environment, Housing & Regeneration Directorate",Bed and Breakfast Accommodation,G400
http://opendatacommunities.org/id/london-borough-council/sutton,London Borough of Sutton,20/03/2018,6928568,700,Buller Hotel,23493,"Environment, Housing & Regeneration Directorate",Bed and Breakfast Accommodation,G400
http://opendatacommunities.org/id/london-borough-council/sutton,London Borough of Sutton,20/03/2018,6928569,"1,023.00",Buller Hotel,23493,"Environment, Housing & Regeneration Directorate",Bed and Breakfast Accommodation,G400
http://opendatacommunities.org/id/london-borough-council/sutton,London Borough of Sutton,20/03/2018,6928571,700,Buller Hotel,23493,"Environment, Housing & Regeneration Directorate",Bed and Breakfast Accommodation,G400
http://opendatacommunities.org/id/london-borough-council/sutton,London Borough of Sutton,20/03/2018,6928650,"1,085.00",Buller Hotel,23493,"Environment, Housing & Regeneration Directorate",Bed and Breakfast Accommodation,G400
http://opendatacommunities.org/id/london-borough-council/sutton,London Borough of Sutton,30/04/2018,1253706,"3,126.60",Bumpsa Daisies Nurserys,10727,Peoples Services Directorate,Non-Maintained Childrens' Nurseries - 2 Year Olds,G404
http://opendatacommunities.org/id/london-borough-council/sutton,London Borough of Sutton,30/04/2018,1253761,"25,842.25",Bumpsa Daisies Nurserys,10727,Peoples Services Directorate,Non-Maintained Childrens' Nurseries - 3 & 4 yr olds,G405
http://opendatacommunities.org/id/london-borough-council/sutton,London Borough of Sutton,22/03/2018,5016360,620.2,Bupa Care Services,10175,Peoples Services Directorate,Nursing Care - 3rd party top up payment,G360
http://opendatacommunities.org/id/london-borough-council/sutton,London Borough of Sutton,22/03/2018,5016361,"-6,314.29",Bupa Care Services,10175,Peoples Services Directorate,Nursing Care - Ext Provider,G311
http://opendatacommunities.org/id/london-borough-council/sutton,London Borough of Sutton,22/03/2018,5016361,"1,151.80",Bupa Care Services,10175,Peoples Services Directorate,Nursing Care - 3rd party top up payment,G360
http://opendatacommunities.org/id/london-borough-council/sutton,London Borough of Sutton,20/04/2018,40186201,"3,400.00",Bupa Care Services,10175,Peoples Services Directorate,Nursing Care - Ext Provider,G311
http://opendatacommunities.org/id/london-borough-council/sutton,London Borough of Sutton,20/04/2018,40185422,"2,439.56",Burlington Nursing Home Ltd,19236,Peoples Services Directorate,Nursing Care - Ext Provider,G311
http://opendatacommunities.org/id/london-borough-council/sutton,London Borough of Sutton,30/04/2018,1253803,"38,659.52",Busy Bees Day Nurseries Ltd - Cheam,24079,Peoples Services Directorate,Non-Maintained Childrens' Nurseries - 3 & 4 yr olds,G405
http://opendatacommunities.org/id/london-borough-council/sutton,London Borough of Sutton,30/04/2018,1253804,"39,005.18",Busy Bees Day Nursery at Carshalton,24082,Peoples Services Directorate,Non-Maintained Childrens' Nurseries - 3 & 4 yr olds,G405
http://opendatacommunities.org/id/london-borough-council/sutton,London Borough of Sutton,20/04/2018,40186054,"7,824.28",Butterfly's Care Homes Ltd,28860,Peoples Services Directorate,Residential Care - Ext Provider,G310
http://opendatacommunities.org/id/london-borough-council/sutton,London Borough of Sutton,01/03/2018,40181947,"4,428.66",Caldecott Fostering Ltd,26730,Peoples Services Directorate,Foster Parents,G326
http://opendatacommunities.org/id/london-borough-council/sutton,London Borough of Sutton,12/03/2018,1252713,"17,653.44",Cambian Asperger Syndrome Services Ltd,12082,Peoples Services Directorate,Independent Schools,G325
http://opendatacommunities.org/id/london-borough-council/sutton,London Borough of Sutton,20/04/2018,40186381,"4,705.24",Cambian Asperger Syndrome Services Ltd,12082,Peoples Services Directorate,Residential Care - Ext Provider,G310
http://opendatacommunities.org/id/london-borough-council/sutton,London Borough of Sutton,20/03/2018,40181968,"17,928.00",Cambian Childcare Ltd,26117,Peoples Services Directorate,Residential Care-Children,G330
http://opendatacommunities.org/id/london-borough-council/sutton,London Borough of Sutton,20/04/2018,40186068,"3,821.84",Canterbury Oast Trust,10755,Peoples Services Directorate,Residential Care - Ext Provider,G310
http://opendatacommunities.org/id/london-borough-council/sutton,London Borough of Sutton,16/03/2018,6928710,"6,285.75",Capita Business Services Ltd,10780,Chief Executive's Directorate,IT Equipment - Repair and Maintenance,F382
http://opendatacommunities.org/id/london-borough-council/sutton,London Borough of Sutton,28/03/2018,6928712,"13,122.50",Capita Business Services Ltd,10780,Resources Directorate,Purchase of IT Equipment,F380
http://opendatacommunities.org/id/london-borough-council/sutton,London Borough of Sutton,01/04/2018,6929224,"11,770.93",Capita Business Services Ltd,10780,Peoples Services Directorate,Fees - Computer Software,F384
http://opendatacommunities.org/id/london-borough-council/sutton,London Borough of Sutton,29/03/2018,6928682,800,Capital Traffic Management Ltd,24034,"Environment, Housing & Regeneration Directorate",Surveys & Analysis,Y685
http://opendatacommunities.org/id/london-borough-council/sutton,London Borough of Sutton,16/04/2018,6929651,647.5,Capital Traffic Management Ltd,24034,"Environment, Housing & Regeneration Directorate","Surveys, Trial Holes Etc",Y200
http://opendatacommunities.org/id/london-borough-council/sutton,London Borough of Sutton,16/04/2018,6929652,647.5,Capital Traffic Management Ltd,24034,"Environment, Housing & Regeneration Directorate","Surveys, Trial Holes Etc",Y200
http://opendatacommunities.org/id/london-borough-council/sutton,London Borough of Sutton,20/04/2018,40186173,"2,267.40",Care Base(Redhill)Ltd t/a Acorn Court Care Home,24206,Peoples Services Directorate,Residential Care - Ext Provider,G310
http://opendatacommunities.org/id/london-borough-council/sutton,London Borough of Sutton,01/04/2018,6928678,"5,585.08",Care Connections Ltd,10798,Peoples Services Directorate,Supported Living - Ext Provider,G306
http://opendatacommunities.org/id/london-borough-council/sutton,London Borough of Sutton,20/04/2018,40186006,"3,053.24",Care Direct Uk Ltd  (David House),27080,Peoples Services Directorate,Residential Care - Ext Provider,G310
http://opendatacommunities.org/id/london-borough-council/sutton,London Borough of Sutton,20/04/2018,40186030,"3,080.00",Care Direct Uk Ltd  (David House),27080,Peoples Services Directorate,Residential Care - Ext Provider,G310
http://opendatacommunities.org/id/london-borough-council/sutton,London Borough of Sutton,31/03/2018,6928646,"1,453.20",Care Monitoring 2000 Ltd,20716,Resources Directorate,Internal Fees - Project Management,Y180
http://opendatacommunities.org/id/london-borough-council/sutton,London Borough of Sutton,20/04/2018,40186236,"3,800.00",Care UK Homecare Ltd,10853,Peoples Services Directorate,Nursing Care - Ext Provider,G311
http://opendatacommunities.org/id/london-borough-council/sutton,London Borough of Sutton,20/04/2018,40186348,"4,000.00",Care UK Homecare Ltd,10853,Peoples Services Directorate,Nursing Care - Ext Provider,G311
http://opendatacommunities.org/id/london-borough-council/sutton,London Borough of Sutton,01/02/2018,40179930,"4,732.00",Care Unlimited Domcare Ltd,28906,Peoples Services Directorate,Supported Living - Ext Provider,G306
http://opendatacommunities.org/id/london-borough-council/sutton,London Borough of Sutton,01/03/2018,40182280,"4,060.00",Care Unlimited Domcare Ltd,28906,Peoples Services Directorate,Supported Living - Ext Provider,G306
http://opendatacommunities.org/id/london-borough-council/sutton,London Borough of Sutton,01/03/2018,40182281,"4,060.00",Care Unlimited Domcare Ltd,28906,Peoples Services Directorate,Supported Living - Ext Provider,G306
http://opendatacommunities.org/id/london-borough-council/sutton,London Borough of Sutton,01/03/2018,40182282,"4,060.00",Care Unlimited Domcare Ltd,28906,Peoples Services Directorate,Supported Living - Ext Provider,G306
http://opendatacommunities.org/id/london-borough-council/sutton,London Borough of Sutton,01/03/2018,40182283,"4,060.00",Care Unlimited Domcare Ltd,28906,Peoples Services Directorate,Supported Living - Ext Provider,G306
http://opendatacommunities.org/id/london-borough-council/sutton,London Borough of Sutton,01/03/2018,40182284,"4,060.00",Care Unlimited Domcare Ltd,28906,Peoples Services Directorate,Supported Living - Ext Provider,G306
http://opendatacommunities.org/id/london-borough-council/sutton,London Borough of Sutton,01/03/2018,40182646,"4,732.00",Care Unlimited Domcare Ltd,28906,Peoples Services Directorate,Supported Living - Ext Provider,G306
http://opendatacommunities.org/id/london-borough-council/sutton,London Borough of Sutton,20/04/2018,40186014,"1,780.00",Care Unlimited Group Ltd,10774,Peoples Services Directorate,Residential Care - Ext Provider,G310
http://opendatacommunities.org/id/london-borough-council/sutton,London Borough of Sutton,20/04/2018,40186094,"1,692.00",Care Unlimited Group Ltd,10774,Peoples Services Directorate,Residential Care - Ext Provider,G310
http://opendatacommunities.org/id/london-borough-council/sutton,London Borough of Sutton,20/04/2018,40186184,"10,200.00",Care Unlimited Group Ltd,10774,Peoples Services Directorate,Interim Placements - Ext Provider,G317
http://opendatacommunities.org/id/london-borough-council/sutton,London Borough of Sutton,20/04/2018,40186352,942.86,Care Unlimited Group Ltd,10774,Peoples Services Directorate,Interim Placements - Ext Provider,G317
http://opendatacommunities.org/id/london-borough-council/sutton,London Borough of Sutton,25/03/2018,40180063,712.08,Caremark (Sutton),25541,Peoples Services Directorate,Home Care,G334
http://opendatacommunities.org/id/london-borough-council/sutton,London Borough of Sutton,25/03/2018,40180071,665.13,Caremark (Sutton),25541,Peoples Services Directorate,Home Care,G334
http://opendatacommunities.org/id/london-borough-council/sutton,London Borough of Sutton,25/03/2018,40180076,712.08,Caremark (Sutton),25541,Peoples Services Directorate,Home Care,G334
http://opendatacommunities.org/id/london-borough-council/sutton,London Borough of Sutton,01/04/2018,40182141,712.08,Caremark (Sutton),25541,Peoples Services Directorate,Home Care,G334
http://opendatacommunities.org/id/london-borough-council/sutton,London Borough of Sutton,01/04/2018,40182159,633.83,Caremark (Sutton),25541,Peoples Services Directorate,Home Care,G334
http://opendatacommunities.org/id/london-borough-council/sutton,London Borough of Sutton,01/04/2018,40182168,712.08,Caremark (Sutton),25541,Peoples Services Directorate,Home Care,G334
http://opendatacommunities.org/id/london-borough-council/sutton,London Borough of Sutton,08/04/2018,40185035,712.08,Caremark (Sutton),25541,Peoples Services Directorate,Home Care,G334
http://opendatacommunities.org/id/london-borough-council/sutton,London Borough of Sutton,08/04/2018,40185037,633.83,Caremark (Sutton),25541,Peoples Services Directorate,Home Care,G334
http://opendatacommunities.org/id/london-borough-council/sutton,London Borough of Sutton,08/04/2018,40185044,712.08,Caremark (Sutton),25541,Peoples Services Directorate,Home Care,G334
http://opendatacommunities.org/id/london-borough-council/sutton,London Borough of Sutton,31/03/2018,6929357,"1,200.50",Caretech,10783,Chief Executive's Directorate,Furniture - Repairs and Maintenance,F081
http://opendatacommunities.org/id/london-borough-council/sutton,London Borough of Sutton,20/04/2018,40186053,"5,270.48",Caretech Community Services Ltd,10791,Peoples Services Directorate,Residential Care - Ext Provider,G310
http://opendatacommunities.org/id/london-borough-council/sutton,London Borough of Sutton,20/04/2018,40186090,"5,270.48",Caretech Community Services Ltd,10791,Peoples Services Directorate,Residential Care - Ext Provider,G310
http://opendatacommunities.org/id/london-borough-council/sutton,London Borough of Sutton,20/04/2018,40186206,"5,405.88",Caretech Community Services Ltd,10791,Peoples Services Directorate,Residential Care - Ext Provider,G310
http://opendatacommunities.org/id/london-borough-council/sutton,London Borough of Sutton,20/04/2018,40186367,"5,270.48",Caretech Community Services Ltd,10791,Peoples Services Directorate,Residential Care - Ext Provider,G310
http://opendatacommunities.org/id/london-borough-council/sutton,London Borough of Sutton,01/04/2018,1252639,"441,004.75",Carew Academy,25284,Peoples Services Directorate,Place Funding,G063
http://opendatacommunities.org/id/london-borough-council/sutton,London Borough of Sutton,01/04/2018,1252640,"66,295.09",Carew Academy,25284,Peoples Services Directorate,Top-up Funding,G064
http://opendatacommunities.org/id/london-borough-council/sutton,London Borough of Sutton,01/04/2018,1252641,"37,503.00",Carew Academy,25284,Peoples Services Directorate,Payments to Schools,G065
http://opendatacommunities.org/id/london-borough-council/sutton,London Borough of Sutton,11/04/2018,6928930,"13,211.00",Careworks Ltd,99891,Peoples Services Directorate,Fees - Computer Software,F384
http://opendatacommunities.org/id/london-borough-council/sutton,London Borough of Sutton,27/02/2018,40185031,"1,340.00",Carlene House,10763,Peoples Services Directorate,Supported Living - Ext Provider,G306
http://opendatacommunities.org/id/london-borough-council/sutton,London Borough of Sutton,20/04/2018,40185994,"4,440.00",Carlene House,10763,Peoples Services Directorate,Residential Care - Ext Provider,G310
http://opendatacommunities.org/id/london-borough-council/sutton,London Borough of Sutton,20/04/2018,40185999,"2,630.60",Carlene House,10763,Peoples Services Directorate,Residential Care - Ext Provider,G310
http://opendatacommunities.org/id/london-borough-council/sutton,London Borough of Sutton,20/04/2018,40186004,"2,654.68",Carlene House,10763,Peoples Services Directorate,Residential Care - Ext Provider,G310
http://opendatacommunities.org/id/london-borough-council/sutton,London Borough of Sutton,20/04/2018,40186010,"2,740.64",Carlene House,10763,Peoples Services Directorate,Residential Care - Ext Provider,G310
http://opendatacommunities.org/id/london-borough-council/sutton,London Borough of Sutton,20/04/2018,40186078,"2,625.28",Carlene House,10763,Peoples Services Directorate,Residential Care - Ext Provider,G310
http://opendatacommunities.org/id/london-borough-council/sutton,London Borough of Sutton,20/04/2018,40186171,"2,625.28",Carlene House,10763,Peoples Services Directorate,Residential Care - Ext Provider,G310
http://opendatacommunities.org/id/london-borough-council/sutton,London Borough of Sutton,20/04/2018,40186371,"2,682.68",Carlene House,10763,Peoples Services Directorate,Residential Care - Ext Provider,G310
http://opendatacommunities.org/id/london-borough-council/sutton,London Borough of Sutton,01/04/2018,1253892,427.26,Carlisle Infant School,32162,Peoples Services Directorate,Payments to Schools,G065
http://opendatacommunities.org/id/london-borough-council/sutton,London Borough of Sutton,01/04/2018,1253895,427.26,Carlisle Infant School,32162,Peoples Services Directorate,Payments to Schools,G065
http://opendatacommunities.org/id/london-borough-council/sutton,London Borough of Sutton,30/04/2018,1253740,521.1,Carly-Jo Etherington-Stanbrook,25990,Peoples Services Directorate,Non-Maintained Childrens' Nurseries - 2 Year Olds,G404
http://opendatacommunities.org/id/london-borough-council/sutton,London Borough of Sutton,30/04/2018,1253815,"1,836.00",Carly-Jo Etherington-Stanbrook,25990,Peoples Services Directorate,Non-Maintained Childrens' Nurseries - 3 & 4 yr olds,G405
http://opendatacommunities.org/id/london-borough-council/sutton,London Borough of Sutton,30/04/2018,1253836,"2,214.75",Caroline Brown,27834,Peoples Services Directorate,Non-Maintained Childrens' Nurseries - 3 & 4 yr olds,G405
http://opendatacommunities.org/id/london-borough-council/sutton,London Borough of Sutton,11/04/2018,6928929,"25,500.00",Carpenter & Co,99827,Peoples Services Directorate,Purchase Price,Y010
http://opendatacommunities.org/id/london-borough-council/sutton,London Borough of Sutton,01/04/2018,1252584,"9,742.33",Carshalton Boys Sports College (Academy),23984,Peoples Services Directorate,Top-up Funding,G064
http://opendatacommunities.org/id/london-borough-council/sutton,London Borough of Sutton,30/04/2018,1253750,"3,126.60",Caterpillars Day Nursery,28020,Peoples Services Directorate,Non-Maintained Childrens' Nurseries - 2 Year Olds,G404
http://opendatacommunities.org/id/london-borough-council/sutton,London Borough of Sutton,30/04/2018,1253845,"40,058.21",Caterpillars Day Nursery,28020,Peoples Services Directorate,Non-Maintained Childrens' Nurseries - 3 & 4 yr olds,G405
http://opendatacommunities.org/id/london-borough-council/sutton,London Borough of Sutton,30/04/2018,1253832,459,Cathie McKnight Fagbohun,27116,Peoples Services Directorate,Non-Maintained Childrens' Nurseries - 3 & 4 yr olds,G405
http://opendatacommunities.org/id/london-borough-council/sutton,London Borough of Sutton,12/04/2018,6929119,"1,055.95",Caysh Enterprise Cic,28016,Peoples Services Directorate,Approved Lodgings,H323
http://opendatacommunities.org/id/london-borough-council/sutton,London Borough of Sutton,26/04/2018,1253403,"29,666.67",Caysh Housing Project,23133,"Environment, Housing & Regeneration Directorate",Supporting People - Teenage Parent Services,H247
http://opendatacommunities.org/id/london-borough-council/sutton,London Borough of Sutton,28/03/2018,6928399,"1,255.90",Caysh Housing Project,23133,Peoples Services Directorate,Approved Lodgings,H323
http://opendatacommunities.org/id/london-borough-council/sutton,London Borough of Sutton,28/03/2018,6928452,"-1,229.77",Caysh Housing Project,23133,Peoples Services Directorate,Approved Lodgings,H323
http://opendatacommunities.org/id/london-borough-council/sutton,London Borough of Sutton,28/02/2018,6928950,"1,233.40",Caysh Housing Project,23133,Peoples Services Directorate,Approved Lodgings,H323
http://opendatacommunities.org/id/london-borough-council/sutton,London Borough of Sutton,28/02/2018,6928952,"1,170.96",Caysh Housing Project,23133,Peoples Services Directorate,Approved Lodgings,H323
http://opendatacommunities.org/id/london-borough-council/sutton,London Borough of Sutton,28/02/2018,6928953,"1,134.56",Caysh Housing Project,23133,Peoples Services Directorate,Approved Lodgings,H323
http://opendatacommunities.org/id/london-borough-council/sutton,London Borough of Sutton,28/02/2018,6928954,"1,170.96",Caysh Housing Project,23133,Peoples Services Directorate,Approved Lodgings,H323
http://opendatacommunities.org/id/london-borough-council/sutton,London Borough of Sutton,28/03/2018,6928957,"1,365.55",Caysh Housing Project,23133,Peoples Services Directorate,Approved Lodgings,H323
http://opendatacommunities.org/id/london-borough-council/sutton,London Borough of Sutton,28/03/2018,6928958,"1,296.42",Caysh Housing Project,23133,Peoples Services Directorate,Approved Lodgings,H323
http://opendatacommunities.org/id/london-borough-council/sutton,London Borough of Sutton,28/03/2018,6928959,"1,365.55",Caysh Housing Project,23133,Peoples Services Directorate,Approved Lodgings,H323
http://opendatacommunities.org/id/london-borough-council/sutton,London Borough of Sutton,28/03/2018,6928960,"1,240.31",Caysh Housing Project,23133,Peoples Services Directorate,Approved Lodgings,H323
http://opendatacommunities.org/id/london-borough-council/sutton,London Borough of Sutton,28/03/2018,6928961,"1,204.66",Caysh Housing Project,23133,Peoples Services Directorate,Approved Lodgings,H323
http://opendatacommunities.org/id/london-borough-council/sutton,London Borough of Sutton,28/03/2018,6928963,"1,365.37",Caysh Housing Project,23133,Peoples Services Directorate,Approved Lodgings,H323
http://opendatacommunities.org/id/london-borough-council/sutton,London Borough of Sutton,28/03/2018,6928964,"1,296.42",Caysh Housing Project,23133,Peoples Services Directorate,Approved Lodgings,H323
http://opendatacommunities.org/id/london-borough-council/sutton,London Borough of Sutton,28/03/2018,6928965,"1,256.12",Caysh Housing Project,23133,Peoples Services Directorate,Approved Lodgings,H323
http://opendatacommunities.org/id/london-borough-council/sutton,London Borough of Sutton,28/03/2018,6928744,804.68,Central & North West London Nhs Foundation Trust,28976,Chief Executive's Directorate,Provider Contract Payments,F470
http://opendatacommunities.org/id/london-borough-council/sutton,London Borough of Sutton,27/02/2018,6928934,858.69,Central & North West London Nhs Foundation Trust,28976,Chief Executive's Directorate,Provider Contract Payments,F470
http://opendatacommunities.org/id/london-borough-council/sutton,London Borough of Sutton,10/04/2018,6929037,"3,333.85",Central London Community Healthcare NHS Trust,29865,Chief Executive's Directorate,Provider Contract Payments,F470
http://opendatacommunities.org/id/london-borough-council/sutton,London Borough of Sutton,23/04/2018,6929956,900,Centre for Public Innovation CIC,19865,Chief Executive's Directorate,Fees - Consultants (Ad Hoc),F283
http://opendatacommunities.org/id/london-borough-council/sutton,London Borough of Sutton,28/03/2018,6929166,"17,953.67",Charles Taylor Services Ltd,27913,Resources Directorate,Insurance Premiums (Other),F330
http://opendatacommunities.org/id/london-borough-council/sutton,London Borough of Sutton,30/04/2018,1253708,"1,059.57",Cheam Baptist Church Pre-School,10924,Peoples Services Directorate,Non-Maintained Childrens' Nurseries - 2 Year Olds,G404
http://opendatacommunities.org/id/london-borough-council/sutton,London Borough of Sutton,30/04/2018,1253763,"15,839.82",Cheam Baptist Church Pre-School,10924,Peoples Services Directorate,Non-Maintained Childrens' Nurseries - 3 & 4 yr olds,G405
http://opendatacommunities.org/id/london-borough-council/sutton,London Borough of Sutton,11/03/2018,6929078,"2,318.00",Cheam Common Infants,10936,Peoples Services Directorate,Payments to Schools,G065
http://opendatacommunities.org/id/london-borough-council/sutton,London Borough of Sutton,01/04/2018,1252913,"3,541.67",Cheam Common Infants School -ACADEMY,30167,Peoples Services Directorate,Top-up Funding,G064
http://opendatacommunities.org/id/london-borough-council/sutton,London Borough of Sutton,11/03/2018,6929057,"4,637.00",Cheam Common Infants School -ACADEMY,30167,Peoples Services Directorate,Payments to Schools,G065
http://opendatacommunities.org/id/london-borough-council/sutton,London Borough of Sutton,01/04/2018,1252587,"5,354.17",Cheam Common Junior Academy,28932,Peoples Services Directorate,Top-up Funding,G064
http://opendatacommunities.org/id/london-borough-council/sutton,London Borough of Sutton,03/04/2018,6928550,687.5,Cheam Family Practice,10918,Chief Executive's Directorate,Provider Contract Payments,F470
http://opendatacommunities.org/id/london-borough-council/sutton,London Borough of Sutton,03/04/2018,6928551,"1,720.00",Cheam Family Practice,10918,Chief Executive's Directorate,Provider Contract Payments,F470
http://opendatacommunities.org/id/london-borough-council/sutton,London Borough of Sutton,01/04/2018,1252589,"55,454.33",Cheam High School (Academy),23996,Peoples Services Directorate,Place Funding,G063
http://opendatacommunities.org/id/london-borough-council/sutton,London Borough of Sutton,01/04/2018,1252590,"74,115.17",Cheam High School (Academy),23996,Peoples Services Directorate,Top-up Funding,G064
http://opendatacommunities.org/id/london-borough-council/sutton,London Borough of Sutton,01/04/2018,1252590,"7,854.00",Cheam High School (Academy),23996,Peoples Services Directorate,Top-up Funding,G064
http://opendatacommunities.org/id/london-borough-council/sutton,London Borough of Sutton,01/04/2018,1252591,"23,500.00",Cheam Park Farm Primary School (LEO Academy Trust),23882,Peoples Services Directorate,Top-up Funding,G064
http://opendatacommunities.org/id/london-borough-council/sutton,London Borough of Sutton,31/03/2018,1252753,830,Cheam Station Cars,15604,Peoples Services Directorate,Hired Peoples Transport (Children),E072
http://opendatacommunities.org/id/london-borough-council/sutton,London Borough of Sutton,31/03/2018,1252753,795,Cheam Station Cars,15604,Peoples Services Directorate,Hired Peoples Transport (Children),E072
http://opendatacommunities.org/id/london-borough-council/sutton,London Borough of Sutton,31/03/2018,1252755,"1,675.00",Cheam Station Cars,15604,Peoples Services Directorate,Hired Peoples Transport (Children),E072
http://opendatacommunities.org/id/london-borough-council/sutton,London Borough of Sutton,31/03/2018,1252756,"1,050.00",Cheam Station Cars,15604,Peoples Services Directorate,Hired Peoples Transport (Children),E072
http://opendatacommunities.org/id/london-borough-council/sutton,London Borough of Sutton,31/03/2018,1252757,"1,870.00",Cheam Station Cars,15604,Peoples Services Directorate,Hired Peoples Transport (Children),E072
http://opendatacommunities.org/id/london-borough-council/sutton,London Borough of Sutton,31/03/2018,1252758,"3,400.00",Cheam Station Cars,15604,Peoples Services Directorate,Hired Peoples Transport (Children),E072
http://opendatacommunities.org/id/london-borough-council/sutton,London Borough of Sutton,31/03/2018,1252759,"3,496.00",Cheam Station Cars,15604,Peoples Services Directorate,Hired Peoples Transport (Children),E072
http://opendatacommunities.org/id/london-borough-council/sutton,London Borough of Sutton,31/03/2018,1252760,550,Cheam Station Cars,15604,Peoples Services Directorate,Hired Peoples Transport (Children),E072
http://opendatacommunities.org/id/london-borough-council/sutton,London Borough of Sutton,31/03/2018,1252762,"1,047.00",Cheam Station Cars,15604,Peoples Services Directorate,Hired Peoples Transport (Children),E072
http://opendatacommunities.org/id/london-borough-council/sutton,London Borough of Sutton,31/03/2018,1252763,550,Cheam Station Cars,15604,Peoples Services Directorate,Hired Peoples Transport (Children),E072
http://opendatacommunities.org/id/london-borough-council/sutton,London Borough of Sutton,31/03/2018,1252764,"1,512.00",Cheam Station Cars,15604,Peoples Services Directorate,Hired Peoples Transport (Children),E072
http://opendatacommunities.org/id/london-borough-council/sutton,London Borough of Sutton,31/03/2018,1252765,950,Cheam Station Cars,15604,Peoples Services Directorate,Hired Peoples Transport (Children),E072
http://opendatacommunities.org/id/london-borough-council/sutton,London Borough of Sutton,31/03/2018,1252766,560,Cheam Station Cars,15604,Peoples Services Directorate,Hired Peoples Transport (Children),E072
http://opendatacommunities.org/id/london-borough-council/sutton,London Borough of Sutton,31/03/2018,1252767,"2,262.00",Cheam Station Cars,15604,Peoples Services Directorate,Hired Peoples Transport (Children),E072
http://opendatacommunities.org/id/london-borough-council/sutton,London Borough of Sutton,31/03/2018,1252768,"3,039.00",Cheam Station Cars,15604,Peoples Services Directorate,Hired Peoples Transport (Children),E072
http://opendatacommunities.org/id/london-borough-council/sutton,London Borough of Sutton,31/03/2018,1252769,700,Cheam Station Cars,15604,Peoples Services Directorate,Hired Peoples Transport (Children),E072
http://opendatacommunities.org/id/london-borough-council/sutton,London Borough of Sutton,31/03/2018,1252770,"2,390.00",Cheam Station Cars,15604,Peoples Services Directorate,Hired Peoples Transport (Children),E072
http://opendatacommunities.org/id/london-borough-council/sutton,London Borough of Sutton,31/03/2018,1252771,"3,630.00",Cheam Station Cars,15604,Peoples Services Directorate,Hired Peoples Transport (Children),E072
http://opendatacommunities.org/id/london-borough-council/sutton,London Borough of Sutton,31/03/2018,1252772,575,Cheam Station Cars,15604,Peoples Services Directorate,Hired Peoples Transport (Children),E072
http://opendatacommunities.org/id/london-borough-council/sutton,London Borough of Sutton,31/03/2018,1252773,870,Cheam Station Cars,15604,Peoples Services Directorate,Hired Peoples Transport (Children),E072
http://opendatacommunities.org/id/london-borough-council/sutton,London Borough of Sutton,31/03/2018,1252774,"1,088.00",Cheam Station Cars,15604,Peoples Services Directorate,Hired Peoples Transport (Children),E072
http://opendatacommunities.org/id/london-borough-council/sutton,London Borough of Sutton,31/03/2018,1252775,825,Cheam Station Cars,15604,Peoples Services Directorate,Hired Peoples Transport (Children),E072
http://opendatacommunities.org/id/london-borough-council/sutton,London Borough of Sutton,31/03/2018,1252776,"2,964.00",Cheam Station Cars,15604,Peoples Services Directorate,Hired Peoples Transport (Children),E072
http://opendatacommunities.org/id/london-borough-council/sutton,London Borough of Sutton,31/03/2018,1252777,"1,756.00",Cheam Station Cars,15604,Peoples Services Directorate,Hired Peoples Transport (Children),E072
http://opendatacommunities.org/id/london-borough-council/sutton,London Borough of Sutton,31/03/2018,1252778,"2,850.00",Cheam Station Cars,15604,Peoples Services Directorate,Hired Peoples Transport (Children),E072
http://opendatacommunities.org/id/london-borough-council/sutton,London Borough of Sutton,31/03/2018,1252779,950,Cheam Station Cars,15604,Peoples Services Directorate,Hired Peoples Transport (Children),E072
http://opendatacommunities.org/id/london-borough-council/sutton,London Borough of Sutton,31/03/2018,1252781,"1,080.00",Cheam Station Cars,15604,Peoples Services Directorate,Hired Peoples Transport (Children),E072
http://opendatacommunities.org/id/london-borough-council/sutton,London Borough of Sutton,20/04/2018,40186071,"3,400.00",Chegworth Nursing Home Bayswift Ltd,10908,Peoples Services Directorate,Nursing Care - Ext Provider,G311
http://opendatacommunities.org/id/london-borough-council/sutton,London Borough of Sutton,20/04/2018,40186101,"3,400.00",Chegworth Nursing Home Bayswift Ltd,10908,Peoples Services Directorate,Nursing Care - Ext Provider,G311
http://opendatacommunities.org/id/london-borough-council/sutton,London Borough of Sutton,20/04/2018,40186174,"1,928.24",Chegworth Nursing Home Bayswift Ltd,10908,Peoples Services Directorate,Nursing Care - Ext Provider,G311
http://opendatacommunities.org/id/london-borough-council/sutton,London Borough of Sutton,20/04/2018,40186178,"2,781.64",Chegworth Nursing Home Bayswift Ltd,10908,Peoples Services Directorate,Nursing Care - Ext Provider,G311
http://opendatacommunities.org/id/london-borough-council/sutton,London Borough of Sutton,20/04/2018,40186198,"3,400.00",Chegworth Nursing Home Bayswift Ltd,10908,Peoples Services Directorate,Nursing Care - Ext Provider,G311
http://opendatacommunities.org/id/london-borough-council/sutton,London Borough of Sutton,20/04/2018,40186346,"3,200.00",Chegworth Nursing Home Bayswift Ltd,10908,Peoples Services Directorate,Nursing Care - Ext Provider,G311
http://opendatacommunities.org/id/london-borough-council/sutton,London Borough of Sutton,01/01/2018,6928861,"6,219.58",Chelsea and Westminster NHS ft,28891,Chief Executive's Directorate,Provider Contract Payments,F470
http://opendatacommunities.org/id/london-borough-council/sutton,London Borough of Sutton,21/03/2018,6928968,"-1,579.05",Chelsea and Westminster NHS ft,28891,Chief Executive's Directorate,Provider Contract Payments,F470
http://opendatacommunities.org/id/london-borough-council/sutton,London Borough of Sutton,21/03/2018,6929820,-860.07,Chelsea and Westminster NHS ft,28891,Chief Executive's Directorate,Provider Contract Payments,F470
http://opendatacommunities.org/id/london-borough-council/sutton,London Borough of Sutton,14/04/2018,6929630,"13,725.00",Chelsea Studios Ltd,32128,"Environment, Housing & Regeneration Directorate",Bed and Breakfast Accommodation,G400
http://opendatacommunities.org/id/london-borough-council/sutton,London Borough of Sutton,25/03/2018,40180091,490,Chenash Homecare Specialists And Care Agency,25667,Peoples Services Directorate,Home Care,G334
http://opendatacommunities.org/id/london-borough-council/sutton,London Borough of Sutton,01/04/2018,40182211,490,Chenash Homecare Specialists And Care Agency,25667,Peoples Services Directorate,Home Care,G334
http://opendatacommunities.org/id/london-borough-council/sutton,London Borough of Sutton,08/04/2018,40185087,490,Chenash Homecare Specialists And Care Agency,25667,Peoples Services Directorate,Home Care,G334
http://opendatacommunities.org/id/london-borough-council/sutton,London Borough of Sutton,08/04/2018,40185093,448,Chenash Homecare Specialists And Care Agency,25667,Peoples Services Directorate,Home Care,G334
http://opendatacommunities.org/id/london-borough-council/sutton,London Borough of Sutton,08/04/2018,40185099,441,Chenash Homecare Specialists And Care Agency,25667,Peoples Services Directorate,Home Care,G334
http://opendatacommunities.org/id/london-borough-council/sutton,London Borough of Sutton,15/04/2018,40188011,490,Chenash Homecare Specialists And Care Agency,25667,Peoples Services Directorate,Home Care,G334
http://opendatacommunities.org/id/london-borough-council/sutton,London Borough of Sutton,15/04/2018,40188020,539,Chenash Homecare Specialists And Care Agency,25667,Peoples Services Directorate,Home Care,G334
http://opendatacommunities.org/id/london-borough-council/sutton,London Borough of Sutton,15/04/2018,40188023,441,Chenash Homecare Specialists And Care Agency,25667,Peoples Services Directorate,Home Care,G334
http://opendatacommunities.org/id/london-borough-council/sutton,London Borough of Sutton,20/04/2018,40186073,"3,360.00",Cherry Lodge,10934,Peoples Services Directorate,Residential Care - Ext Provider,G310
http://opendatacommunities.org/id/london-borough-council/sutton,London Borough of Sutton,20/04/2018,40186382,"2,725.00",Cherry Lodge,10934,Peoples Services Directorate,Residential Care - Ext Provider,G310
http://opendatacommunities.org/id/london-borough-council/sutton,London Borough of Sutton,03/04/2018,6929009,"3,444.00",Children of Colour,16870,Peoples Services Directorate,Approved Lodgings,H323
http://opendatacommunities.org/id/london-borough-council/sutton,London Borough of Sutton,30/04/2018,1253764,"6,822.21",Chiltern Day Nursery,10941,Peoples Services Directorate,Non-Maintained Childrens' Nurseries - 3 & 4 yr olds,G405
http://opendatacommunities.org/id/london-borough-council/sutton,London Borough of Sutton,26/02/2018,40185006,"1,240.00",Choice Care Group (Surrey) Ltd,22029,Peoples Services Directorate,Supported Living - Ext Provider,G306
http://opendatacommunities.org/id/london-borough-council/sutton,London Borough of Sutton,26/02/2018,40185007,"2,302.85",Choice Care Group (Surrey) Ltd,22029,Peoples Services Directorate,Supported Living - Ext Provider,G306
http://opendatacommunities.org/id/london-borough-council/sutton,London Borough of Sutton,20/04/2018,40186129,"7,682.20",Choice Care Group (Surrey) Ltd,22029,Peoples Services Directorate,Residential Care - Ext Provider,G310
http://opendatacommunities.org/id/london-borough-council/sutton,London Borough of Sutton,20/04/2018,40186165,"7,511.00",Choice Care Group (Surrey) Ltd,22029,Peoples Services Directorate,Residential Care - Ext Provider,G310
http://opendatacommunities.org/id/london-borough-council/sutton,London Borough of Sutton,30/04/2018,1253707,"1,997.55",Christchurch Fledgelings Pre-School,10896,Peoples Services Directorate,Non-Maintained Childrens' Nurseries - 2 Year Olds,G404
http://opendatacommunities.org/id/london-borough-council/sutton,London Borough of Sutton,30/04/2018,1253762,"12,868.33",Christchurch Fledgelings Pre-School,10896,Peoples Services Directorate,Non-Maintained Childrens' Nurseries - 3 & 4 yr olds,G405
http://opendatacommunities.org/id/london-borough-council/sutton,London Borough of Sutton,30/04/2018,1253744,521.1,Christina Snowsill,26437,Peoples Services Directorate,Non-Maintained Childrens' Nurseries - 2 Year Olds,G404
http://opendatacommunities.org/id/london-borough-council/sutton,London Borough of Sutton,04/04/2018,6928619,450,Chroma Vision Limited,20351,"Environment, Housing & Regeneration Directorate",Other,Y450
http://opendatacommunities.org/id/london-borough-council/sutton,London Borough of Sutton,19/04/2018,6929511,440,Chroma Vision Limited,20351,Resources Directorate,Building Works-Sub Cnct-Elect/Comm,Y361
http://opendatacommunities.org/id/london-borough-council/sutton,London Borough of Sutton,24/04/2018,6929967,"15,045.81",Chroma Vision Limited,20351,"Environment, Housing & Regeneration Directorate",IT Equipment - Repair and Maintenance,F382
http://opendatacommunities.org/id/london-borough-council/sutton,London Borough of Sutton,30/04/2018,6930003,996,Chroma Vision Limited,20351,"Environment, Housing & Regeneration Directorate",Other,Y450
http://opendatacommunities.org/id/london-borough-council/sutton,London Borough of Sutton,06/04/2018,6929105,"4,372.45",City of London Corporation,22388,Chief Executive's Directorate,Provider Contract Payments,F470
http://opendatacommunities.org/id/london-borough-council/sutton,London Borough of Sutton,16/03/2018,6929400,"2,450.00",City of London Corporation,22388,"Environment, Housing & Regeneration Directorate",Other Services,F340
http://opendatacommunities.org/id/london-borough-council/sutton,London Borough of Sutton,31/03/2018,6928613,"3,230.00",City Sprint UK (Excel) Ltd,26267,Chief Executive's Directorate,Hired Vehicles,E070
http://opendatacommunities.org/id/london-borough-council/sutton,London Borough of Sutton,18/04/2018,6929468,602.46,Civica UK Ltd,10978,"Environment, Housing & Regeneration Directorate",General Office Expenses,F235
http://opendatacommunities.org/id/london-borough-council/sutton,London Borough of Sutton,30/04/2018,1253833,530.25,Clare McEvilly,27124,Peoples Services Directorate,Non-Maintained Childrens' Nurseries - 3 & 4 yr olds,G405
http://opendatacommunities.org/id/london-borough-council/sutton,London Borough of Sutton,20/04/2018,40186117,"4,200.00",Claremont Care Svs Ltd,18724,Peoples Services Directorate,Nursing Care - Ext Provider,G311
http://opendatacommunities.org/id/london-borough-council/sutton,London Borough of Sutton,20/04/2018,40186150,"4,025.00",Claremont Care Svs Ltd,18724,Peoples Services Directorate,Nursing Care - Ext Provider,G311
http://opendatacommunities.org/id/london-borough-council/sutton,London Borough of Sutton,20/04/2018,40186244,"4,000.00",Claremont Care Svs Ltd,18724,Peoples Services Directorate,Nursing Care - Ext Provider,G311
http://opendatacommunities.org/id/london-borough-council/sutton,London Borough of Sutton,20/04/2018,40186263,"2,805.00",Claremont Care Svs Ltd,18724,Peoples Services Directorate,Nursing Care - Ext Provider,G311
http://opendatacommunities.org/id/london-borough-council/sutton,London Borough of Sutton,20/04/2018,40186337,"3,200.00",Claremont Care Svs Ltd,18724,Peoples Services Directorate,Interim Placements - Ext Provider,G317
http://opendatacommunities.org/id/london-borough-council/sutton,London Borough of Sutton,15/02/2018,1252884,"54,747.66",Clay Hill School Priory,29031,Peoples Services Directorate,Independent Schools,G325
http://opendatacommunities.org/id/london-borough-council/sutton,London Borough of Sutton,15/03/2018,1252885,"6,166.67",Clay Hill School Priory,29031,Peoples Services Directorate,Independent Schools,G325
http://opendatacommunities.org/id/london-borough-council/sutton,London Borough of Sutton,03/04/2018,6928561,"5,700.00",Cleaner Greener Safer Happier Ltd,29981,"Environment, Housing & Regeneration Directorate",Fees - Consultants (Ad Hoc),F283
http://opendatacommunities.org/id/london-borough-council/sutton,London Borough of Sutton,11/04/2018,6929038,"6,000.00",Cleaner Greener Safer Happier Ltd,29981,"Environment, Housing & Regeneration Directorate",Fees - Consultants (Ad Hoc),F283
http://opendatacommunities.org/id/london-borough-council/sutton,London Borough of Sutton,16/04/2018,6929251,"3,412.50",Cleaner Greener Safer Happier Ltd,29981,"Environment, Housing & Regeneration Directorate",Fees - Consultants (Ad Hoc),F283
http://opendatacommunities.org/id/london-borough-council/sutton,London Borough of Sutton,16/04/2018,6929252,"5,400.00",Cleaner Greener Safer Happier Ltd,29981,"Environment, Housing & Regeneration Directorate",Fees - Consultants (Ad Hoc),F283
http://opendatacommunities.org/id/london-borough-council/sutton,London Borough of Sutton,10/04/2018,6929756,510,Clear Channel Uk,20254,"Environment, Housing & Regeneration Directorate",Community Initiatives,F322
http://opendatacommunities.org/id/london-borough-council/sutton,London Borough of Sutton,10/04/2018,6929757,"1,150.00",Clear Channel Uk,20254,"Environment, Housing & Regeneration Directorate",Community Initiatives,F322
http://opendatacommunities.org/id/london-borough-council/sutton,London Borough of Sutton,12/01/2018,6929930,500,Clockhouse Community Association,10999,Resources Directorate,Fees - Room Hire,F290
http://opendatacommunities.org/id/london-borough-council/sutton,London Borough of Sutton,20/04/2018,40186096,"2,000.00",Cloyda Limited,20402,Peoples Services Directorate,Residential Care - Ext Provider,G310
http://opendatacommunities.org/id/london-borough-council/sutton,London Borough of Sutton,20/04/2018,40186307,"2,600.00",Cloyda Limited,20402,Peoples Services Directorate,Residential Care - Ext Provider,G310
http://opendatacommunities.org/id/london-borough-council/sutton,London Borough of Sutton,04/04/2018,40180145,"3,162.00",Cmg Homes Ltd,11026,Peoples Services Directorate,Supported Living - Ext Provider,G306
http://opendatacommunities.org/id/london-borough-council/sutton,London Borough of Sutton,04/04/2018,40180151,"3,808.57",Cmg Homes Ltd,11026,Peoples Services Directorate,Supported Living - Ext Provider,G306
http://opendatacommunities.org/id/london-borough-council/sutton,London Borough of Sutton,04/04/2018,40180161,"4,592.43",Cmg Homes Ltd,11026,Peoples Services Directorate,Supported Living - Ext Provider,G306
http://opendatacommunities.org/id/london-borough-council/sutton,London Borough of Sutton,04/04/2018,40180174,"4,003.70",Cmg Homes Ltd,11026,Peoples Services Directorate,Supported Living - Ext Provider,G306
http://opendatacommunities.org/id/london-borough-council/sutton,London Borough of Sutton,20/04/2018,40186166,"7,036.00",Cmg Homes Ltd,11026,Peoples Services Directorate,Residential Care - Ext Provider,G310
http://opendatacommunities.org/id/london-borough-council/sutton,London Borough of Sutton,20/04/2018,40186227,"7,000.00",Cmg Homes Ltd,11026,Peoples Services Directorate,Residential Care - Ext Provider,G310
http://opendatacommunities.org/id/london-borough-council/sutton,London Borough of Sutton,20/04/2018,40186370,"5,416.92",Cmg Homes Ltd,11026,Peoples Services Directorate,Residential Care - Ext Provider,G310
http://opendatacommunities.org/id/london-borough-council/sutton,London Borough of Sutton,24/04/2018,40188399,"3,060.00",Cmg Homes Ltd,11026,Peoples Services Directorate,Supported Living - Ext Provider,G306
http://opendatacommunities.org/id/london-borough-council/sutton,London Borough of Sutton,24/04/2018,40188405,"3,685.72",Cmg Homes Ltd,11026,Peoples Services Directorate,Supported Living - Ext Provider,G306
http://opendatacommunities.org/id/london-borough-council/sutton,London Borough of Sutton,24/04/2018,40188415,"4,444.28",Cmg Homes Ltd,11026,Peoples Services Directorate,Supported Living - Ext Provider,G306
http://opendatacommunities.org/id/london-borough-council/sutton,London Borough of Sutton,31/03/2018,6928626,"2,592.00",Cobalt Telephone Technologies,15645,"Environment, Housing & Regeneration Directorate",Credit Card Commission,F460
http://opendatacommunities.org/id/london-borough-council/sutton,London Borough of Sutton,04/04/2018,40180169,"3,764.28",Cognithan Ltd,29938,Peoples Services Directorate,Supported Living - Ext Provider,G306
http://opendatacommunities.org/id/london-borough-council/sutton,London Borough of Sutton,24/04/2018,40188423,"3,642.86",Cognithan Ltd,29938,Peoples Services Directorate,Supported Living - Ext Provider,G306
http://opendatacommunities.org/id/london-borough-council/sutton,London Borough of Sutton,16/03/2018,6928657,"378,441.66",Cognus Ltd,26829,Peoples Services Directorate,Contractual Consultant Fees,G430
http://opendatacommunities.org/id/london-borough-council/sutton,London Borough of Sutton,06/02/2018,6928658,"114,165.73",Cognus Ltd,26829,Non-Service Cost Centres Directorate,Provision for Redundancies,F502
http://opendatacommunities.org/id/london-borough-council/sutton,London Borough of Sutton,08/02/2018,6928663,"23,668.00",Cognus Ltd,26829,Non-Service Cost Centres Directorate,Provision for Redundancies,F502
http://opendatacommunities.org/id/london-borough-council/sutton,London Borough of Sutton,11/01/2018,6928794,"99,756.93",Cognus Ltd,26829,Peoples Services Directorate,Contractual Consultant Fees,G430
http://opendatacommunities.org/id/london-borough-council/sutton,London Borough of Sutton,11/01/2018,6928794,"242,243.07",Cognus Ltd,26829,Peoples Services Directorate,Contractual Consultant Fees,G430
http://opendatacommunities.org/id/london-borough-council/sutton,London Borough of Sutton,22/03/2018,6928935,"273,546.88",Cognus Ltd,26829,Peoples Services Directorate,Special Educational Needs,G331
http://opendatacommunities.org/id/london-borough-council/sutton,London Borough of Sutton,16/04/2018,6929543,420,Cognus Ltd,26829,Peoples Services Directorate,Child Care Review,F273
http://opendatacommunities.org/id/london-borough-council/sutton,London Borough of Sutton,16/04/2018,6929707,"2,385.60",Cognus Ltd,26829,Peoples Services Directorate,LAC - Education,F269
http://opendatacommunities.org/id/london-borough-council/sutton,London Borough of Sutton,20/04/2018,40186067,"2,477.43",Coleg Elidyr Camphill Communities,28764,Peoples Services Directorate,Interim Placements - Ext Provider,G317
http://opendatacommunities.org/id/london-borough-council/sutton,London Borough of Sutton,04/04/2018,40181415,476,Community Home Care Provider,11097,Peoples Services Directorate,Home Care,G334
http://opendatacommunities.org/id/london-borough-council/sutton,London Borough of Sutton,04/04/2018,40181436,472.5,Community Home Care Provider,11097,Peoples Services Directorate,Home Care,G334
http://opendatacommunities.org/id/london-borough-council/sutton,London Borough of Sutton,04/04/2018,40181467,476,Community Home Care Provider,11097,Peoples Services Directorate,Home Care,G334
http://opendatacommunities.org/id/london-borough-council/sutton,London Borough of Sutton,04/04/2018,40181476,472.5,Community Home Care Provider,11097,Peoples Services Directorate,Home Care,G334
http://opendatacommunities.org/id/london-borough-council/sutton,London Borough of Sutton,10/04/2018,40182019,476,Community Home Care Provider,11097,Peoples Services Directorate,Home Care,G334
http://opendatacommunities.org/id/london-borough-council/sutton,London Borough of Sutton,10/04/2018,40182028,472.5,Community Home Care Provider,11097,Peoples Services Directorate,Home Care,G334
http://opendatacommunities.org/id/london-borough-council/sutton,London Borough of Sutton,17/04/2018,40185673,476,Community Home Care Provider,11097,Peoples Services Directorate,Home Care,G334
http://opendatacommunities.org/id/london-borough-council/sutton,London Borough of Sutton,17/04/2018,40185682,472.5,Community Home Care Provider,11097,Peoples Services Directorate,Home Care,G334
http://opendatacommunities.org/id/london-borough-council/sutton,London Borough of Sutton,26/04/2018,40188090,476,Community Home Care Provider,11097,Peoples Services Directorate,Home Care,G334
http://opendatacommunities.org/id/london-borough-council/sutton,London Borough of Sutton,26/04/2018,40188098,445.5,Community Home Care Provider,11097,Peoples Services Directorate,Home Care,G334
http://opendatacommunities.org/id/london-borough-council/sutton,London Borough of Sutton,26/04/2018,40188100,708.75,Community Home Care Provider,11097,Peoples Services Directorate,Home Care,G334
http://opendatacommunities.org/id/london-borough-council/sutton,London Borough of Sutton,01/03/2018,40181941,"2,608.54",Compass Fostering London Ltd,25848,Peoples Services Directorate,Foster Parents,G326
http://opendatacommunities.org/id/london-borough-council/sutton,London Borough of Sutton,30/04/2018,1253757,521.1,Connie GBetuwa,99338,Peoples Services Directorate,Non-Maintained Childrens' Nurseries - 2 Year Olds,G404
http://opendatacommunities.org/id/london-borough-council/sutton,London Borough of Sutton,30/04/2018,1253877,"1,817.58",Connie GBetuwa,99338,Peoples Services Directorate,Non-Maintained Childrens' Nurseries - 3 & 4 yr olds,G405
http://opendatacommunities.org/id/london-borough-council/sutton,London Borough of Sutton,09/04/2018,6929553,"1,236.01",Contract Security Services,23827,Chief Executive's Directorate,General Office Expenses,F235
http://opendatacommunities.org/id/london-borough-council/sutton,London Borough of Sutton,30/04/2018,1253736,"4,168.80",Co-operative Childcare,24665,Peoples Services Directorate,Non-Maintained Childrens' Nurseries - 2 Year Olds,G404
http://opendatacommunities.org/id/london-borough-council/sutton,London Borough of Sutton,30/04/2018,1253809,"34,527.50",Co-operative Childcare,24665,Peoples Services Directorate,Non-Maintained Childrens' Nurseries - 3 & 4 yr olds,G405
http://opendatacommunities.org/id/london-borough-council/sutton,London Borough of Sutton,28/03/2018,6928818,"3,118.33",Core Assets Children's Services Ltd,27511,Peoples Services Directorate,Provider Contract Payments,F470
http://opendatacommunities.org/id/london-borough-council/sutton,London Borough of Sutton,29/03/2018,6928532,"36,431.00",Corelogic Ltd,24747,Peoples Services Directorate,Equipment It,Y523
http://opendatacommunities.org/id/london-borough-council/sutton,London Borough of Sutton,29/03/2018,6928533,"5,250.00",Corelogic Ltd,24747,Peoples Services Directorate,Equipment It,Y523
http://opendatacommunities.org/id/london-borough-council/sutton,London Borough of Sutton,23/02/2018,1252710,"13,900.00",Cornerways Childrens Services Ltd,18435,Peoples Services Directorate,Independent Schools,G325
http://opendatacommunities.org/id/london-borough-council/sutton,London Borough of Sutton,23/02/2018,1252711,"13,125.40",Cornerways Childrens Services Ltd,18435,Peoples Services Directorate,Independent Schools,G325
http://opendatacommunities.org/id/london-borough-council/sutton,London Borough of Sutton,28/02/2018,40181951,"13,900.00",Cornerways Childrens Services Ltd,18435,Peoples Services Directorate,Residential Care-Children,G330
http://opendatacommunities.org/id/london-borough-council/sutton,London Borough of Sutton,16/02/2018,1252863,"16,635.20",Cressey Oasis Education Ltd,27626,Peoples Services Directorate,Independent Schools,G325
http://opendatacommunities.org/id/london-borough-council/sutton,London Borough of Sutton,16/02/2018,1252864,"21,707.00",Cressey Oasis Education Ltd,27626,Peoples Services Directorate,Independent Schools,G325
http://opendatacommunities.org/id/london-borough-council/sutton,London Borough of Sutton,16/02/2018,1252865,"19,125.33",Cressey Oasis Education Ltd,27626,Peoples Services Directorate,Independent Schools,G325
http://opendatacommunities.org/id/london-borough-council/sutton,London Borough of Sutton,16/02/2018,1252866,"12,666.16",Cressey Oasis Education Ltd,27626,Peoples Services Directorate,Independent Schools,G325
http://opendatacommunities.org/id/london-borough-council/sutton,London Borough of Sutton,14/02/2018,1252867,"26,291.00",Cressey Oasis Education Ltd,27626,Peoples Services Directorate,Independent Schools,G325
http://opendatacommunities.org/id/london-borough-council/sutton,London Borough of Sutton,14/02/2018,1252868,"26,668.00",Cressey Oasis Education Ltd,27626,Peoples Services Directorate,Independent Schools,G325
http://opendatacommunities.org/id/london-borough-council/sutton,London Borough of Sutton,14/02/2018,1252869,"21,542.00",Cressey Oasis Education Ltd,27626,Peoples Services Directorate,Independent Schools,G325
http://opendatacommunities.org/id/london-borough-council/sutton,London Borough of Sutton,14/02/2018,1252870,"18,455.00",Cressey Oasis Education Ltd,27626,Peoples Services Directorate,Independent Schools,G325
http://opendatacommunities.org/id/london-borough-council/sutton,London Borough of Sutton,16/02/2018,1252871,"18,297.00",Cressey Oasis Education Ltd,27626,Peoples Services Directorate,Independent Schools,G325
http://opendatacommunities.org/id/london-borough-council/sutton,London Borough of Sutton,16/02/2018,1252872,"16,992.00",Cressey Oasis Education Ltd,27626,Peoples Services Directorate,Independent Schools,G325
http://opendatacommunities.org/id/london-borough-council/sutton,London Borough of Sutton,14/02/2018,1252873,"17,991.00",Cressey Oasis Education Ltd,27626,Peoples Services Directorate,Independent Schools,G325
http://opendatacommunities.org/id/london-borough-council/sutton,London Borough of Sutton,14/02/2018,1252874,"17,991.00",Cressey Oasis Education Ltd,27626,Peoples Services Directorate,Independent Schools,G325
http://opendatacommunities.org/id/london-borough-council/sutton,London Borough of Sutton,16/02/2018,1252875,"20,373.00",Cressey Oasis Education Ltd,27626,Peoples Services Directorate,Independent Schools,G325
http://opendatacommunities.org/id/london-borough-council/sutton,London Borough of Sutton,16/02/2018,1252876,"18,918.67",Cressey Oasis Education Ltd,27626,Peoples Services Directorate,Independent Schools,G325
http://opendatacommunities.org/id/london-borough-council/sutton,London Borough of Sutton,16/02/2018,1252877,"6,997.67",Cressey Oasis Education Ltd,27626,Peoples Services Directorate,Independent Schools,G325
http://opendatacommunities.org/id/london-borough-council/sutton,London Borough of Sutton,16/03/2018,1252878,"18,297.00",Cressey Oasis Education Ltd,27626,Peoples Services Directorate,Independent Schools,G325
http://opendatacommunities.org/id/london-borough-council/sutton,London Borough of Sutton,16/02/2018,1252879,"18,455.00",Cressey Oasis Education Ltd,27626,Peoples Services Directorate,Independent Schools,G325
http://opendatacommunities.org/id/london-borough-council/sutton,London Borough of Sutton,16/02/2018,1252880,"17,201.33",Cressey Oasis Education Ltd,27626,Peoples Services Directorate,Independent Schools,G325
http://opendatacommunities.org/id/london-borough-council/sutton,London Borough of Sutton,16/02/2018,1252881,"12,840.33",Cressey Oasis Education Ltd,27626,Peoples Services Directorate,Independent Schools,G325
http://opendatacommunities.org/id/london-borough-council/sutton,London Borough of Sutton,15/03/2018,6928440,"1,922.00",Crest Manor Ltd,25469,Peoples Services Directorate,C.C.A Rent & Utilities,H211
http://opendatacommunities.org/id/london-borough-council/sutton,London Borough of Sutton,15/03/2018,6928441,975,Crest Manor Ltd,25469,Peoples Services Directorate,Approved Lodgings,H323
http://opendatacommunities.org/id/london-borough-council/sutton,London Borough of Sutton,15/03/2018,6928446,"1,695.00",Crest Manor Ltd,25469,Peoples Services Directorate,Approved Lodgings,H323
http://opendatacommunities.org/id/london-borough-council/sutton,London Borough of Sutton,15/03/2018,6929772,"1,695.00",Crest Manor Ltd,25469,Peoples Services Directorate,Approved Lodgings,H323
http://opendatacommunities.org/id/london-borough-council/sutton,London Borough of Sutton,15/03/2018,6929773,"2,363.00",Crest Manor Ltd,25469,Peoples Services Directorate,Approved Lodgings,H323
http://opendatacommunities.org/id/london-borough-council/sutton,London Borough of Sutton,15/03/2018,6929776,"1,995.00",Crest Manor Ltd,25469,Peoples Services Directorate,Approved Lodgings,H323
http://opendatacommunities.org/id/london-borough-council/sutton,London Borough of Sutton,20/04/2018,40186013,"3,700.00",CRNH Ltd T/A St Judes Nursing Home,14297,Peoples Services Directorate,Nursing Care - Ext Provider,G311
http://opendatacommunities.org/id/london-borough-council/sutton,London Borough of Sutton,20/04/2018,40186058,"3,984.00",CRNH Ltd T/A St Judes Nursing Home,14297,Peoples Services Directorate,Nursing Care - Ext Provider,G311
http://opendatacommunities.org/id/london-borough-council/sutton,London Borough of Sutton,20/04/2018,40186340,"3,799.04",CRNH Ltd T/A St Judes Nursing Home,14297,Peoples Services Directorate,Nursing Care - Ext Provider,G311
http://opendatacommunities.org/id/london-borough-council/sutton,London Borough of Sutton,20/04/2018,40186347,"3,400.00",CRNH Ltd T/A St Judes Nursing Home,14297,Peoples Services Directorate,Nursing Care - Ext Provider,G311
http://opendatacommunities.org/id/london-borough-council/sutton,London Borough of Sutton,10/04/2018,6929010,935,Croham Services for Children Limited,20855,Peoples Services Directorate,Personal Requisites,F106
http://opendatacommunities.org/id/london-borough-council/sutton,London Borough of Sutton,20/04/2018,40186025,"4,168.24",Crossways Community,11187,Peoples Services Directorate,Residential Care - Ext Provider,G310
http://opendatacommunities.org/id/london-borough-council/sutton,London Borough of Sutton,20/04/2018,40186338,"2,404.28",Crossways Community,11187,Peoples Services Directorate,Residential Care - Ext Provider,G310
http://opendatacommunities.org/id/london-borough-council/sutton,London Borough of Sutton,23/02/2018,6926152,"3,940,388.39",Croydon Council,11227,"Environment, Housing & Regeneration Directorate",Veolia - Contract Payment,G255
http://opendatacommunities.org/id/london-borough-council/sutton,London Borough of Sutton,07/03/2018,6926900,"156,545.25",Croydon Council,11227,"Environment, Housing & Regeneration Directorate",Idverde - Contract Payment,G250
http://opendatacommunities.org/id/london-borough-council/sutton,London Borough of Sutton,09/04/2018,6928783,"33,747.59",Croydon Council,11227,"Environment, Housing & Regeneration Directorate",Civic Amenity,G172
http://opendatacommunities.org/id/london-borough-council/sutton,London Borough of Sutton,20/04/2018,6929817,"27,000.00",Croydon Council,11227,"Environment, Housing & Regeneration Directorate",Idverde - Contract Payment,G250
http://opendatacommunities.org/id/london-borough-council/sutton,London Borough of Sutton,31/03/2018,1253094,"3,171.00",Cruisers Ltd,18087,Peoples Services Directorate,Hired Peoples Transport (Children),E072
http://opendatacommunities.org/id/london-borough-council/sutton,London Borough of Sutton,31/03/2018,1253095,"3,300.00",Cruisers Ltd,18087,Peoples Services Directorate,Hired Peoples Transport (Children),E072
http://opendatacommunities.org/id/london-borough-council/sutton,London Borough of Sutton,30/04/2018,1253825,918,Crystal Lawlee,26523,Peoples Services Directorate,Non-Maintained Childrens' Nurseries - 3 & 4 yr olds,G405
http://opendatacommunities.org/id/london-borough-council/sutton,London Borough of Sutton,01/04/2018,6928877,581.66,CSL Dualcom Ltd,28014,Resources Directorate,FM - Planned Maintenance Contract - Mitie,G613
http://opendatacommunities.org/id/london-borough-council/sutton,London Borough of Sutton,20/04/2018,40186070,"6,196.00",CSS Ltd t/a Grove Care,19184,Peoples Services Directorate,Residential Care - Ext Provider,G310
http://opendatacommunities.org/id/london-borough-council/sutton,London Borough of Sutton,20/04/2018,40186355,"1,665.20",CSS Ltd t/a Grove Care,19184,Peoples Services Directorate,Interim Placements - Ext Provider,G317
http://opendatacommunities.org/id/london-borough-council/sutton,London Borough of Sutton,01/04/2018,1252592,"12,959.00",Culvers House Primary School,11252,Peoples Services Directorate,Top-up Funding,G064
http://opendatacommunities.org/id/london-borough-council/sutton,London Borough of Sutton,24/04/2018,6929816,580,Cygnet IT Services CIC,25840,Peoples Services Directorate,Purchase of IT Equipment,F380
http://opendatacommunities.org/id/london-borough-council/sutton,London Borough of Sutton,01/04/2018,6928690,820,Cypad Ltd,28443,Chief Executive's Directorate,Fees - Computer Software,F384
http://opendatacommunities.org/id/london-borough-council/sutton,London Borough of Sutton,23/04/2018,6929880,"8,484.30",D G Servicing Ltd,99815,"Environment, Housing & Regeneration Directorate",Grants -Made,Y610
http://opendatacommunities.org/id/london-borough-council/sutton,London Borough of Sutton,01/04/2018,6928476,746,D Karapinar,26474,"Environment, Housing & Regeneration Directorate",General Office Expenses,F235
http://opendatacommunities.org/id/london-borough-council/sutton,London Borough of Sutton,05/04/2018,6928713,"7,600.00",Darwin Group Ltd,97721,Peoples Services Directorate,Feasibility Studies,Y192
http://opendatacommunities.org/id/london-borough-council/sutton,London Borough of Sutton,27/03/2018,6928281,"3,000.00",Datatank Ltd,22841,Resources Directorate,Fees - Consultants (Ad Hoc),F283
http://opendatacommunities.org/id/london-borough-council/sutton,London Borough of Sutton,30/04/2018,1253862,436.5,Dawn Taylor,29723,Peoples Services Directorate,Non-Maintained Childrens' Nurseries - 3 & 4 yr olds,G405
http://opendatacommunities.org/id/london-borough-council/sutton,London Borough of Sutton,05/04/2018,40181408,528,Day and Nite Services,26773,Peoples Services Directorate,Home Care,G334
http://opendatacommunities.org/id/london-borough-council/sutton,London Borough of Sutton,05/04/2018,40181410,560,Day and Nite Services,26773,Peoples Services Directorate,Home Care,G334
http://opendatacommunities.org/id/london-borough-council/sutton,London Borough of Sutton,05/04/2018,40181428,556,Day and Nite Services,26773,Peoples Services Directorate,Home Care,G334
http://opendatacommunities.org/id/london-borough-council/sutton,London Borough of Sutton,05/04/2018,40181430,672,Day and Nite Services,26773,Peoples Services Directorate,Home Care,G334
http://opendatacommunities.org/id/london-borough-council/sutton,London Borough of Sutton,05/04/2018,40181432,560,Day and Nite Services,26773,Peoples Services Directorate,Home Care,G334
http://opendatacommunities.org/id/london-borough-council/sutton,London Borough of Sutton,09/04/2018,40181998,577,Day and Nite Services,26773,Peoples Services Directorate,Home Care,G334
http://opendatacommunities.org/id/london-borough-council/sutton,London Borough of Sutton,09/04/2018,40182002,672,Day and Nite Services,26773,Peoples Services Directorate,Home Care,G334
http://opendatacommunities.org/id/london-borough-council/sutton,London Borough of Sutton,09/04/2018,40182005,560,Day and Nite Services,26773,Peoples Services Directorate,Home Care,G334
http://opendatacommunities.org/id/london-borough-council/sutton,London Borough of Sutton,09/04/2018,40182009,528,Day and Nite Services,26773,Peoples Services Directorate,Home Care,G334
http://opendatacommunities.org/id/london-borough-council/sutton,London Borough of Sutton,16/04/2018,40185137,492,Day and Nite Services,26773,Peoples Services Directorate,Home Care,G334
http://opendatacommunities.org/id/london-borough-council/sutton,London Borough of Sutton,16/04/2018,40185138,590,Day and Nite Services,26773,Peoples Services Directorate,Home Care,G334
http://opendatacommunities.org/id/london-borough-council/sutton,London Borough of Sutton,16/04/2018,40185141,492,Day and Nite Services,26773,Peoples Services Directorate,Home Care,G334
http://opendatacommunities.org/id/london-borough-council/sutton,London Borough of Sutton,16/04/2018,40185149,464,Day and Nite Services,26773,Peoples Services Directorate,Home Care,G334
http://opendatacommunities.org/id/london-borough-council/sutton,London Borough of Sutton,23/04/2018,40187943,492,Day and Nite Services,26773,Peoples Services Directorate,Home Care,G334
http://opendatacommunities.org/id/london-borough-council/sutton,London Borough of Sutton,23/04/2018,40187945,590,Day and Nite Services,26773,Peoples Services Directorate,Home Care,G334
http://opendatacommunities.org/id/london-borough-council/sutton,London Borough of Sutton,23/04/2018,40187948,492,Day and Nite Services,26773,Peoples Services Directorate,Home Care,G334
http://opendatacommunities.org/id/london-borough-council/sutton,London Borough of Sutton,09/04/2018,6929167,"1,524.70",Deborah Klee Consultancy Ltd,25029,Peoples Services Directorate,Contractual Consultant Fees,G430
http://opendatacommunities.org/id/london-borough-council/sutton,London Borough of Sutton,19/10/2017,6926610,"2,470.00",Delco Safety,27600,Peoples Services Directorate,Building Works -Main Contractor,Y350
http://opendatacommunities.org/id/london-borough-council/sutton,London Borough of Sutton,01/04/2018,1253919,500,Dene Magna School,27018,Peoples Services Directorate,Payments to Schools,G065
http://opendatacommunities.org/id/london-borough-council/sutton,London Borough of Sutton,10/04/2018,6929025,"1,062.00",Development Connections & Associates Ltd,26224,Chief Executive's Directorate,Training - Course Fees,A520
http://opendatacommunities.org/id/london-borough-council/sutton,London Borough of Sutton,01/04/2018,1252593,"23,620.17",Devonshire Primary School,11321,Peoples Services Directorate,Top-up Funding,G064
http://opendatacommunities.org/id/london-borough-council/sutton,London Borough of Sutton,23/03/2018,6928635,500,Diet Health Ltd,22861,Peoples Services Directorate,Training - Course Fees,A520
http://opendatacommunities.org/id/london-borough-council/sutton,London Borough of Sutton,27/03/2018,6929239,"15,000.00",Digital Catapult Services Ltd,32157,Resources Directorate,Internal Fees - Project Management,Y180
http://opendatacommunities.org/id/london-borough-council/sutton,London Borough of Sutton,05/03/2018,40179928,"7,655.20",Direct Care And Support Services,23268,Peoples Services Directorate,Supported Living - Ext Provider,G306
http://opendatacommunities.org/id/london-borough-council/sutton,London Borough of Sutton,01/04/2018,6929578,705,Direct Care Ltd,28832,Peoples Services Directorate,C.C.A Travel & Subsistance,H212
http://opendatacommunities.org/id/london-borough-council/sutton,London Borough of Sutton,30/04/2018,1253709,"1,563.30",Dolphin Day Nursery,11373,Peoples Services Directorate,Non-Maintained Childrens' Nurseries - 2 Year Olds,G404
http://opendatacommunities.org/id/london-borough-council/sutton,London Borough of Sutton,30/04/2018,1253765,"7,301.05",Dolphin Day Nursery,11373,Peoples Services Directorate,Non-Maintained Childrens' Nurseries - 3 & 4 yr olds,G405
http://opendatacommunities.org/id/london-borough-council/sutton,London Borough of Sutton,30/04/2018,1253751,"1,042.20",Donna Dobson,28335,Peoples Services Directorate,Non-Maintained Childrens' Nurseries - 2 Year Olds,G404
http://opendatacommunities.org/id/london-borough-council/sutton,London Borough of Sutton,30/04/2018,1253846,918,Donna Dobson,28335,Peoples Services Directorate,Non-Maintained Childrens' Nurseries - 3 & 4 yr olds,G405
http://opendatacommunities.org/id/london-borough-council/sutton,London Borough of Sutton,01/04/2018,1252594,"41,969.83",Dorchester Primary School,11376,Peoples Services Directorate,Top-up Funding,G064
http://opendatacommunities.org/id/london-borough-council/sutton,London Borough of Sutton,29/03/2018,6928484,540,Dr Danielle Shbero,28728,Peoples Services Directorate,Personal Requisites,F106
http://opendatacommunities.org/id/london-borough-council/sutton,London Borough of Sutton,29/03/2018,6928467,"2,685.46",Dr Gbenga Sunday Asigo,26990,Peoples Services Directorate,Fees - Other,F299
http://opendatacommunities.org/id/london-borough-council/sutton,London Borough of Sutton,09/04/2018,6929124,"2,145.00",Dr R Seyan & Dr A Saffar & Dr M Rodin,25745,Chief Executive's Directorate,Provider Contract Payments,F470
http://opendatacommunities.org/id/london-borough-council/sutton,London Borough of Sutton,10/04/2018,6929125,800,Dr R Seyan & Dr A Saffar & Dr M Rodin,25745,Chief Executive's Directorate,Provider Contract Payments,F470
http://opendatacommunities.org/id/london-borough-council/sutton,London Borough of Sutton,23/04/2018,6929669,"2,667.50",Dr S Grice & Partners,25737,Chief Executive's Directorate,Provider Contract Payments,F470
http://opendatacommunities.org/id/london-borough-council/sutton,London Borough of Sutton,17/04/2018,6929330,632.5,Dr Satish Durgam,28486,Chief Executive's Directorate,Provider Contract Payments,F470
http://opendatacommunities.org/id/london-borough-council/sutton,London Borough of Sutton,01/04/2018,6928471,"2,360.00",Dreamlettings,11391,"Environment, Housing & Regeneration Directorate",Bed and Breakfast Accommodation,G400
http://opendatacommunities.org/id/london-borough-council/sutton,London Borough of Sutton,03/04/2018,6928529,770,Drs Jolley and Dutta,25741,Chief Executive's Directorate,Provider Contract Payments,F470
http://opendatacommunities.org/id/london-borough-council/sutton,London Borough of Sutton,03/04/2018,6928519,495,Drs Muktar & Partners,28421,Chief Executive's Directorate,Provider Contract Payments,F470
http://opendatacommunities.org/id/london-borough-council/sutton,London Borough of Sutton,29/03/2018,6928448,562.35,DSI Billing Services Ltd,17962,Resources Directorate,Postages - General,F350
http://opendatacommunities.org/id/london-borough-council/sutton,London Borough of Sutton,23/03/2018,6928676,"22,033.28",DSI Billing Services Ltd,17962,Resources Directorate,Postages - General,F350
http://opendatacommunities.org/id/london-borough-council/sutton,London Borough of Sutton,02/04/2018,6929196,"2,677.49",DSI Billing Services Ltd,17962,Resources Directorate,Postages - General,F350
http://opendatacommunities.org/id/london-borough-council/sutton,London Borough of Sutton,19/04/2018,6929500,"1,016.25",DSI Billing Services Ltd,17962,Resources Directorate,Postages - General,F350
http://opendatacommunities.org/id/london-borough-council/sutton,London Borough of Sutton,25/04/2018,6929862,986.38,DSI Billing Services Ltd,17962,Resources Directorate,Postages - General,F350
http://opendatacommunities.org/id/london-borough-council/sutton,London Borough of Sutton,19/03/2018,6928730,"1,142.85",Dunfield & Mead Ltd,28055,Peoples Services Directorate,Approved Lodgings,H323
http://opendatacommunities.org/id/london-borough-council/sutton,London Borough of Sutton,19/03/2018,6928732,"2,185.71",Dunfield & Mead Ltd,28055,Peoples Services Directorate,Approved Lodgings,H323
http://opendatacommunities.org/id/london-borough-council/sutton,London Borough of Sutton,19/03/2018,6928733,"2,428.57",Dunfield & Mead Ltd,28055,Peoples Services Directorate,Approved Lodgings,H323
http://opendatacommunities.org/id/london-borough-council/sutton,London Borough of Sutton,19/03/2018,6928734,"2,185.71",Dunfield & Mead Ltd,28055,Peoples Services Directorate,Approved Lodgings,H323
http://opendatacommunities.org/id/london-borough-council/sutton,London Borough of Sutton,19/03/2018,6928735,"2,428.57",Dunfield & Mead Ltd,28055,Peoples Services Directorate,Approved Lodgings,H323
http://opendatacommunities.org/id/london-borough-council/sutton,London Borough of Sutton,19/03/2018,6928736,"2,428.57",Dunfield & Mead Ltd,28055,Peoples Services Directorate,Approved Lodgings,H323
http://opendatacommunities.org/id/london-borough-council/sutton,London Borough of Sutton,19/03/2018,6928737,900,Dunfield & Mead Ltd,28055,Peoples Services Directorate,Approved Lodgings,H323
http://opendatacommunities.org/id/london-borough-council/sutton,London Borough of Sutton,19/03/2018,6928738,"2,185.71",Dunfield & Mead Ltd,28055,Peoples Services Directorate,Approved Lodgings,H323
http://opendatacommunities.org/id/london-borough-council/sutton,London Borough of Sutton,19/02/2018,6928947,"1,800.00",Dunfield & Mead Ltd,28055,Peoples Services Directorate,Approved Lodgings,H323
http://opendatacommunities.org/id/london-borough-council/sutton,London Borough of Sutton,19/02/2018,6928948,607.14,Dunfield & Mead Ltd,28055,Peoples Services Directorate,Approved Lodgings,H323
http://opendatacommunities.org/id/london-borough-council/sutton,London Borough of Sutton,19/03/2018,6929032,"4,020.69",Dunfield & Mead Ltd,28055,Peoples Services Directorate,Approved Lodgings,H323
http://opendatacommunities.org/id/london-borough-council/sutton,London Borough of Sutton,26/03/2018,40181986,"2,027.83",Dunfield & Mead Ltd,28055,Peoples Services Directorate,Approved Lodgings,H323
http://opendatacommunities.org/id/london-borough-council/sutton,London Borough of Sutton,26/03/2018,40181987,"3,830.26",Dunfield & Mead Ltd,28055,Peoples Services Directorate,Approved Lodgings,H323
http://opendatacommunities.org/id/london-borough-council/sutton,London Borough of Sutton,26/03/2018,40181988,"2,027.83",Dunfield & Mead Ltd,28055,Peoples Services Directorate,Accommodation - Supported Living,H201
http://opendatacommunities.org/id/london-borough-council/sutton,London Borough of Sutton,26/03/2018,40181989,928.57,Dunfield & Mead Ltd,28055,Peoples Services Directorate,Accommodation - Supported Living,H201
http://opendatacommunities.org/id/london-borough-council/sutton,London Borough of Sutton,13/03/2018,40179911,"2,114.00",Dunheved Lodge,11403,Peoples Services Directorate,One to One Care,G335
http://opendatacommunities.org/id/london-borough-council/sutton,London Borough of Sutton,20/04/2018,40186257,"2,999.92",Dunheved Lodge,11403,Peoples Services Directorate,Residential Care - Ext Provider,G310
http://opendatacommunities.org/id/london-borough-council/sutton,London Borough of Sutton,25/03/2018,6929110,"2,114.00",Dunheved Partnership Ltd,26353,"Environment, Housing & Regeneration Directorate",Bed and Breakfast Accommodation,G400
http://opendatacommunities.org/id/london-borough-council/sutton,London Borough of Sutton,01/04/2018,6929605,"2,184.00",Dunheved Partnership Ltd,26353,"Environment, Housing & Regeneration Directorate",Bed and Breakfast Accommodation,G400
http://opendatacommunities.org/id/london-borough-council/sutton,London Borough of Sutton,08/04/2018,6929939,"1,974.00",Dunheved Partnership Ltd,26353,"Environment, Housing & Regeneration Directorate",Bed and Breakfast Accommodation,G400
http://opendatacommunities.org/id/london-borough-council/sutton,London Borough of Sutton,15/04/2018,6929941,"1,869.00",Dunheved Partnership Ltd,26353,"Environment, Housing & Regeneration Directorate",Bed and Breakfast Accommodation,G400
http://opendatacommunities.org/id/london-borough-council/sutton,London Borough of Sutton,22/04/2018,6930042,"1,834.00",Dunheved Partnership Ltd,26353,"Environment, Housing & Regeneration Directorate",Bed and Breakfast Accommodation,G400
http://opendatacommunities.org/id/london-borough-council/sutton,London Borough of Sutton,03/04/2018,6928574,"4,096.44",Dynamic Care Ltd,29928,Peoples Services Directorate,Approved Lodgings,H323
http://opendatacommunities.org/id/london-borough-council/sutton,London Borough of Sutton,03/04/2018,40181971,"5,459.97",Dynamic Care Ltd,29928,Peoples Services Directorate,Approved Lodgings,H323
http://opendatacommunities.org/id/london-borough-council/sutton,London Borough of Sutton,31/03/2018,6928983,"14,908.16",E Homes And Shelters,28378,"Environment, Housing & Regeneration Directorate",Bed and Breakfast Accommodation,G400
http://opendatacommunities.org/id/london-borough-council/sutton,London Borough of Sutton,02/04/2018,40182035,"2,957.50",Eager Health TA Care24Seven,29920,Peoples Services Directorate,Home Care,G334
http://opendatacommunities.org/id/london-borough-council/sutton,London Borough of Sutton,09/04/2018,40182036,"2,143.75",Eager Health TA Care24Seven,29920,Peoples Services Directorate,Home Care,G334
http://opendatacommunities.org/id/london-borough-council/sutton,London Borough of Sutton,16/04/2018,40182809,"2,940.00",Eager Health TA Care24Seven,29920,Peoples Services Directorate,Home Care,G334
http://opendatacommunities.org/id/london-borough-council/sutton,London Borough of Sutton,23/04/2018,40186547,"2,940.00",Eager Health TA Care24Seven,29920,Peoples Services Directorate,Home Care,G334
http://opendatacommunities.org/id/london-borough-council/sutton,London Borough of Sutton,12/01/2018,1252669,"16,016.49",Eagle House Junior School,15445,Peoples Services Directorate,Independent Schools,G325
http://opendatacommunities.org/id/london-borough-council/sutton,London Borough of Sutton,12/01/2018,1252670,"16,016.49",Eagle House Junior School,15445,Peoples Services Directorate,Independent Schools,G325
http://opendatacommunities.org/id/london-borough-council/sutton,London Borough of Sutton,09/04/2018,1252903,"8,332.13",Eagle House Junior School,15445,Peoples Services Directorate,Independent Schools,G325
http://opendatacommunities.org/id/london-borough-council/sutton,London Borough of Sutton,12/01/2018,1252657,"16,835.67",Eagle House Senior School,17549,Peoples Services Directorate,Independent Schools,G325
http://opendatacommunities.org/id/london-borough-council/sutton,London Borough of Sutton,12/01/2018,1252658,"17,158.00",Eagle House Senior School,17549,Peoples Services Directorate,Independent Schools,G325
http://opendatacommunities.org/id/london-borough-council/sutton,London Borough of Sutton,12/01/2018,1252659,"16,618.33",Eagle House Senior School,17549,Peoples Services Directorate,Independent Schools,G325
http://opendatacommunities.org/id/london-borough-council/sutton,London Borough of Sutton,12/01/2018,1252660,"16,618.33",Eagle House Senior School,17549,Peoples Services Directorate,Independent Schools,G325
http://opendatacommunities.org/id/london-borough-council/sutton,London Borough of Sutton,12/01/2018,1252661,"16,618.33",Eagle House Senior School,17549,Peoples Services Directorate,Independent Schools,G325
http://opendatacommunities.org/id/london-borough-council/sutton,London Borough of Sutton,12/01/2018,1252662,"16,618.33",Eagle House Senior School,17549,Peoples Services Directorate,Independent Schools,G325
http://opendatacommunities.org/id/london-borough-council/sutton,London Borough of Sutton,12/01/2018,1252663,"20,849.67",Eagle House Senior School,17549,Peoples Services Directorate,Independent Schools,G325
http://opendatacommunities.org/id/london-borough-council/sutton,London Borough of Sutton,12/01/2018,1252664,"16,618.33",Eagle House Senior School,17549,Peoples Services Directorate,Independent Schools,G325
http://opendatacommunities.org/id/london-borough-council/sutton,London Borough of Sutton,12/01/2018,1252665,"20,640.33",Eagle House Senior School,17549,Peoples Services Directorate,Independent Schools,G325
http://opendatacommunities.org/id/london-borough-council/sutton,London Borough of Sutton,12/01/2018,1252666,"17,207.67",Eagle House Senior School,17549,Peoples Services Directorate,Independent Schools,G325
http://opendatacommunities.org/id/london-borough-council/sutton,London Borough of Sutton,12/01/2018,1252667,"16,618.33",Eagle House Senior School,17549,Peoples Services Directorate,Independent Schools,G325
http://opendatacommunities.org/id/london-borough-council/sutton,London Borough of Sutton,12/01/2018,1252668,"17,690.67",Eagle House Senior School,17549,Peoples Services Directorate,Independent Schools,G325
http://opendatacommunities.org/id/london-borough-council/sutton,London Borough of Sutton,09/04/2018,1252904,"8,233.33",Eagle House Senior School,17549,Peoples Services Directorate,Independent Schools,G325
http://opendatacommunities.org/id/london-borough-council/sutton,London Borough of Sutton,05/04/2018,6928715,"1,248.00",Earth Anchors Ltd,15290,"Environment, Housing & Regeneration Directorate",Other-Materials,F115
http://opendatacommunities.org/id/london-borough-council/sutton,London Borough of Sutton,05/04/2018,6928716,"2,178.00",Earth Anchors Ltd,15290,"Environment, Housing & Regeneration Directorate",Repairs to Playground / Sports Equipment,F031
http://opendatacommunities.org/id/london-borough-council/sutton,London Borough of Sutton,05/04/2018,6928717,"1,248.00",Earth Anchors Ltd,15290,"Environment, Housing & Regeneration Directorate",Other-Materials,F115
http://opendatacommunities.org/id/london-borough-council/sutton,London Borough of Sutton,20/04/2018,40186069,"3,400.00",Eastcroft Nursing Home,11420,Peoples Services Directorate,Nursing Care - Ext Provider,G311
http://opendatacommunities.org/id/london-borough-council/sutton,London Borough of Sutton,20/04/2018,40186143,"3,400.00",Eastcroft Nursing Home,11420,Peoples Services Directorate,Nursing Care - Ext Provider,G311
http://opendatacommunities.org/id/london-borough-council/sutton,London Borough of Sutton,20/04/2018,40186194,"3,400.00",Eastcroft Nursing Home,11420,Peoples Services Directorate,Nursing Care - Ext Provider,G311
http://opendatacommunities.org/id/london-borough-council/sutton,London Borough of Sutton,20/04/2018,40186375,"3,300.00",Eastcroft Nursing Home,11420,Peoples Services Directorate,Nursing Care - Ext Provider,G311
http://opendatacommunities.org/id/london-borough-council/sutton,London Borough of Sutton,05/04/2018,6928979,"1,030.79",EDF Energy (Seeboard),13999,"Environment, Housing & Regeneration Directorate",Electricity - General,D620
http://opendatacommunities.org/id/london-borough-council/sutton,London Borough of Sutton,11/04/2018,6929250,782.16,EDF Energy (Seeboard),13999,HRA Directorate,Electricity - Anti Hypothermia Heating,D622
http://opendatacommunities.org/id/london-borough-council/sutton,London Borough of Sutton,30/04/2018,1253867,459,Elaine Carlton,29979,Peoples Services Directorate,Non-Maintained Childrens' Nurseries - 3 & 4 yr olds,G405
http://opendatacommunities.org/id/london-borough-council/sutton,London Borough of Sutton,28/02/2018,6927046,"12,971.20",Eldercare,22163,HRA Directorate,Supporting People - Alarm Services,H237
http://opendatacommunities.org/id/london-borough-council/sutton,London Borough of Sutton,31/03/2018,6929011,"11,226.42",Eldercare,22163,Peoples Services Directorate,Equipment,H250
http://opendatacommunities.org/id/london-borough-council/sutton,London Borough of Sutton,31/03/2018,6929073,"5,556.58",Eldercare,22163,Peoples Services Directorate,Agency Services,G431
http://opendatacommunities.org/id/london-borough-council/sutton,London Borough of Sutton,28/02/2018,6929885,"10,678.97",Eldercare,22163,Peoples Services Directorate,Agency Services,G431
http://opendatacommunities.org/id/london-borough-council/sutton,London Borough of Sutton,20/04/2018,40186048,"4,484.80",Eleanor Nursing & Social Care Ltd,25134,Peoples Services Directorate,Residential Care - Ext Provider,G310
http://opendatacommunities.org/id/london-borough-council/sutton,London Borough of Sutton,18/03/2018,40185430,441,Elite CarePlus Ltd,26199,Peoples Services Directorate,Home Care,G334
http://opendatacommunities.org/id/london-borough-council/sutton,London Borough of Sutton,25/03/2018,40185431,441,Elite CarePlus Ltd,26199,Peoples Services Directorate,Home Care,G334
http://opendatacommunities.org/id/london-borough-council/sutton,London Borough of Sutton,01/04/2018,40185432,441,Elite CarePlus Ltd,26199,Peoples Services Directorate,Home Care,G334
http://opendatacommunities.org/id/london-borough-council/sutton,London Borough of Sutton,08/04/2018,40185433,441,Elite CarePlus Ltd,26199,Peoples Services Directorate,Home Care,G334
http://opendatacommunities.org/id/london-borough-council/sutton,London Borough of Sutton,18/03/2018,40185438,686,Elite CarePlus Ltd,26199,Peoples Services Directorate,Home Care,G334
http://opendatacommunities.org/id/london-borough-council/sutton,London Borough of Sutton,25/03/2018,40185439,686,Elite CarePlus Ltd,26199,Peoples Services Directorate,Home Care,G334
http://opendatacommunities.org/id/london-borough-council/sutton,London Borough of Sutton,01/04/2018,40185440,686,Elite CarePlus Ltd,26199,Peoples Services Directorate,Home Care,G334
http://opendatacommunities.org/id/london-borough-council/sutton,London Borough of Sutton,08/04/2018,40185441,686,Elite CarePlus Ltd,26199,Peoples Services Directorate,Home Care,G334
http://opendatacommunities.org/id/london-borough-council/sutton,London Borough of Sutton,18/03/2018,40185442,490,Elite CarePlus Ltd,26199,Peoples Services Directorate,Home Care,G334
http://opendatacommunities.org/id/london-borough-council/sutton,London Borough of Sutton,25/03/2018,40185443,490,Elite CarePlus Ltd,26199,Peoples Services Directorate,Home Care,G334
http://opendatacommunities.org/id/london-borough-council/sutton,London Borough of Sutton,01/04/2018,40185444,490,Elite CarePlus Ltd,26199,Peoples Services Directorate,Home Care,G334
http://opendatacommunities.org/id/london-borough-council/sutton,London Borough of Sutton,08/04/2018,40185471,490,Elite CarePlus Ltd,26199,Peoples Services Directorate,Home Care,G334
http://opendatacommunities.org/id/london-borough-council/sutton,London Borough of Sutton,18/03/2018,40185482,637,Elite CarePlus Ltd,26199,Peoples Services Directorate,Home Care,G334
http://opendatacommunities.org/id/london-borough-council/sutton,London Borough of Sutton,25/03/2018,40185483,637,Elite CarePlus Ltd,26199,Peoples Services Directorate,Home Care,G334
http://opendatacommunities.org/id/london-borough-council/sutton,London Borough of Sutton,01/04/2018,40185484,637,Elite CarePlus Ltd,26199,Peoples Services Directorate,Home Care,G334
http://opendatacommunities.org/id/london-borough-council/sutton,London Borough of Sutton,08/04/2018,40185485,637,Elite CarePlus Ltd,26199,Peoples Services Directorate,Home Care,G334
http://opendatacommunities.org/id/london-borough-council/sutton,London Borough of Sutton,18/03/2018,40185490,490,Elite CarePlus Ltd,26199,Peoples Services Directorate,Home Care,G334
http://opendatacommunities.org/id/london-borough-council/sutton,London Borough of Sutton,25/03/2018,40185491,490,Elite CarePlus Ltd,26199,Peoples Services Directorate,Home Care,G334
http://opendatacommunities.org/id/london-borough-council/sutton,London Borough of Sutton,01/04/2018,40185492,490,Elite CarePlus Ltd,26199,Peoples Services Directorate,Home Care,G334
http://opendatacommunities.org/id/london-borough-council/sutton,London Borough of Sutton,08/04/2018,40185493,490,Elite CarePlus Ltd,26199,Peoples Services Directorate,Home Care,G334
http://opendatacommunities.org/id/london-borough-council/sutton,London Borough of Sutton,18/03/2018,40185537,"1,350.00",Elite CarePlus Ltd,26199,Peoples Services Directorate,Home Care,G334
http://opendatacommunities.org/id/london-borough-council/sutton,London Borough of Sutton,25/03/2018,40185538,"1,350.00",Elite CarePlus Ltd,26199,Peoples Services Directorate,Home Care,G334
http://opendatacommunities.org/id/london-borough-council/sutton,London Borough of Sutton,01/04/2018,40185539,"1,350.00",Elite CarePlus Ltd,26199,Peoples Services Directorate,Home Care,G334
http://opendatacommunities.org/id/london-borough-council/sutton,London Borough of Sutton,08/04/2018,40185540,"1,350.00",Elite CarePlus Ltd,26199,Peoples Services Directorate,Home Care,G334
http://opendatacommunities.org/id/london-borough-council/sutton,London Borough of Sutton,18/03/2018,40185619,518,Elite CarePlus Ltd,26199,Peoples Services Directorate,Home Care,G334
http://opendatacommunities.org/id/london-borough-council/sutton,London Borough of Sutton,25/03/2018,40185626,672,Elite CarePlus Ltd,26199,Peoples Services Directorate,Home Care,G334
http://opendatacommunities.org/id/london-borough-council/sutton,London Borough of Sutton,01/04/2018,40185627,672,Elite CarePlus Ltd,26199,Peoples Services Directorate,Home Care,G334
http://opendatacommunities.org/id/london-borough-council/sutton,London Borough of Sutton,08/04/2018,40185628,672,Elite CarePlus Ltd,26199,Peoples Services Directorate,Home Care,G334
http://opendatacommunities.org/id/london-borough-council/sutton,London Borough of Sutton,20/04/2018,40186123,"1,971.80",REDACTED - PERSONAL DATA,30137,Peoples Services Directorate,Nursing Care - Ext Provider,G311
http://opendatacommunities.org/id/london-borough-council/sutton,London Borough of Sutton,20/04/2018,40186291,"1,868.00",REDACTED - PERSONAL DATA,30137,Peoples Services Directorate,Residential Care - Ext Provider,G310
http://opendatacommunities.org/id/london-borough-council/sutton,London Borough of Sutton,30/04/2018,1253830,918,Emma Christian,27071,Peoples Services Directorate,Non-Maintained Childrens' Nurseries - 3 & 4 yr olds,G405
http://opendatacommunities.org/id/london-borough-council/sutton,London Borough of Sutton,03/04/2018,6928487,"749,550.00",Encompass,29087,"Environment, Housing & Regeneration Directorate",Housing Contract Fee,G025
http://opendatacommunities.org/id/london-borough-council/sutton,London Borough of Sutton,30/03/2018,6928666,"271,040.13",Eneteq Services Ltd,97718,"Environment, Housing & Regeneration Directorate",Building Works -Main Contractor,Y350
http://opendatacommunities.org/id/london-borough-council/sutton,London Borough of Sutton,29/03/2018,40180176,845.99,Enviva Paediatric Care/formerlyPNL Nursing Link Ltd (Pnl),28212,Peoples Services Directorate,Provider Contract Payments,F470
http://opendatacommunities.org/id/london-borough-council/sutton,London Borough of Sutton,20/04/2018,40186042,"2,507.14",Eothen Homes Ltd,11539,Peoples Services Directorate,Residential Care - Ext Provider,G310
http://opendatacommunities.org/id/london-borough-council/sutton,London Borough of Sutton,20/04/2018,40186072,"2,948.00",Eothen Homes Ltd,11539,Peoples Services Directorate,Residential Care - Ext Provider,G310
http://opendatacommunities.org/id/london-borough-council/sutton,London Borough of Sutton,20/04/2018,40186142,"1,724.00",Eothen Homes Ltd,11539,Peoples Services Directorate,Residential Care - Ext Provider,G310
http://opendatacommunities.org/id/london-borough-council/sutton,London Borough of Sutton,20/04/2018,40186160,"1,724.16",Eothen Homes Ltd,11539,Peoples Services Directorate,Residential Care - Ext Provider,G310
http://opendatacommunities.org/id/london-borough-council/sutton,London Borough of Sutton,30/04/2018,1253710,521.1,Epsom & St Helier Nhs Trust,11542,Peoples Services Directorate,Non-Maintained Childrens' Nurseries - 2 Year Olds,G404
http://opendatacommunities.org/id/london-borough-council/sutton,London Borough of Sutton,30/04/2018,1253766,"23,871.62",Epsom & St Helier Nhs Trust,11542,Peoples Services Directorate,Non-Maintained Childrens' Nurseries - 3 & 4 yr olds,G405
http://opendatacommunities.org/id/london-borough-council/sutton,London Borough of Sutton,30/04/2018,1253767,"24,914.33",Epsom & St Helier Nhs Trust,11542,Peoples Services Directorate,Non-Maintained Childrens' Nurseries - 3 & 4 yr olds,G405
http://opendatacommunities.org/id/london-borough-council/sutton,London Borough of Sutton,05/04/2018,1253642,"5,974.63",Ethelbert Specialist Homes Ltd,11560,Peoples Services Directorate,Independent Schools,G325
http://opendatacommunities.org/id/london-borough-council/sutton,London Borough of Sutton,01/04/2018,6928720,"1,350.00",Ethelbert Specialist Homes Ltd,11560,Peoples Services Directorate,LAC - Education,F269
http://opendatacommunities.org/id/london-borough-council/sutton,London Borough of Sutton,25/03/2018,6928541,"2,653.00",Euro Hotels (Croydon Court) Ltd,21414,"Environment, Housing & Regeneration Directorate",Bed and Breakfast Accommodation,G400
http://opendatacommunities.org/id/london-borough-council/sutton,London Borough of Sutton,15/04/2018,6929887,"3,129.00",Euro Hotels (Croydon Court) Ltd,21414,"Environment, Housing & Regeneration Directorate",Bed and Breakfast Accommodation,G400
http://opendatacommunities.org/id/london-borough-council/sutton,London Borough of Sutton,25/03/2018,6929267,"5,040.00",Euro Hotels (Gilroy Court) Ltd,25822,"Environment, Housing & Regeneration Directorate",Bed and Breakfast Accommodation,G400
http://opendatacommunities.org/id/london-borough-council/sutton,London Borough of Sutton,19/11/2017,6929289,833,Euro Hotels (Gilroy Court) Ltd,25822,"Environment, Housing & Regeneration Directorate",Bed and Breakfast Accommodation,G400
http://opendatacommunities.org/id/london-borough-council/sutton,London Borough of Sutton,25/03/2018,6929290,"1,872.50",Euro Hotels (Gilroy Court) Ltd,25822,"Environment, Housing & Regeneration Directorate",Bed and Breakfast Accommodation,G400
http://opendatacommunities.org/id/london-borough-council/sutton,London Borough of Sutton,01/04/2018,6929596,"4,787.00",Euro Hotels (Gilroy Court) Ltd,25822,"Environment, Housing & Regeneration Directorate",Bed and Breakfast Accommodation,G400
http://opendatacommunities.org/id/london-borough-council/sutton,London Borough of Sutton,12/11/2017,6929854,"2,728.00",Euro Hotels (Gilroy Court) Ltd,25822,"Environment, Housing & Regeneration Directorate",Bed and Breakfast Accommodation,G400
http://opendatacommunities.org/id/london-borough-council/sutton,London Borough of Sutton,15/04/2018,6929886,"1,872.50",Euro Hotels (Gilroy Court) Ltd,25822,"Environment, Housing & Regeneration Directorate",Bed and Breakfast Accommodation,G400
http://opendatacommunities.org/id/london-borough-council/sutton,London Borough of Sutton,15/04/2018,6929901,"4,180.00",Euro Hotels (Gilroy Court) Ltd,25822,"Environment, Housing & Regeneration Directorate",Bed and Breakfast Accommodation,G400
http://opendatacommunities.org/id/london-borough-council/sutton,London Borough of Sutton,22/04/2018,6930019,"1,872.50",Euro Hotels (Gilroy Court) Ltd,25822,"Environment, Housing & Regeneration Directorate",Bed and Breakfast Accommodation,G400
http://opendatacommunities.org/id/london-borough-council/sutton,London Borough of Sutton,22/04/2018,6930027,"4,501.00",Euro Hotels (Gilroy Court) Ltd,25822,"Environment, Housing & Regeneration Directorate",Bed and Breakfast Accommodation,G400
http://opendatacommunities.org/id/london-borough-council/sutton,London Borough of Sutton,25/03/2018,6929266,595,Euro Hotels (Thornton Heath) Ltd,10030,"Environment, Housing & Regeneration Directorate",Bed and Breakfast Accommodation,G400
http://opendatacommunities.org/id/london-borough-council/sutton,London Borough of Sutton,25/03/2018,6929580,"6,212.95",Euro Hotels (Thornton Heath) Ltd,10030,"Environment, Housing & Regeneration Directorate",Bed and Breakfast Accommodation,G400
http://opendatacommunities.org/id/london-borough-council/sutton,London Borough of Sutton,15/04/2018,6929900,595,Euro Hotels (Thornton Heath) Ltd,10030,"Environment, Housing & Regeneration Directorate",Bed and Breakfast Accommodation,G400
http://opendatacommunities.org/id/london-borough-council/sutton,London Borough of Sutton,15/04/2018,6929945,"6,641.95",Euro Hotels (Thornton Heath) Ltd,10030,"Environment, Housing & Regeneration Directorate",Bed and Breakfast Accommodation,G400
http://opendatacommunities.org/id/london-borough-council/sutton,London Borough of Sutton,22/04/2018,6930028,595,Euro Hotels (Thornton Heath) Ltd,10030,"Environment, Housing & Regeneration Directorate",Bed and Breakfast Accommodation,G400
http://opendatacommunities.org/id/london-borough-council/sutton,London Borough of Sutton,22/04/2018,6930030,"6,765.20",Euro Hotels (Thornton Heath) Ltd,10030,"Environment, Housing & Regeneration Directorate",Bed and Breakfast Accommodation,G400
http://opendatacommunities.org/id/london-borough-council/sutton,London Borough of Sutton,28/03/2018,1252673,"6,666.66",Everyday Arts Ltd ( t/a The Green Room School),29110,Peoples Services Directorate,Independent Schools,G325
http://opendatacommunities.org/id/london-borough-council/sutton,London Borough of Sutton,06/04/2018,1253293,"5,355.19",Ewell Castle School,11584,Peoples Services Directorate,Independent Schools,G325
http://opendatacommunities.org/id/london-borough-council/sutton,London Borough of Sutton,24/04/2018,6929671,"4,199.64",F M Conway Limited,97060,"Environment, Housing & Regeneration Directorate",Roads & Sewers Etc-Main Contract,Y300
http://opendatacommunities.org/id/london-borough-council/sutton,London Borough of Sutton,16/04/2018,6929795,"52,650.78",F M Conway Limited,97060,"Environment, Housing & Regeneration Directorate",Roads & Sewers Etc-Main Contract,Y300
http://opendatacommunities.org/id/london-borough-council/sutton,London Borough of Sutton,16/04/2018,6929796,"42,090.51",F M Conway Limited,97060,"Environment, Housing & Regeneration Directorate",Roads & Sewers Etc-Main Contract,Y300
http://opendatacommunities.org/id/london-borough-council/sutton,London Borough of Sutton,16/04/2018,6929797,"10,290.18",F M Conway Limited,97060,"Environment, Housing & Regeneration Directorate",Roads & Sewers Etc-Main Contract,Y300
http://opendatacommunities.org/id/london-borough-council/sutton,London Borough of Sutton,30/04/2018,1253711,"2,605.50",Fairlands Pre-School,11598,Peoples Services Directorate,Non-Maintained Childrens' Nurseries - 2 Year Olds,G404
http://opendatacommunities.org/id/london-borough-council/sutton,London Borough of Sutton,30/04/2018,1253768,"14,779.80",Fairlands Pre-School,11598,Peoples Services Directorate,Non-Maintained Childrens' Nurseries - 3 & 4 yr olds,G405
http://opendatacommunities.org/id/london-borough-council/sutton,London Borough of Sutton,28/03/2018,6929268,500,Family Action Enterprises Ltd,29710,Peoples Services Directorate,Training - Course Fees,A520
http://opendatacommunities.org/id/london-borough-council/sutton,London Borough of Sutton,31/03/2018,40181946,"5,757.14",Family First Fostering,27926,Peoples Services Directorate,Foster Parents,G326
http://opendatacommunities.org/id/london-borough-council/sutton,London Borough of Sutton,28/02/2018,40181963,"5,200.00",Family First Fostering,27926,Peoples Services Directorate,Foster Parents,G326
http://opendatacommunities.org/id/london-borough-council/sutton,London Borough of Sutton,26/04/2018,1253404,"25,916.67",Family Mosaic Housing,21012,"Environment, Housing & Regeneration Directorate",Supporting People - Mental Health Services,H243
http://opendatacommunities.org/id/london-borough-council/sutton,London Borough of Sutton,26/04/2018,1253405,"15,494.58",Family Mosaic Housing,21012,"Environment, Housing & Regeneration Directorate",Supporting People - Generic Services,H241
http://opendatacommunities.org/id/london-borough-council/sutton,London Borough of Sutton,20/04/2018,40186185,"3,400.00",Family Star Ltd,19653,Peoples Services Directorate,Nursing Care - Ext Provider,G311
http://opendatacommunities.org/id/london-borough-council/sutton,London Borough of Sutton,20/04/2018,40186302,"2,400.00",Family Star Ltd,19653,Peoples Services Directorate,Nursing Care - Ext Provider,G311
http://opendatacommunities.org/id/london-borough-council/sutton,London Borough of Sutton,29/03/2018,6928558,"35,720.00",Farrells (London) LLP,32105,"Environment, Housing & Regeneration Directorate",Consultants/Hons,A310
http://opendatacommunities.org/id/london-borough-council/sutton,London Borough of Sutton,22/03/2018,6928088,"1,061.50",Fat Boys Ltd T/A Simply Lunch,32115,Peoples Services Directorate,Refreshments,F155
http://opendatacommunities.org/id/london-borough-council/sutton,London Borough of Sutton,01/04/2018,6929562,"7,692.00",Fern Court London Limited,26961,"Environment, Housing & Regeneration Directorate",Bed and Breakfast Accommodation,G400
http://opendatacommunities.org/id/london-borough-council/sutton,London Borough of Sutton,01/04/2018,6929566,"3,377.00",Fern Court London Limited,26961,"Environment, Housing & Regeneration Directorate",Bed and Breakfast Accommodation,G400
http://opendatacommunities.org/id/london-borough-council/sutton,London Borough of Sutton,01/04/2018,6929385,703,Fierce Neutral Ltd,16535,"Environment, Housing & Regeneration Directorate",Bed and Breakfast Accommodation,G400
http://opendatacommunities.org/id/london-borough-council/sutton,London Borough of Sutton,01/04/2018,6929389,"1,392.00",Fierce Neutral Ltd,16535,"Environment, Housing & Regeneration Directorate",Bed and Breakfast Accommodation,G400
http://opendatacommunities.org/id/london-borough-council/sutton,London Borough of Sutton,01/04/2018,6929390,868,Fierce Neutral Ltd,16535,"Environment, Housing & Regeneration Directorate",Bed and Breakfast Accommodation,G400
http://opendatacommunities.org/id/london-borough-council/sutton,London Borough of Sutton,01/04/2018,6929392,"1,395.00",Fierce Neutral Ltd,16535,"Environment, Housing & Regeneration Directorate",Bed and Breakfast Accommodation,G400
http://opendatacommunities.org/id/london-borough-council/sutton,London Borough of Sutton,01/04/2018,6929393,"1,147.00",Fierce Neutral Ltd,16535,"Environment, Housing & Regeneration Directorate",Bed and Breakfast Accommodation,G400
http://opendatacommunities.org/id/london-borough-council/sutton,London Borough of Sutton,01/04/2018,6929404,"1,147.00",Fierce Neutral Ltd,16535,"Environment, Housing & Regeneration Directorate",Bed and Breakfast Accommodation,G400
http://opendatacommunities.org/id/london-borough-council/sutton,London Borough of Sutton,01/04/2018,6929405,481,Fierce Neutral Ltd,16535,"Environment, Housing & Regeneration Directorate",Bed and Breakfast Accommodation,G400
http://opendatacommunities.org/id/london-borough-council/sutton,London Borough of Sutton,01/04/2018,6929406,868,Fierce Neutral Ltd,16535,"Environment, Housing & Regeneration Directorate",Bed and Breakfast Accommodation,G400
http://opendatacommunities.org/id/london-borough-council/sutton,London Borough of Sutton,01/04/2018,6929407,"1,147.00",Fierce Neutral Ltd,16535,"Environment, Housing & Regeneration Directorate",Bed and Breakfast Accommodation,G400
http://opendatacommunities.org/id/london-borough-council/sutton,London Borough of Sutton,01/04/2018,6929409,"1,147.00",Fierce Neutral Ltd,16535,"Environment, Housing & Regeneration Directorate",Bed and Breakfast Accommodation,G400
http://opendatacommunities.org/id/london-borough-council/sutton,London Borough of Sutton,01/04/2018,6929410,868,Fierce Neutral Ltd,16535,"Environment, Housing & Regeneration Directorate",Bed and Breakfast Accommodation,G400
http://opendatacommunities.org/id/london-borough-council/sutton,London Borough of Sutton,01/04/2018,6929411,868,Fierce Neutral Ltd,16535,"Environment, Housing & Regeneration Directorate",Bed and Breakfast Accommodation,G400
http://opendatacommunities.org/id/london-borough-council/sutton,London Borough of Sutton,01/04/2018,6929412,"1,147.00",Fierce Neutral Ltd,16535,"Environment, Housing & Regeneration Directorate",Bed and Breakfast Accommodation,G400
http://opendatacommunities.org/id/london-borough-council/sutton,London Borough of Sutton,01/04/2018,6929413,"1,147.00",Fierce Neutral Ltd,16535,"Environment, Housing & Regeneration Directorate",Bed and Breakfast Accommodation,G400
http://opendatacommunities.org/id/london-borough-council/sutton,London Borough of Sutton,01/04/2018,6929414,"1,023.00",Fierce Neutral Ltd,16535,"Environment, Housing & Regeneration Directorate",Bed and Breakfast Accommodation,G400
http://opendatacommunities.org/id/london-borough-council/sutton,London Borough of Sutton,27/02/2018,40182294,"1,340.00",Fircroft Homes,11660,Peoples Services Directorate,Supported Living - Ext Provider,G306
http://opendatacommunities.org/id/london-borough-council/sutton,London Borough of Sutton,20/04/2018,40185413,"3,438.00",Fircroft Homes,11660,Peoples Services Directorate,Residential Care - Ext Provider,G310
http://opendatacommunities.org/id/london-borough-council/sutton,London Borough of Sutton,03/04/2018,40188120,"1,340.00",Fircroft Homes,11660,Peoples Services Directorate,Supported Living - Ext Provider,G306
http://opendatacommunities.org/id/london-borough-council/sutton,London Borough of Sutton,30/04/2018,1253747,"8,858.70",First Little Steps  Day Nursery,27125,Peoples Services Directorate,Non-Maintained Childrens' Nurseries - 2 Year Olds,G404
http://opendatacommunities.org/id/london-borough-council/sutton,London Borough of Sutton,30/04/2018,1253834,"5,755.50",First Little Steps  Day Nursery,27125,Peoples Services Directorate,Non-Maintained Childrens' Nurseries - 3 & 4 yr olds,G405
http://opendatacommunities.org/id/london-borough-council/sutton,London Borough of Sutton,20/04/2018,40186229,"2,600.00",Firtree House Nursing Home,11653,Peoples Services Directorate,Nursing Care - Ext Provider,G311
http://opendatacommunities.org/id/london-borough-council/sutton,London Borough of Sutton,01/03/2018,40182271,"1,224.28",Fitzroy,11657,Peoples Services Directorate,Day Care,G337
http://opendatacommunities.org/id/london-borough-council/sutton,London Borough of Sutton,20/04/2018,40186211,"3,758.08",Fitzroy,11657,Peoples Services Directorate,Residential Care - Ext Provider,G310
http://opendatacommunities.org/id/london-borough-council/sutton,London Borough of Sutton,20/04/2018,40186298,"7,200.00",Florence Avenue Care Home Ltd,26881,Peoples Services Directorate,Residential Care - Ext Provider,G310
http://opendatacommunities.org/id/london-borough-council/sutton,London Borough of Sutton,09/04/2018,40181965,"4,185.00",Flying Colours Foster Care Ltd,24309,Peoples Services Directorate,Foster Parents,G326
http://opendatacommunities.org/id/london-borough-council/sutton,London Borough of Sutton,11/04/2018,6929442,"4,567.59",Forbidden Planet Ltd,21894,Chief Executive's Directorate,Books,F006
http://opendatacommunities.org/id/london-borough-council/sutton,London Borough of Sutton,11/04/2018,6929443,424.48,Forbidden Planet Ltd,21894,Chief Executive's Directorate,Books,F006
http://opendatacommunities.org/id/london-borough-council/sutton,London Borough of Sutton,01/04/2018,1252595,"121,890.08",Foresters Primary,11726,Peoples Services Directorate,Place Funding,G063
http://opendatacommunities.org/id/london-borough-council/sutton,London Borough of Sutton,01/04/2018,1252596,"14,603.83",Foresters Primary,11726,Peoples Services Directorate,Top-up Funding,G064
http://opendatacommunities.org/id/london-borough-council/sutton,London Borough of Sutton,15/03/2018,40181939,"2,573.78",Foster Care Associates Ltd,11729,Peoples Services Directorate,Foster Parents,G326
http://opendatacommunities.org/id/london-borough-council/sutton,London Borough of Sutton,15/03/2018,40181940,"3,626.69",Foster Care Associates Ltd,11729,Peoples Services Directorate,Foster Parents,G326
http://opendatacommunities.org/id/london-borough-council/sutton,London Borough of Sutton,28/02/2018,40181990,"3,110.16",Fostering For You,24993,Peoples Services Directorate,Foster Parents,G326
http://opendatacommunities.org/id/london-borough-council/sutton,London Borough of Sutton,21/03/2018,40181991,"3,443.39",Fostering For You,24993,Peoples Services Directorate,Foster Parents,G326
http://opendatacommunities.org/id/london-borough-council/sutton,London Borough of Sutton,20/04/2018,1253623,"15,816.85",Foxes Academy Ltd,25760,Peoples Services Directorate,Independent Schools,G325
http://opendatacommunities.org/id/london-borough-council/sutton,London Borough of Sutton,20/04/2018,1253624,"4,137.46",Foxes Academy Ltd,25760,Peoples Services Directorate,Independent Schools,G325
http://opendatacommunities.org/id/london-borough-council/sutton,London Borough of Sutton,20/04/2018,40186037,"2,200.00",Foxley Lodge,16555,Peoples Services Directorate,Interim Placements - Ext Provider,G317
http://opendatacommunities.org/id/london-borough-council/sutton,London Borough of Sutton,20/04/2018,40186316,"6,678.57",Foxley Lodge,16555,Peoples Services Directorate,Residential Care - Ext Provider,G310
http://opendatacommunities.org/id/london-borough-council/sutton,London Borough of Sutton,20/04/2018,40185428,"11,722.14",Francesca Hooper t/a Marston Avenue,28564,Peoples Services Directorate,Respite Care - Residential,G327
http://opendatacommunities.org/id/london-borough-council/sutton,London Borough of Sutton,23/03/2018,6929300,"1,969.00",Freeway Lift Services Ltd,99815,"Environment, Housing & Regeneration Directorate",Grants -Made,Y610
http://opendatacommunities.org/id/london-borough-council/sutton,London Borough of Sutton,30/03/2018,1253294,"8,820.00",Fresh Start In Education Ltd,28509,Peoples Services Directorate,Independent Schools,G325
http://opendatacommunities.org/id/london-borough-council/sutton,London Borough of Sutton,30/03/2018,1253295,"3,468.00",Fresh Start In Education Ltd,28509,Peoples Services Directorate,Independent Schools,G325
http://opendatacommunities.org/id/london-borough-council/sutton,London Borough of Sutton,17/04/2018,1253296,"4,080.00",Fresh Start In Education Ltd,28509,Peoples Services Directorate,Independent Schools,G325
http://opendatacommunities.org/id/london-borough-council/sutton,London Borough of Sutton,30/03/2018,1253651,612,Fresh Start In Education Ltd,28509,Peoples Services Directorate,Independent Schools,G325
http://opendatacommunities.org/id/london-borough-council/sutton,London Borough of Sutton,27/03/2018,40181961,"9,610.54",Freshstart Care Solutions,28855,Peoples Services Directorate,Approved Lodgings,H323
http://opendatacommunities.org/id/london-borough-council/sutton,London Borough of Sutton,20/04/2018,40186163,"1,692.00",Friends Of The Elderly,11766,Peoples Services Directorate,Residential Care - Ext Provider,G310
http://opendatacommunities.org/id/london-borough-council/sutton,London Borough of Sutton,20/04/2018,40186188,"2,800.00",Friends Of The Elderly,11766,Peoples Services Directorate,Residential Care - Ext Provider,G310
http://opendatacommunities.org/id/london-borough-council/sutton,London Borough of Sutton,20/04/2018,40186268,"3,212.00",Friends Of The Elderly,11766,Peoples Services Directorate,Residential Care - Ext Provider,G310
http://opendatacommunities.org/id/london-borough-council/sutton,London Borough of Sutton,20/04/2018,40186299,"4,192.00",Friends Of The Elderly,11766,Peoples Services Directorate,Nursing Care - Ext Provider,G311
http://opendatacommunities.org/id/london-borough-council/sutton,London Borough of Sutton,20/04/2018,40186327,"1,150.28",Friends Of The Elderly,11766,Peoples Services Directorate,Residential Care - Ext Provider,G310
http://opendatacommunities.org/id/london-borough-council/sutton,London Borough of Sutton,20/04/2018,40186383,"3,212.00",Friends Of The Elderly,11766,Peoples Services Directorate,Residential Care - Ext Provider,G310
http://opendatacommunities.org/id/london-borough-council/sutton,London Borough of Sutton,19/03/2018,40184980,"4,672.00",Frontier Support Services,28792,Peoples Services Directorate,Supported Living - Ext Provider,G306
http://opendatacommunities.org/id/london-borough-council/sutton,London Borough of Sutton,19/03/2018,40184984,"5,723.20",Frontier Support Services,28792,Peoples Services Directorate,Supported Living - Ext Provider,G306
http://opendatacommunities.org/id/london-borough-council/sutton,London Borough of Sutton,01/04/2018,1253898,592.9,Fulston Manor School,32199,Peoples Services Directorate,Payments to Schools,G065
http://opendatacommunities.org/id/london-borough-council/sutton,London Borough of Sutton,29/03/2018,6929740,"1,000.00",G & G Signs,19838,"Environment, Housing & Regeneration Directorate",Other-Materials,F115
http://opendatacommunities.org/id/london-borough-council/sutton,London Borough of Sutton,09/04/2018,6928831,936.26,G & L Hellings,99898,"Environment, Housing & Regeneration Directorate",Depositors,X460
http://opendatacommunities.org/id/london-borough-council/sutton,London Borough of Sutton,05/04/2018,40179947,"3,232.15",Gable Lodge,11789,Peoples Services Directorate,Interim Placements - Ext Provider,G317
http://opendatacommunities.org/id/london-borough-council/sutton,London Borough of Sutton,05/04/2018,40179954,"3,142.86",Gable Lodge,11789,Peoples Services Directorate,Interim Placements - Ext Provider,G317
http://opendatacommunities.org/id/london-borough-council/sutton,London Borough of Sutton,20/04/2018,40186243,"1,300.00",Gable Lodge,11789,Peoples Services Directorate,Interim Placements - Ext Provider,G317
http://opendatacommunities.org/id/london-borough-council/sutton,London Borough of Sutton,20/04/2018,40186285,"1,114.29",Gable Lodge,11789,Peoples Services Directorate,Interim Placements - Ext Provider,G317
http://opendatacommunities.org/id/london-borough-council/sutton,London Borough of Sutton,20/04/2018,40186365,"2,294.12",Gable Lodge,11789,Peoples Services Directorate,Nursing Care - Ext Provider,G311
http://opendatacommunities.org/id/london-borough-council/sutton,London Borough of Sutton,20/04/2018,40186084,"3,000.00",Galleon Care Homes Ltd,23693,Peoples Services Directorate,Nursing Care - Ext Provider,G311
http://opendatacommunities.org/id/london-borough-council/sutton,London Borough of Sutton,27/04/2018,6930014,"2,000.00",Gandlake Limited,18183,Resources Directorate,Internal Fees - Project Management,Y180
http://opendatacommunities.org/id/london-borough-council/sutton,London Borough of Sutton,20/04/2018,40186080,"1,744.00",Gate Lodge Care Home,16164,Peoples Services Directorate,Residential Care - Ext Provider,G310
http://opendatacommunities.org/id/london-borough-council/sutton,London Borough of Sutton,20/04/2018,40186151,"2,004.29",Gate Lodge Care Home,16164,Peoples Services Directorate,Interim Placements - Ext Provider,G317
http://opendatacommunities.org/id/london-borough-council/sutton,London Borough of Sutton,20/04/2018,40186190,"2,400.00",Gate Lodge Care Home,16164,Peoples Services Directorate,Residential Care - Ext Provider,G310
http://opendatacommunities.org/id/london-borough-council/sutton,London Borough of Sutton,30/04/2018,1253857,459,REDACTED - PERSONAL DATA,29278,Peoples Services Directorate,Non-Maintained Childrens' Nurseries - 3 & 4 yr olds,G405
http://opendatacommunities.org/id/london-borough-council/sutton,London Borough of Sutton,16/03/2018,40186768,"4,573.40",Gay's The Word,21551,Chief Executive's Directorate,Books,F006
http://opendatacommunities.org/id/london-borough-council/sutton,London Borough of Sutton,19/04/2018,6929668,533,Gbs Re Northern Devon Ht,26640,Chief Executive's Directorate,Provider Contract Payments,F470
http://opendatacommunities.org/id/london-borough-council/sutton,London Borough of Sutton,20/02/2018,40182642,661.07,Geneva Road Ltd,23449,Peoples Services Directorate,Day Care,G337
http://opendatacommunities.org/id/london-borough-council/sutton,London Borough of Sutton,17/04/2018,6929457,770.13,REDACTED - PERSONAL DATA,25407,Peoples Services Directorate,Miscellaneous Costs,G499
http://opendatacommunities.org/id/london-borough-council/sutton,London Borough of Sutton,01/04/2018,1252585,"16,045.83",Girls� Learning Trust t/a Carshalton High School for Girls (Academy),23995,Peoples Services Directorate,Top-up Funding,G064
http://opendatacommunities.org/id/london-borough-council/sutton,London Borough of Sutton,30/04/2018,1253732,"1,563.30",Glaisdale Day Nursery,21887,Peoples Services Directorate,Non-Maintained Childrens' Nurseries - 2 Year Olds,G404
http://opendatacommunities.org/id/london-borough-council/sutton,London Borough of Sutton,30/04/2018,1253800,"46,038.38",Glaisdale Day Nursery,21887,Peoples Services Directorate,Non-Maintained Childrens' Nurseries - 3 & 4 yr olds,G405
http://opendatacommunities.org/id/london-borough-council/sutton,London Borough of Sutton,01/04/2018,1252597,"50,539.92",Glenthorne High School (Academy),24072,Peoples Services Directorate,Place Funding,G063
http://opendatacommunities.org/id/london-borough-council/sutton,London Borough of Sutton,01/04/2018,1252598,"16,083.33",Glenthorne High School (Academy),24072,Peoples Services Directorate,Top-up Funding,G064
http://opendatacommunities.org/id/london-borough-council/sutton,London Borough of Sutton,01/04/2018,1252598,"1,510.00",Glenthorne High School (Academy),24072,Peoples Services Directorate,Top-up Funding,G064
http://opendatacommunities.org/id/london-borough-council/sutton,London Borough of Sutton,01/04/2018,1253914,610,Glenthorne High School (Academy),24072,Peoples Services Directorate,Payments to Schools,G065
http://opendatacommunities.org/id/london-borough-council/sutton,London Borough of Sutton,13/04/2018,6929425,"4,568.00",GMS Access Ramps,99815,"Environment, Housing & Regeneration Directorate",Grants -Made,Y610
http://opendatacommunities.org/id/london-borough-council/sutton,London Borough of Sutton,20/04/2018,40186033,"2,700.00",Grange Cottage Ltd,11892,Peoples Services Directorate,Residential Care - Ext Provider,G310
http://opendatacommunities.org/id/london-borough-council/sutton,London Borough of Sutton,20/04/2018,40186049,"3,238.40",Grange Cottage Ltd,11892,Peoples Services Directorate,Residential Care - Ext Provider,G310
http://opendatacommunities.org/id/london-borough-council/sutton,London Borough of Sutton,20/04/2018,40186060,"2,500.00",Grange Cottage Ltd,11892,Peoples Services Directorate,Residential Care - Ext Provider,G310
http://opendatacommunities.org/id/london-borough-council/sutton,London Borough of Sutton,20/04/2018,40186099,"2,600.00",Grange Cottage Ltd,11892,Peoples Services Directorate,Residential Care - Ext Provider,G310
http://opendatacommunities.org/id/london-borough-council/sutton,London Borough of Sutton,20/04/2018,40186131,"1,882.40",Grange Cottage Ltd,11892,Peoples Services Directorate,Residential Care - Ext Provider,G310
http://opendatacommunities.org/id/london-borough-council/sutton,London Borough of Sutton,20/04/2018,40186154,"1,285.71",Grange Cottage Ltd,11892,Peoples Services Directorate,Interim Placements - Ext Provider,G317
http://opendatacommunities.org/id/london-borough-council/sutton,London Borough of Sutton,20/04/2018,40186155,"3,807.14",Grange Cottage Ltd,11892,Peoples Services Directorate,Residential Care - Ext Provider,G310
http://opendatacommunities.org/id/london-borough-council/sutton,London Borough of Sutton,20/04/2018,40186234,"2,800.00",Grange Cottage Ltd,11892,Peoples Services Directorate,Residential Care - Ext Provider,G310
http://opendatacommunities.org/id/london-borough-council/sutton,London Borough of Sutton,20/04/2018,40186286,"2,742.86",Grange Cottage Ltd,11892,Peoples Services Directorate,Respite Care - Residential,G327
http://opendatacommunities.org/id/london-borough-council/sutton,London Borough of Sutton,20/04/2018,40186317,964.29,Grange Cottage Ltd,11892,Peoples Services Directorate,Respite Care - Residential,G327
http://opendatacommunities.org/id/london-borough-council/sutton,London Borough of Sutton,20/04/2018,40186349,"12,439.29",Grange Cottage Ltd,11892,Peoples Services Directorate,Interim Placements - Ext Provider,G317
http://opendatacommunities.org/id/london-borough-council/sutton,London Borough of Sutton,17/04/2018,1253647,"2,738.30",Granton Primary School,32136,Peoples Services Directorate,Top-up Funding,G064
http://opendatacommunities.org/id/london-borough-council/sutton,London Borough of Sutton,20/04/2018,40185996,"1,801.36",Grasmere Rest Home,11893,Peoples Services Directorate,Residential Care - Ext Provider,G310
http://opendatacommunities.org/id/london-borough-council/sutton,London Borough of Sutton,20/04/2018,40186022,"2,408.56",Grasmere Rest Home,11893,Peoples Services Directorate,Residential Care - Ext Provider,G310
http://opendatacommunities.org/id/london-borough-council/sutton,London Borough of Sutton,20/04/2018,40186023,"2,300.00",Grasmere Rest Home,11893,Peoples Services Directorate,Residential Care - Ext Provider,G310
http://opendatacommunities.org/id/london-borough-council/sutton,London Borough of Sutton,20/04/2018,40186041,"3,100.00",Grasmere Rest Home,11893,Peoples Services Directorate,Residential Care - Ext Provider,G310
http://opendatacommunities.org/id/london-borough-council/sutton,London Borough of Sutton,20/04/2018,40186085,"2,274.96",Grasmere Rest Home,11893,Peoples Services Directorate,Residential Care - Ext Provider,G310
http://opendatacommunities.org/id/london-borough-council/sutton,London Borough of Sutton,20/04/2018,40186115,"1,680.16",Grasmere Rest Home,11893,Peoples Services Directorate,Residential Care - Ext Provider,G310
http://opendatacommunities.org/id/london-borough-council/sutton,London Borough of Sutton,20/04/2018,40186130,"2,600.00",Grasmere Rest Home,11893,Peoples Services Directorate,Residential Care - Ext Provider,G310
http://opendatacommunities.org/id/london-borough-council/sutton,London Borough of Sutton,20/04/2018,40186153,"2,700.00",Grasmere Rest Home,11893,Peoples Services Directorate,Interim Placements - Ext Provider,G317
http://opendatacommunities.org/id/london-borough-council/sutton,London Borough of Sutton,20/04/2018,40186157,"1,801.36",Grasmere Rest Home,11893,Peoples Services Directorate,Residential Care - Ext Provider,G310
http://opendatacommunities.org/id/london-borough-council/sutton,London Borough of Sutton,20/04/2018,40186279,"2,600.00",Grasmere Rest Home,11893,Peoples Services Directorate,Residential Care - Ext Provider,G310
http://opendatacommunities.org/id/london-borough-council/sutton,London Borough of Sutton,20/04/2018,40186306,"2,600.00",Grasmere Rest Home,11893,Peoples Services Directorate,Residential Care - Ext Provider,G310
http://opendatacommunities.org/id/london-borough-council/sutton,London Borough of Sutton,01/04/2018,1252599,"313,368.17",Green Wrythe Primary School,11902,Peoples Services Directorate,Place Funding,G063
http://opendatacommunities.org/id/london-borough-council/sutton,London Borough of Sutton,01/04/2018,1252600,"4,062.50",Green Wrythe Primary School,11902,Peoples Services Directorate,Top-up Funding,G064
http://opendatacommunities.org/id/london-borough-council/sutton,London Borough of Sutton,01/04/2018,1252601,"4,167.00",Green Wrythe Primary School,11902,Peoples Services Directorate,Payments to Schools,G065
http://opendatacommunities.org/id/london-borough-council/sutton,London Borough of Sutton,01/04/2018,1252602,"48,333.33",Green Wrythe Primary School,11902,Peoples Services Directorate,Top-up Funding,G064
http://opendatacommunities.org/id/london-borough-council/sutton,London Borough of Sutton,26/04/2018,6929842,522.5,Green Wrythe Surgery,25736,Chief Executive's Directorate,Provider Contract Payments,F470
http://opendatacommunities.org/id/london-borough-council/sutton,London Borough of Sutton,20/04/2018,40185991,"5,616.08",Greenfield Care Homes Limited,22712,Peoples Services Directorate,Residential Care - Ext Provider,G310
http://opendatacommunities.org/id/london-borough-council/sutton,London Borough of Sutton,01/04/2018,1252603,"15,831.33",Greenshaw High School (Academy),23985,Peoples Services Directorate,Place Funding,G063
http://opendatacommunities.org/id/london-borough-council/sutton,London Borough of Sutton,01/04/2018,1252604,"13,712.50",Greenshaw High School (Academy),23985,Peoples Services Directorate,Top-up Funding,G064
http://opendatacommunities.org/id/london-borough-council/sutton,London Borough of Sutton,01/04/2018,1252604,"6,041.67",Greenshaw High School (Academy),23985,Peoples Services Directorate,Top-up Funding,G064
http://opendatacommunities.org/id/london-borough-council/sutton,London Borough of Sutton,01/04/2018,1252635,"11,229.17",Greenshaw Learning Trust t/a Victor Seymour Infants School,29002,Peoples Services Directorate,Top-up Funding,G064
http://opendatacommunities.org/id/london-borough-council/sutton,London Borough of Sutton,30/04/2018,1253730,"1,042.20",Greenwich Leisure Ltd,19543,Peoples Services Directorate,Non-Maintained Childrens' Nurseries - 2 Year Olds,G404
http://opendatacommunities.org/id/london-borough-council/sutton,London Borough of Sutton,30/04/2018,1253796,"17,896.50",Greenwich Leisure Ltd,19543,Peoples Services Directorate,Non-Maintained Childrens' Nurseries - 3 & 4 yr olds,G405
http://opendatacommunities.org/id/london-borough-council/sutton,London Borough of Sutton,26/04/2018,6929920,"30,500.00",Gummersalls Client Account,99827,Peoples Services Directorate,Purchase Price,Y010
http://opendatacommunities.org/id/london-borough-council/sutton,London Borough of Sutton,16/04/2018,6929317,495,Hackbridge Medical Centre,25738,Chief Executive's Directorate,Provider Contract Payments,F470
http://opendatacommunities.org/id/london-borough-council/sutton,London Borough of Sutton,01/04/2018,1252605,"13,976.03",Hackbridge Primary School,12000,Peoples Services Directorate,Top-up Funding,G064
http://opendatacommunities.org/id/london-borough-council/sutton,London Borough of Sutton,12/04/2018,6929116,"51,500.00",Hags-SMP Ltd,97608,"Environment, Housing & Regeneration Directorate",Equipment youth,Y526
http://opendatacommunities.org/id/london-borough-council/sutton,London Borough of Sutton,26/02/2018,1252707,"26,966.00",Hamilton Lodge (Education) Ltd,11978,Peoples Services Directorate,NMSS Payments,G061
http://opendatacommunities.org/id/london-borough-council/sutton,London Borough of Sutton,03/04/2018,6928534,"1,105.00",Hammond Clarke Ltd,26383,Resources Directorate,Consultants/Hons,A310
http://opendatacommunities.org/id/london-borough-council/sutton,London Borough of Sutton,04/04/2018,6928647,"1,768.00",Hammond Clarke Ltd,26383,Resources Directorate,Consultants/Hons,A310
http://opendatacommunities.org/id/london-borough-council/sutton,London Borough of Sutton,12/04/2018,6929111,"1,768.00",Hammond Clarke Ltd,26383,Resources Directorate,Consultants/Hons,A310
http://opendatacommunities.org/id/london-borough-council/sutton,London Borough of Sutton,18/04/2018,6929454,"2,210.00",Hammond Clarke Ltd,26383,Resources Directorate,Consultants/Hons,A310
http://opendatacommunities.org/id/london-borough-council/sutton,London Borough of Sutton,25/04/2018,6929815,"2,210.00",Hammond Clarke Ltd,26383,Resources Directorate,Consultants/Hons,A310
http://opendatacommunities.org/id/london-borough-council/sutton,London Borough of Sutton,27/02/2018,6929923,"2,080.00",Hammond Clarke Ltd,26383,Resources Directorate,Agency Staff - Other,A301
http://opendatacommunities.org/id/london-borough-council/sutton,London Borough of Sutton,07/03/2018,6929924,"2,080.00",Hammond Clarke Ltd,26383,Resources Directorate,Agency Staff - Other,A301
http://opendatacommunities.org/id/london-borough-council/sutton,London Borough of Sutton,14/03/2018,6929925,"2,080.00",Hammond Clarke Ltd,26383,Resources Directorate,Agency Staff - Other,A301
http://opendatacommunities.org/id/london-borough-council/sutton,London Borough of Sutton,27/03/2018,6929926,"2,080.00",Hammond Clarke Ltd,26383,Resources Directorate,Agency Staff - Other,A301
http://opendatacommunities.org/id/london-borough-council/sutton,London Borough of Sutton,05/04/2018,6929927,"2,080.00",Hammond Clarke Ltd,26383,Resources Directorate,Agency Staff - Other,A301
http://opendatacommunities.org/id/london-borough-council/sutton,London Borough of Sutton,05/04/2018,6929928,"2,080.00",Hammond Clarke Ltd,26383,Resources Directorate,Agency Staff - Other,A301
http://opendatacommunities.org/id/london-borough-council/sutton,London Borough of Sutton,12/04/2018,6929929,"2,080.00",Hammond Clarke Ltd,26383,Resources Directorate,Agency Staff - Other,A301
http://opendatacommunities.org/id/london-borough-council/sutton,London Borough of Sutton,15/01/2018,1253392,"3,245.76",Hampshire County Council,11967,Peoples Services Directorate,Hired Peoples Transport (Children),E072
